{"text_format":"3","workbook":"xlsx","n_sheets":5,"sheets":["BEGIN","GEPLANDE KOSTEN","WERKELIJKE KOSTEN","KOSTENVERSCHILLEN","KOSTENANALYSE"],"not_rendered":{"charts":3,"images":2,"defined_names":1},"read":"whole","date_system":"1900"}

{"sheet":"BEGIN","index":0,"n_rows":8,"n_cols":2,"rows_kept":8}
[null,"OVER DEZE SJABLOON"]
[null,"Gebruik deze budgetwerkmap voor bedrijfskosten om geplande en werkelijke kosten en verschillen bij te houden."]
[null,"Vul de bedrijfsnaam in en voeg een logo toe."]
[null,"Voer in de tabellen op het werkblad Geplande kosten en Werkelijke kosten gegevens in."]
[null,"De tabellen op het werkblad Kostenverschillen en de grafieken in het werkblad Kostenanalyse worden automatisch bijgewerkt"]
[null,"Opmerking: "]
[null,"Kolom A van elk werkblad bevat aanvullende instructies. Deze tekst is opzettelijk verborgen. Als u tekst wilt verwijderen, selecteert u kolom A en drukt u op DELETE. Als u de tekst zichtbaar wilt maken, selecteert u kolom A en wijzigt u de tekenkleur."]
[null,"Als u meer wilt weten over tabellen, drukt u in een tabel op Shift en F10 en selecteert u de optie TABEL en vervolgens ALTERNATIEVE TEKST"]

{"sheet":"GEPLANDE KOSTEN","index":1,"n_rows":37,"n_cols":18,"rows_kept":37,"merged":[[1,1,2,3],[1,9,1,12],[1,13,2,14],[2,9,2,12],[3,17,12,19],[8,1,8,2],[19,1,19,2],[28,1,28,2],[33,1,33,2]]}
["Voer geplande personeelskosten, kantoorkosten, marketingkosten en training- of reiskosten in de respectievelijke tabellen in dit werkblad in. Totalen worden automatisch berekend. Cellen in deze kolom bevatten handige instructies voor het gebruik van deze sjabloon. Druk op de pijl-omlaag-toets om aan de slag te gaan.",{"$nulls":14}," "]
["Voer in de cel rechts de naam van het bedrijf in, en het logo in cel N2. De titel van dit werkblad staat in cel K2.","Bedrijfsnaam",{"$nulls":7},"Gedetailleerde kostenschattingen",{"$nulls":3},"Tijdelijke aanduiding voor logo bevindt zich in deze cel."]
["De tip staat in cel K3.",{"$nulls":8},"Gekleurde cellen zijn berekeningen."]
["De cel rechts bevat het label GEPLANDE KOSTEN, de cellen C4 t/m N4 bevatten de maanden, en cel O4 het label JAAR. De instructies voor het gebruiken van deze sjabloon staan in cel R4.","GEPLANDE KOSTEN","JAN","FEB","MRT","APR","MEI","JUN","JUL","AUG","SEPT","OKT","NOV","DEC","JAAR",null,null,"Tip: DEZE SJABLOON GEBRUIKEN\nVoer in de witte cellen op de werkbladen GEPLANDE KOSTEN en WERKELIJKE KOSTEN gegevens in, en de KOSTENVERSCHILLEN en KOSTENANALYSE worden voor u berekend. Als u een rij aan een werkblad toevoegt, moet u dit ook doen op de overige bladen."]
["Voer de personeelskosten in in de tabel PersoneelGepland die in de cel rechts begint. De volgende aanwijzing staat in cel A10.","Personeelskosten","Jan","Feb","Mrt","Apr","Mei","Jun","Jul","Aug","Sep","Okt","Nov","Dec","JAAR"]
[null,"Salaris",{"v":85000,"d":"€ 85,000.00"},{"v":85000,"d":"€ 85,000.00"},{"v":85000,"d":"€ 85,000.00"},{"v":87500,"d":"€ 87,500.00"},{"v":87500,"d":"€ 87,500.00"},{"v":87500,"d":"€ 87,500.00"},{"v":87500,"d":"€ 87,500.00"},{"v":92400,"d":"€ 92,400.00"},{"v":92400,"d":"€ 92,400.00"},{"v":92400,"d":"€ 92,400.00"},{"v":92400,"d":"€ 92,400.00"},{"v":92400,"d":"€ 92,400.00"},{"$f":"SUM(C6:N6)","v":{"v":1067000,"d":"€ 1,067,000.00"}}]
[null,"Uitkeringen",{"$f":"C6*0.27","v":{"v":22950,"d":"€ 22,950.00"}},{"v":22950,"d":"€ 22,950.00"},{"v":22950,"d":"€ 22,950.00"},{"v":23625,"d":"€ 23,625.00"},{"v":23625,"d":"€ 23,625.00"},{"v":23625,"d":"€ 23,625.00"},{"v":23625,"d":"€ 23,625.00"},{"v":24948,"d":"€ 24,948.00"},{"v":24948,"d":"€ 24,948.00"},{"v":24948,"d":"€ 24,948.00"},{"v":24948,"d":"€ 24,948.00"},{"v":24948,"d":"€ 24,948.00"},{"$f":"SUM(C7:N7)","v":{"v":288090,"d":"€ 288,090.00"}}]
[null,"Subtotaal",{"$f":"SUBTOTAL(109,PersoneelGepland[Jan])","v":{"v":107950,"d":"€ 107,950.00"}},{"$f":"SUBTOTAL(109,PersoneelGepland[Feb])","v":{"v":107950,"d":"€ 107,950.00"}},{"$f":"SUBTOTAL(109,PersoneelGepland[Mrt])","v":{"v":107950,"d":"€ 107,950.00"}},{"$f":"SUBTOTAL(109,PersoneelGepland[Apr])","v":{"v":111125,"d":"€ 111,125.00"}},{"$f":"SUBTOTAL(109,PersoneelGepland[Mei])","v":{"v":111125,"d":"€ 111,125.00"}},{"$f":"SUBTOTAL(109,PersoneelGepland[Jun])","v":{"v":111125,"d":"€ 111,125.00"}},{"$f":"SUBTOTAL(109,PersoneelGepland[Jul])","v":{"v":111125,"d":"€ 111,125.00"}},{"$f":"SUBTOTAL(109,PersoneelGepland[Aug])","v":{"v":117348,"d":"€ 117,348.00"}},{"$f":"SUBTOTAL(109,PersoneelGepland[Sep])","v":{"v":117348,"d":"€ 117,348.00"}},{"$f":"SUBTOTAL(109,PersoneelGepland[Okt])","v":{"v":117348,"d":"€ 117,348.00"}},{"$f":"SUBTOTAL(109,PersoneelGepland[Nov])","v":{"v":117348,"d":"€ 117,348.00"}},{"$f":"SUBTOTAL(109,PersoneelGepland[Dec])","v":{"v":117348,"d":"€ 117,348.00"}},{"$f":"SUBTOTAL(109,PersoneelGepland[JAAR])","v":{"v":1355090,"d":"€ 1,355,090.00"}}]
[]
["Voer de kantoorkosten in in de tabel KantoorGepland die in de cel rechts begint. De volgende aanwijzing staat in cel A21.","Kantoorkosten","Jan","Feb","Mrt","Apr","Mei","Jun","Jul","Aug","Sep","Okt","Nov","Dec","JAAR"]
[null,"Kantoorhuur",{"v":9800,"d":"€ 9,800.00"},{"v":9800,"d":"€ 9,800.00"},{"v":9800,"d":"€ 9,800.00"},{"v":9800,"d":"€ 9,800.00"},{"v":9800,"d":"€ 9,800.00"},{"v":9800,"d":"€ 9,800.00"},{"v":9800,"d":"€ 9,800.00"},{"v":9800,"d":"€ 9,800.00"},{"v":9800,"d":"€ 9,800.00"},{"v":9800,"d":"€ 9,800.00"},{"v":9800,"d":"€ 9,800.00"},{"v":9800,"d":"€ 9,800.00"},{"$f":"SUM(C11:N11)","v":{"v":117600,"d":"€ 117,600.00"}}]
[null,"Gas",null,{"v":400,"d":"€ 400.00"},{"v":400,"d":"€ 400.00"},{"v":100,"d":"€ 100.00"},{"v":100,"d":"€ 100.00"},{"v":100,"d":"€ 100.00"},{"v":100,"d":"€ 100.00"},{"v":100,"d":"€ 100.00"},{"v":100,"d":"€ 100.00"},{"v":100,"d":"€ 100.00"},{"v":400,"d":"€ 400.00"},{"v":400,"d":"€ 400.00"},{"v":2300,"d":"€ 2,300.00"}]
[null,"Elektriciteit",{"v":300,"d":"€ 300.00"},{"v":300,"d":"€ 300.00"},{"v":300,"d":"€ 300.00"},{"v":300,"d":"€ 300.00"},{"v":300,"d":"€ 300.00"},{"v":300,"d":"€ 300.00"},{"v":300,"d":"€ 300.00"},{"v":300,"d":"€ 300.00"},{"v":300,"d":"€ 300.00"},{"v":300,"d":"€ 300.00"},{"v":300,"d":"€ 300.00"},{"v":300,"d":"€ 300.00"},{"v":3600,"d":"€ 3,600.00"}]
[null,"Water",{"v":40,"d":"€ 40.00"},{"v":40,"d":"€ 40.00"},{"v":40,"d":"€ 40.00"},{"v":40,"d":"€ 40.00"},{"v":40,"d":"€ 40.00"},{"v":40,"d":"€ 40.00"},{"v":40,"d":"€ 40.00"},{"v":40,"d":"€ 40.00"},{"v":40,"d":"€ 40.00"},{"v":40,"d":"€ 40.00"},{"v":40,"d":"€ 40.00"},{"v":40,"d":"€ 40.00"},{"v":480,"d":"€ 480.00"}]
[null,"Telefoon",{"v":250,"d":"€ 250.00"},{"v":250,"d":"€ 250.00"},{"v":250,"d":"€ 250.00"},{"v":250,"d":"€ 250.00"},{"v":250,"d":"€ 250.00"},{"v":250,"d":"€ 250.00"},{"v":250,"d":"€ 250.00"},{"v":250,"d":"€ 250.00"},{"v":250,"d":"€ 250.00"},{"v":250,"d":"€ 250.00"},{"v":250,"d":"€ 250.00"},{"v":250,"d":"€ 250.00"},{"v":3000,"d":"€ 3,000.00"}]
[null,"Internettoegang",{"v":180,"d":"€ 180.00"},{"v":180,"d":"€ 180.00"},{"v":180,"d":"€ 180.00"},{"v":180,"d":"€ 180.00"},{"v":180,"d":"€ 180.00"},{"v":180,"d":"€ 180.00"},{"v":180,"d":"€ 180.00"},{"v":180,"d":"€ 180.00"},{"v":180,"d":"€ 180.00"},{"v":180,"d":"€ 180.00"},{"v":180,"d":"€ 180.00"},{"v":180,"d":"€ 180.00"},{"v":2160,"d":"€ 2,160.00"}]
[null,"Kantoorbenodigdheden",{"v":200,"d":"€ 200.00"},{"v":200,"d":"€ 200.00"},{"v":200,"d":"€ 200.00"},{"v":200,"d":"€ 200.00"},{"v":200,"d":"€ 200.00"},{"v":200,"d":"€ 200.00"},{"v":200,"d":"€ 200.00"},{"v":200,"d":"€ 200.00"},{"v":200,"d":"€ 200.00"},{"v":200,"d":"€ 200.00"},{"v":200,"d":"€ 200.00"},{"v":200,"d":"€ 200.00"},{"v":2400,"d":"€ 2,400.00"}]
[null,"Beveiliging",{"v":600,"d":"€ 600.00"},{"v":600,"d":"€ 600.00"},{"v":600,"d":"€ 600.00"},{"v":600,"d":"€ 600.00"},{"v":600,"d":"€ 600.00"},{"v":600,"d":"€ 600.00"},{"v":600,"d":"€ 600.00"},{"v":600,"d":"€ 600.00"},{"v":600,"d":"€ 600.00"},{"v":600,"d":"€ 600.00"},{"v":600,"d":"€ 600.00"},{"v":600,"d":"€ 600.00"},{"v":7200,"d":"€ 7,200.00"}]
[null,"Subtotaal",{"$f":"SUBTOTAL(109,KantoorGepland[Jan])","v":{"v":11370,"d":"€ 11,370.00"}},{"$f":"SUBTOTAL(109,KantoorGepland[Feb])","v":{"v":11770,"d":"€ 11,770.00"}},{"$f":"SUBTOTAL(109,KantoorGepland[Mrt])","v":{"v":11770,"d":"€ 11,770.00"}},{"$f":"SUBTOTAL(109,KantoorGepland[Apr])","v":{"v":11470,"d":"€ 11,470.00"}},{"$f":"SUBTOTAL(109,KantoorGepland[Mei])","v":{"v":11470,"d":"€ 11,470.00"}},{"$f":"SUBTOTAL(109,KantoorGepland[Jun])","v":{"v":11470,"d":"€ 11,470.00"}},{"$f":"SUBTOTAL(109,KantoorGepland[Jul])","v":{"v":11470,"d":"€ 11,470.00"}},{"$f":"SUBTOTAL(109,KantoorGepland[Aug])","v":{"v":11470,"d":"€ 11,470.00"}},{"$f":"SUBTOTAL(109,KantoorGepland[Sep])","v":{"v":11470,"d":"€ 11,470.00"}},{"$f":"SUBTOTAL(109,KantoorGepland[Okt])","v":{"v":11470,"d":"€ 11,470.00"}},{"$f":"SUBTOTAL(109,KantoorGepland[Nov])","v":{"v":11770,"d":"€ 11,770.00"}},{"$f":"SUBTOTAL(109,KantoorGepland[Dec])","v":{"v":11770,"d":"€ 11,770.00"}},{"$f":"SUBTOTAL(109,KantoorGepland[JAAR])","v":{"v":138740,"d":"€ 138,740.00"}}]
[]
["Voer de marketingkosten in in de tabel MarketingGepland die in de cel rechts begint. De volgende aanwijzing staat in cel A30.","Marketingkosten","Jan","Feb","Mrt","Apr","Mei","Jun","Jul","Aug","Sep","Okt","Nov","Dec","JAAR"]
[null,"Websitehosting",{"v":500,"d":"€ 500.00"},{"v":500,"d":"€ 500.00"},{"v":500,"d":"€ 500.00"},{"v":500,"d":"€ 500.00"},{"v":500,"d":"€ 500.00"},{"v":500,"d":"€ 500.00"},{"v":500,"d":"€ 500.00"},{"v":500,"d":"€ 500.00"},{"v":500,"d":"€ 500.00"},{"v":500,"d":"€ 500.00"},{"v":500,"d":"€ 500.00"},{"v":500,"d":"€ 500.00"},{"$f":"SUM(C22:N22)","v":{"v":6000,"d":"€ 6,000.00"}}]
[null,"Website-updates",{"v":200,"d":"€ 200.00"},{"v":200,"d":"€ 200.00"},{"v":200,"d":"€ 200.00"},{"v":200,"d":"€ 200.00"},{"v":200,"d":"€ 200.00"},{"v":1000,"d":"€ 1,000.00"},{"v":200,"d":"€ 200.00"},{"v":200,"d":"€ 200.00"},{"v":200,"d":"€ 200.00"},{"v":200,"d":"€ 200.00"},{"v":200,"d":"€ 200.00"},{"v":1000,"d":"€ 1,000.00"},{"v":4000,"d":"€ 4,000.00"}]
[null,"Voorbereiding marketingmateriaal",{"v":5000,"d":"€ 5,000.00"},{"v":0,"d":"€ 0.00"},{"v":0,"d":"€ 0.00"},{"v":5000,"d":"€ 5,000.00"},{"v":0,"d":"€ 0.00"},{"v":0,"d":"€ 0.00"},{"v":5000,"d":"€ 5,000.00"},{"v":0,"d":"€ 0.00"},{"v":0,"d":"€ 0.00"},{"v":5000,"d":"€ 5,000.00"},{"v":0,"d":"€ 0.00"},{"v":0,"d":"€ 0.00"},{"v":20000,"d":"€ 20,000.00"}]
[null,"Afdrukken marketingmateriaal",{"v":200,"d":"€ 200.00"},{"v":200,"d":"€ 200.00"},{"v":200,"d":"€ 200.00"},{"v":200,"d":"€ 200.00"},{"v":200,"d":"€ 200.00"},{"v":200,"d":"€ 200.00"},{"v":200,"d":"€ 200.00"},{"v":200,"d":"€ 200.00"},{"v":200,"d":"€ 200.00"},{"v":200,"d":"€ 200.00"},{"v":200,"d":"€ 200.00"},{"v":200,"d":"€ 200.00"},{"v":2400,"d":"€ 2,400.00"}]
[null,"Marketingevenementen",{"v":2000,"d":"€ 2,000.00"},{"v":2000,"d":"€ 2,000.00"},{"v":2000,"d":"€ 2,000.00"},{"v":5000,"d":"€ 5,000.00"},{"v":2000,"d":"€ 2,000.00"},{"v":2000,"d":"€ 2,000.00"},{"v":2000,"d":"€ 2,000.00"},{"v":5000,"d":"€ 5,000.00"},{"v":2000,"d":"€ 2,000.00"},{"v":2000,"d":"€ 2,000.00"},{"v":2000,"d":"€ 2,000.00"},{"v":5000,"d":"€ 5,000.00"},{"v":33000,"d":"€ 33,000.00"}]
[null,"Diverse kosten",{"v":200,"d":"€ 200.00"},{"v":200,"d":"€ 200.00"},{"v":200,"d":"€ 200.00"},{"v":200,"d":"€ 200.00"},{"v":200,"d":"€ 200.00"},{"v":200,"d":"€ 200.00"},{"v":200,"d":"€ 200.00"},{"v":200,"d":"€ 200.00"},{"v":200,"d":"€ 200.00"},{"v":200,"d":"€ 200.00"},{"v":200,"d":"€ 200.00"},{"v":200,"d":"€ 200.00"},{"v":2400,"d":"€ 2,400.00"}]
[null,"Subtotaal",{"$f":"SUBTOTAL(109,MarketingGepland[Jan])","v":{"v":8100,"d":"€ 8,100.00"}},{"$f":"SUBTOTAL(109,MarketingGepland[Feb])","v":{"v":3100,"d":"€ 3,100.00"}},{"$f":"SUBTOTAL(109,MarketingGepland[Mrt])","v":{"v":3100,"d":"€ 3,100.00"}},{"$f":"SUBTOTAL(109,MarketingGepland[Apr])","v":{"v":11100,"d":"€ 11,100.00"}},{"$f":"SUBTOTAL(109,MarketingGepland[Mei])","v":{"v":3100,"d":"€ 3,100.00"}},{"$f":"SUBTOTAL(109,MarketingGepland[Jun])","v":{"v":3900,"d":"€ 3,900.00"}},{"$f":"SUBTOTAL(109,MarketingGepland[Jul])","v":{"v":8100,"d":"€ 8,100.00"}},{"$f":"SUBTOTAL(109,MarketingGepland[Aug])","v":{"v":6100,"d":"€ 6,100.00"}},{"$f":"SUBTOTAL(109,MarketingGepland[Sep])","v":{"v":3100,"d":"€ 3,100.00"}},{"$f":"SUBTOTAL(109,MarketingGepland[Okt])","v":{"v":8100,"d":"€ 8,100.00"}},{"$f":"SUBTOTAL(109,MarketingGepland[Nov])","v":{"v":3100,"d":"€ 3,100.00"}},{"$f":"SUBTOTAL(109,MarketingGepland[Dec])","v":{"v":6900,"d":"€ 6,900.00"}},{"$f":"SUBTOTAL(109,MarketingGepland[JAAR])","v":{"v":67800,"d":"€ 67,800.00"}}]
[]
["Voer training- en reiskosten in in de tabel TrainingEnReizenGepland die in de cel rechts begint. De volgende aanwijzing staat in cel A35.","Training/Reizen","Jan","Feb","Mrt","Apr","Mei","Jun","Jul","Aug","Sep","Okt","Nov","Dec","JAAR"]
[null,"Trainingscursussen",{"v":2000,"d":"€ 2,000.00"},{"v":2000,"d":"€ 2,000.00"},{"v":2000,"d":"€ 2,000.00"},{"v":2000,"d":"€ 2,000.00"},{"v":2000,"d":"€ 2,000.00"},{"v":2000,"d":"€ 2,000.00"},{"v":2000,"d":"€ 2,000.00"},{"v":2000,"d":"€ 2,000.00"},{"v":2000,"d":"€ 2,000.00"},{"v":2000,"d":"€ 2,000.00"},{"v":2000,"d":"€ 2,000.00"},{"v":2000,"d":"€ 2,000.00"},{"$f":"SUM(C31:N31)","v":{"v":24000,"d":"€ 24,000.00"}}]
[null,"Traininggerelateerde reiskosten",{"v":2000,"d":"€ 2,000.00"},{"v":2000,"d":"€ 2,000.00"},{"v":2000,"d":"€ 2,000.00"},{"v":2000,"d":"€ 2,000.00"},{"v":2000,"d":"€ 2,000.00"},{"v":2000,"d":"€ 2,000.00"},{"v":2000,"d":"€ 2,000.00"},{"v":2000,"d":"€ 2,000.00"},{"v":2000,"d":"€ 2,000.00"},{"v":2000,"d":"€ 2,000.00"},{"v":2000,"d":"€ 2,000.00"},{"v":2000,"d":"€ 2,000.00"},{"$f":"SUM(C32:N32)","v":{"v":24000,"d":"€ 24,000.00"}}]
[null,"Subtotaal",{"$f":"SUBTOTAL(109,TrainingEnReizenGepland[Jan])","v":{"v":4000,"d":"€ 4,000.00"}},{"$f":"SUBTOTAL(109,TrainingEnReizenGepland[Feb])","v":{"v":4000,"d":"€ 4,000.00"}},{"$f":"SUBTOTAL(109,TrainingEnReizenGepland[Mrt])","v":{"v":4000,"d":"€ 4,000.00"}},{"$f":"SUBTOTAL(109,TrainingEnReizenGepland[Apr])","v":{"v":4000,"d":"€ 4,000.00"}},{"$f":"SUBTOTAL(109,TrainingEnReizenGepland[Mei])","v":{"v":4000,"d":"€ 4,000.00"}},{"$f":"SUBTOTAL(109,TrainingEnReizenGepland[Jun])","v":{"v":4000,"d":"€ 4,000.00"}},{"$f":"SUBTOTAL(109,TrainingEnReizenGepland[Jul])","v":{"v":4000,"d":"€ 4,000.00"}},{"$f":"SUBTOTAL(109,TrainingEnReizenGepland[Aug])","v":{"v":4000,"d":"€ 4,000.00"}},{"$f":"SUBTOTAL(109,TrainingEnReizenGepland[Sep])","v":{"v":4000,"d":"€ 4,000.00"}},{"$f":"SUBTOTAL(109,TrainingEnReizenGepland[Okt])","v":{"v":4000,"d":"€ 4,000.00"}},{"$f":"SUBTOTAL(109,TrainingEnReizenGepland[Nov])","v":{"v":4000,"d":"€ 4,000.00"}},{"$f":"SUBTOTAL(109,TrainingEnReizenGepland[Dec])","v":{"v":4000,"d":"€ 4,000.00"}},{"$f":"SUBTOTAL(109,TrainingEnReizenGepland[JAAR])","v":{"v":48000,"d":"€ 48,000.00"}}]
[]
["Totalen worden automatisch berekend in de tabel GeplandTotaal die in de cel rechts begint.","TOTALEN","Jan","Feb","Mrt","Apr","Mei","Jun","Jul","Aug","Sep","Okt","Nov","Dec","Jaar"]
[null,"Geplande kosten per maand",{"$f":"TrainingEnReizenGepland[[#Totals],[Jan]]+MarketingGepland[[#Totals],[Jan]]+KantoorGepland[[#Totals],[Jan]]+PersoneelGepland[[#Totals],[Jan]]","v":{"v":131420,"d":"€ 131,420.00"}},{"$f":"TrainingEnReizenGepland[[#Totals],[Feb]]+MarketingGepland[[#Totals],[Feb]]+KantoorGepland[[#Totals],[Feb]]+PersoneelGepland[[#Totals],[Feb]]","v":{"v":126820,"d":"€ 126,820.00"}},{"$f":"TrainingEnReizenGepland[[#Totals],[Mrt]]+MarketingGepland[[#Totals],[Mrt]]+KantoorGepland[[#Totals],[Mrt]]+PersoneelGepland[[#Totals],[Mrt]]","v":{"v":126820,"d":"€ 126,820.00"}},{"$f":"TrainingEnReizenGepland[[#Totals],[Apr]]+MarketingGepland[[#Totals],[Apr]]+KantoorGepland[[#Totals],[Apr]]+PersoneelGepland[[#Totals],[Apr]]","v":{"v":137695,"d":"€ 137,695.00"}},{"$f":"TrainingEnReizenGepland[[#Totals],[Mei]]+MarketingGepland[[#Totals],[Mei]]+KantoorGepland[[#Totals],[Mei]]+PersoneelGepland[[#Totals],[Mei]]","v":{"v":129695,"d":"€ 129,695.00"}},{"$f":"TrainingEnReizenGepland[[#Totals],[Jun]]+MarketingGepland[[#Totals],[Jun]]+KantoorGepland[[#Totals],[Jun]]+PersoneelGepland[[#Totals],[Jun]]","v":{"v":130495,"d":"€ 130,495.00"}},{"$f":"TrainingEnReizenGepland[[#Totals],[Jul]]+MarketingGepland[[#Totals],[Jul]]+KantoorGepland[[#Totals],[Jul]]+PersoneelGepland[[#Totals],[Jul]]","v":{"v":134695,"d":"€ 134,695.00"}},{"$f":"TrainingEnReizenGepland[[#Totals],[Aug]]+MarketingGepland[[#Totals],[Aug]]+KantoorGepland[[#Totals],[Aug]]+PersoneelGepland[[#Totals],[Aug]]","v":{"v":138918,"d":"€ 138,918.00"}},{"$f":"TrainingEnReizenGepland[[#Totals],[Sep]]+MarketingGepland[[#Totals],[Sep]]+KantoorGepland[[#Totals],[Sep]]+PersoneelGepland[[#Totals],[Sep]]","v":{"v":135918,"d":"€ 135,918.00"}},{"$f":"TrainingEnReizenGepland[[#Totals],[Okt]]+MarketingGepland[[#Totals],[Okt]]+KantoorGepland[[#Totals],[Okt]]+PersoneelGepland[[#Totals],[Okt]]","v":{"v":140918,"d":"€ 140,918.00"}},{"$f":"TrainingEnReizenGepland[[#Totals],[Nov]]+MarketingGepland[[#Totals],[Nov]]+KantoorGepland[[#Totals],[Nov]]+PersoneelGepland[[#Totals],[Nov]]","v":{"v":136218,"d":"€ 136,218.00"}},{"$f":"TrainingEnReizenGepland[[#Totals],[Dec]]+MarketingGepland[[#Totals],[Dec]]+KantoorGepland[[#Totals],[Dec]]+PersoneelGepland[[#Totals],[Dec]]","v":{"v":140018,"d":"€ 140,018.00"}},{"$f":"TrainingEnReizenGepland[[#Totals],[JAAR]]+MarketingGepland[[#Totals],[JAAR]]+KantoorGepland[[#Totals],[JAAR]]+PersoneelGepland[[#Totals],[JAAR]]","v":{"v":1609630,"d":"€ 1,609,630.00"}}]
[null,"TOTALE geplande kosten",{"$f":"SUM($C$36:C36)","v":{"v":131420,"d":"€ 131,420.00"}},{"$f":"SUM($C$36:D36)","v":{"v":258240,"d":"€ 258,240.00"}},{"$f":"SUM($C$36:E36)","v":{"v":385060,"d":"€ 385,060.00"}},{"$f":"SUM($C$36:F36)","v":{"v":522755,"d":"€ 522,755.00"}},{"$f":"SUM($C$36:G36)","v":{"v":652450,"d":"€ 652,450.00"}},{"$f":"SUM($C$36:H36)","v":{"v":782945,"d":"€ 782,945.00"}},{"$f":"SUM($C$36:I36)","v":{"v":917640,"d":"€ 917,640.00"}},{"$f":"SUM($C$36:J36)","v":{"v":1056558,"d":"€ 1,056,558.00"}},{"$f":"SUM($C$36:K36)","v":{"v":1192476,"d":"€ 1,192,476.00"}},{"$f":"SUM($C$36:L36)","v":{"v":1333394,"d":"€ 1,333,394.00"}},{"$f":"SUM($C$36:M36)","v":{"v":1469612,"d":"€ 1,469,612.00"}},{"$f":"SUM($C$36:N36)","v":{"v":1609630,"d":"€ 1,609,630.00"}}]

{"sheet":"WERKELIJKE KOSTEN","index":2,"n_rows":37,"n_cols":16,"rows_kept":37,"merged":[[1,1,2,3],[1,9,1,12],[1,13,2,14],[2,9,2,12],[8,1,8,2],[19,1,19,2],[28,1,28,2],[33,1,33,2]]}
["Voer werkelijke personeelskosten, kantoorkosten, marketingkosten en training- of reiskosten in de respectievelijke tabellen in dit werkblad in. Totalen worden automatisch berekend. Cellen in deze kolom bevatten handige instructies voor het gebruik van deze sjabloon. Druk op de pijl-omlaag-toets om aan de slag te gaan.",{"$nulls":14}," "]
["Bedrijfsnaam wordt automatisch bijgewerkt in de cel rechts. De titel van dit werkblad staat in cel K2. Voer het logo in cel N2 in.",{"$f":"'GEPLANDE KOSTEN'!B2:D3","v":"Bedrijfsnaam"},{"$nulls":7},{"$f":"werkbladtitel","v":"Gedetailleerde kostenschattingen"},{"$nulls":3},"Tijdelijke aanduiding voor logo bevindt zich in deze cel."]
["De tip staat in cel K3.",{"$nulls":8},"Gekleurde cellen zijn berekeningen."]
["De cel rechts bevat het label WERKELIJKE KOSTEN, de cellen C4 t/m N4 bevatten de maanden, en cel O4 het label JAAR.","WERKELIJKE KOSTEN","JAN","FEB","MRT","APR","MEI","JUN","JUL","AUG","SEPT","OKT","NOV","DEC","JAAR"]
["Voer de personeelskosten in in de tabel PersoneelWerkelijk die in de cel rechts begint. De volgende aanwijzing staat in cel A10.","Personeelskosten","Jan","Feb","Mrt","Apr","Mei","Jun","Jul","Aug","Sep","Okt","Nov","Dec","JAAR"]
[null,"Salaris",{"v":85000,"d":"€ 85,000.00"},{"v":85000,"d":"€ 85,000.00"},{"v":85000,"d":"€ 85,000.00"},{"v":88000,"d":"€ 88,000.00"},{"v":88000,"d":"€ 88,000.00"},{"v":88000,"d":"€ 88,000.00"},{"$nulls":6},{"$f":"SUM(C6:N6)","v":{"v":519000,"d":"€ 519,000.00"}}]
[null,"Uitkeringen",{"$f":"C6*0.27","v":{"v":22950,"d":"€ 22,950.00"}},{"v":22950,"d":"€ 22,950.00"},{"v":22950,"d":"€ 22,950.00"},{"v":23760,"d":"€ 23,760.00"},{"v":23760,"d":"€ 23,760.00"},{"v":23760,"d":"€ 23,760.00"},{"v":0,"d":"€ 0.00"},{"v":0,"d":"€ 0.00"},{"v":0,"d":"€ 0.00"},{"v":0,"d":"€ 0.00"},{"v":0,"d":"€ 0.00"},{"v":0,"d":"€ 0.00"},{"$f":"SUM(C7:N7)","v":{"v":140130,"d":"€ 140,130.00"}}]
[null,"Subtotaal",{"$f":"SUBTOTAL(109,PersoneelWerkelijk[Jan])","v":{"v":107950,"d":"€ 107,950.00"}},{"$f":"SUBTOTAL(109,PersoneelWerkelijk[Feb])","v":{"v":107950,"d":"€ 107,950.00"}},{"$f":"SUBTOTAL(109,PersoneelWerkelijk[Mrt])","v":{"v":107950,"d":"€ 107,950.00"}},{"$f":"SUBTOTAL(109,PersoneelWerkelijk[Apr])","v":{"v":111760,"d":"€ 111,760.00"}},{"$f":"SUBTOTAL(109,PersoneelWerkelijk[Mei])","v":{"v":111760,"d":"€ 111,760.00"}},{"$f":"SUBTOTAL(109,PersoneelWerkelijk[Jun])","v":{"v":111760,"d":"€ 111,760.00"}},{"$f":"SUBTOTAL(109,PersoneelWerkelijk[Jul])","v":{"v":0,"d":"€ 0.00"}},{"$f":"SUBTOTAL(109,PersoneelWerkelijk[Aug])","v":{"v":0,"d":"€ 0.00"}},{"$f":"SUBTOTAL(109,PersoneelWerkelijk[Sep])","v":{"v":0,"d":"€ 0.00"}},{"$f":"SUBTOTAL(109,PersoneelWerkelijk[Okt])","v":{"v":0,"d":"€ 0.00"}},{"$f":"SUBTOTAL(109,PersoneelWerkelijk[Nov])","v":{"v":0,"d":"€ 0.00"}},{"$f":"SUBTOTAL(109,PersoneelWerkelijk[Dec])","v":{"v":0,"d":"€ 0.00"}},{"$f":"SUBTOTAL(109,PersoneelWerkelijk[JAAR])","v":{"v":659130,"d":"€ 659,130.00"}}]
[]
["Voer de kantoorkosten in in de tabel KantoorWerkelijk die in de cel rechts begint. De volgende aanwijzing staat in cel A21.","Kantoorkosten","Jan","Feb","Mrt","Apr","Mei","Jun","Jul","Aug","Sep","Okt","Nov","Dec","JAAR"]
[null,"Kantoorhuur",{"v":9800,"d":"€ 9,800.00"},{"v":9800,"d":"€ 9,800.00"},{"v":9800,"d":"€ 9,800.00"},{"v":9800,"d":"€ 9,800.00"},{"v":9800,"d":"€ 9,800.00"},{"v":9800,"d":"€ 9,800.00"},{"$nulls":6},{"$f":"SUM(C11:N11)","v":{"v":58800,"d":"€ 58,800.00"}}]
[null,"Gas",{"v":4,"d":"€ 4.00"},{"v":430,"d":"€ 430.00"},{"v":385,"d":"€ 385.00"},{"v":230,"d":"€ 230.00"},{"v":87,"d":"€ 87.00"},{"v":88,"d":"€ 88.00"},{"$nulls":6},{"v":1224,"d":"€ 1,224.00"}]
[null,"Elektriciteit",{"v":288,"d":"€ 288.00"},{"v":278,"d":"€ 278.00"},{"v":268,"d":"€ 268.00"},{"v":299,"d":"€ 299.00"},{"v":306,"d":"€ 306.00"},{"v":290,"d":"€ 290.00"},{"$nulls":6},{"v":1729,"d":"€ 1,729.00"}]
[null,"Water",{"v":35,"d":"€ 35.00"},{"v":33,"d":"€ 33.00"},{"v":34,"d":"€ 34.00"},{"v":36,"d":"€ 36.00"},{"v":34,"d":"€ 34.00"},{"v":36,"d":"€ 36.00"},{"$nulls":6},{"v":208,"d":"€ 208.00"}]
[null,"Telefoon",{"v":224,"d":"€ 224.00"},{"v":235,"d":"€ 235.00"},{"v":265,"d":"€ 265.00"},{"v":245,"d":"€ 245.00"},{"v":245,"d":"€ 245.00"},{"v":220,"d":"€ 220.00"},{"$nulls":6},{"v":1434,"d":"€ 1,434.00"}]
[null,"Internettoegang",{"v":180,"d":"€ 180.00"},{"v":180,"d":"€ 180.00"},{"v":180,"d":"€ 180.00"},{"v":180,"d":"€ 180.00"},{"v":180,"d":"€ 180.00"},{"v":180,"d":"€ 180.00"},{"$nulls":6},{"v":1080,"d":"€ 1,080.00"}]
[null,"Kantoorbenodigdheden",{"v":256,"d":"€ 256.00"},{"v":142,"d":"€ 142.00"},{"v":160,"d":"€ 160.00"},{"v":221,"d":"€ 221.00"},{"v":256,"d":"€ 256.00"},{"v":240,"d":"€ 240.00"},{"$nulls":6},{"v":1275,"d":"€ 1,275.00"}]
[null,"Beveiliging",{"v":600,"d":"€ 600.00"},{"v":600,"d":"€ 600.00"},{"v":600,"d":"€ 600.00"},{"v":600,"d":"€ 600.00"},{"v":600,"d":"€ 600.00"},{"v":600,"d":"€ 600.00"},{"$nulls":6},{"v":3600,"d":"€ 3,600.00"}]
[null,"Subtotaal",{"$f":"SUBTOTAL(109,KantoorWerkelijk[Jan])","v":{"v":11387,"d":"€ 11,387.00"}},{"$f":"SUBTOTAL(109,KantoorWerkelijk[Feb])","v":{"v":11698,"d":"€ 11,698.00"}},{"$f":"SUBTOTAL(109,KantoorWerkelijk[Mrt])","v":{"v":11692,"d":"€ 11,692.00"}},{"$f":"SUBTOTAL(109,KantoorWerkelijk[Apr])","v":{"v":11611,"d":"€ 11,611.00"}},{"$f":"SUBTOTAL(109,KantoorWerkelijk[Mei])","v":{"v":11508,"d":"€ 11,508.00"}},{"$f":"SUBTOTAL(109,KantoorWerkelijk[Jun])","v":{"v":11454,"d":"€ 11,454.00"}},{"$f":"SUBTOTAL(109,KantoorWerkelijk[Jul])","v":{"v":0,"d":"€ 0.00"}},{"$f":"SUBTOTAL(109,KantoorWerkelijk[Aug])","v":{"v":0,"d":"€ 0.00"}},{"$f":"SUBTOTAL(109,KantoorWerkelijk[Sep])","v":{"v":0,"d":"€ 0.00"}},{"$f":"SUBTOTAL(109,KantoorWerkelijk[Okt])","v":{"v":0,"d":"€ 0.00"}},{"$f":"SUBTOTAL(109,KantoorWerkelijk[Nov])","v":{"v":0,"d":"€ 0.00"}},{"$f":"SUBTOTAL(109,KantoorWerkelijk[Dec])","v":{"v":0,"d":"€ 0.00"}},{"$f":"SUBTOTAL(109,KantoorWerkelijk[JAAR])","v":{"v":69350,"d":"€ 69,350.00"}}]
[]
["Voer de marketingkosten in in de tabel MarketingWerkelijk die in de cel rechts begint. De volgende aanwijzing staat in cel A30.","Marketingkosten","Jan","Feb","Mrt","Apr","Mei","Jun","Jul","Aug","Sep","Okt","Nov","Dec","JAAR"]
[null,"Websitehosting",{"v":500,"d":"€ 500.00"},{"v":500,"d":"€ 500.00"},{"v":500,"d":"€ 500.00"},{"v":500,"d":"€ 500.00"},{"v":500,"d":"€ 500.00"},{"v":500,"d":"€ 500.00"},{"$nulls":6},{"$f":"SUM(C22:N22)","v":{"v":3000,"d":"€ 3,000.00"}}]
[null,"Website-updates",{"v":200,"d":"€ 200.00"},{"v":200,"d":"€ 200.00"},{"v":200,"d":"€ 200.00"},{"v":200,"d":"€ 200.00"},{"v":200,"d":"€ 200.00"},{"v":1500,"d":"€ 1,500.00"},{"$nulls":6},{"v":2500,"d":"€ 2,500.00"}]
[null,"Voorbereiding marketingmateriaal",{"v":4800,"d":"€ 4,800.00"},{"v":0,"d":"€ 0.00"},{"v":0,"d":"€ 0.00"},{"v":5500,"d":"€ 5,500.00"},{"v":0,"d":"€ 0.00"},{"v":0,"d":"€ 0.00"},{"$nulls":6},{"v":10300,"d":"€ 10,300.00"}]
[null,"Afdrukken marketingmateriaal",{"v":100,"d":"€ 100.00"},{"v":500,"d":"€ 500.00"},{"v":100,"d":"€ 100.00"},{"v":100,"d":"€ 100.00"},{"v":600,"d":"€ 600.00"},{"v":180,"d":"€ 180.00"},{"$nulls":6},{"v":1580,"d":"€ 1,580.00"}]
[null,"Marketingevenementen",{"v":1800,"d":"€ 1,800.00"},{"v":2200,"d":"€ 2,200.00"},{"v":2200,"d":"€ 2,200.00"},{"v":4700,"d":"€ 4,700.00"},{"v":1500,"d":"€ 1,500.00"},{"v":2300,"d":"€ 2,300.00"},{"$nulls":6},{"v":14700,"d":"€ 14,700.00"}]
[null,"Diverse kosten",{"v":145,"d":"€ 145.00"},{"v":156,"d":"€ 156.00"},{"v":123,"d":"€ 123.00"},{"v":223,"d":"€ 223.00"},{"v":187,"d":"€ 187.00"},{"v":245,"d":"€ 245.00"},{"$nulls":6},{"v":1079,"d":"€ 1,079.00"}]
[null,"Subtotaal",{"$f":"SUBTOTAL(109,MarketingWerkelijik[Jan])","v":{"v":7545,"d":"€ 7,545.00"}},{"$f":"SUBTOTAL(109,MarketingWerkelijik[Feb])","v":{"v":3556,"d":"€ 3,556.00"}},{"$f":"SUBTOTAL(109,MarketingWerkelijik[Mrt])","v":{"v":3123,"d":"€ 3,123.00"}},{"$f":"SUBTOTAL(109,MarketingWerkelijik[Apr])","v":{"v":11223,"d":"€ 11,223.00"}},{"$f":"SUBTOTAL(109,MarketingWerkelijik[Mei])","v":{"v":2987,"d":"€ 2,987.00"}},{"$f":"SUBTOTAL(109,MarketingWerkelijik[Jun])","v":{"v":4725,"d":"€ 4,725.00"}},{"$f":"SUBTOTAL(109,MarketingWerkelijik[Jul])","v":{"v":0,"d":"€ 0.00"}},{"$f":"SUBTOTAL(109,MarketingWerkelijik[Aug])","v":{"v":0,"d":"€ 0.00"}},{"$f":"SUBTOTAL(109,MarketingWerkelijik[Sep])","v":{"v":0,"d":"€ 0.00"}},{"$f":"SUBTOTAL(109,MarketingWerkelijik[Okt])","v":{"v":0,"d":"€ 0.00"}},{"$f":"SUBTOTAL(109,MarketingWerkelijik[Nov])","v":{"v":0,"d":"€ 0.00"}},{"$f":"SUBTOTAL(109,MarketingWerkelijik[Dec])","v":{"v":0,"d":"€ 0.00"}},{"$f":"SUBTOTAL(109,MarketingWerkelijik[JAAR])","v":{"v":33159,"d":"€ 33,159.00"}}]
[]
["Voer training- en reiskosten in in de tabel TrainingEnReizenWerkelijk die in de cel rechts begint. De volgende aanwijzing staat in cel A35.","Training/Reizen","Jan","Feb","Mrt","Apr","Mei","Jun","Jul","Aug","Sep","Okt","Nov","Dec","JAAR"]
[null,"Trainingscursussen",{"v":1600,"d":"€ 1,600.00"},{"v":2400,"d":"€ 2,400.00"},{"v":1400,"d":"€ 1,400.00"},{"v":1600,"d":"€ 1,600.00"},{"v":1200,"d":"€ 1,200.00"},{"v":2800,"d":"€ 2,800.00"},{"$nulls":6},{"$f":"SUM(C31:N31)","v":{"v":11000,"d":"€ 11,000.00"}}]
[null,"Traininggerelateerde reiskosten",{"v":1200,"d":"€ 1,200.00"},{"v":2200,"d":"€ 2,200.00"},{"v":1400,"d":"€ 1,400.00"},{"v":1200,"d":"€ 1,200.00"},{"v":800,"d":"€ 800.00"},{"v":3500,"d":"€ 3,500.00"},{"$nulls":6},{"$f":"SUM(C32:N32)","v":{"v":10300,"d":"€ 10,300.00"}}]
[null,"Subtotaal",{"$f":"SUBTOTAL(109,TrainingEnReizenWerkelijk[Jan])","v":{"v":2800,"d":"€ 2,800.00"}},{"$f":"SUBTOTAL(109,TrainingEnReizenWerkelijk[Feb])","v":{"v":4600,"d":"€ 4,600.00"}},{"$f":"SUBTOTAL(109,TrainingEnReizenWerkelijk[Mrt])","v":{"v":2800,"d":"€ 2,800.00"}},{"$f":"SUBTOTAL(109,TrainingEnReizenWerkelijk[Apr])","v":{"v":2800,"d":"€ 2,800.00"}},{"$f":"SUBTOTAL(109,TrainingEnReizenWerkelijk[Mei])","v":{"v":2000,"d":"€ 2,000.00"}},{"$f":"SUBTOTAL(109,TrainingEnReizenWerkelijk[Jun])","v":{"v":6300,"d":"€ 6,300.00"}},{"$f":"SUBTOTAL(109,TrainingEnReizenWerkelijk[Jul])","v":{"v":0,"d":"€ 0.00"}},{"$f":"SUBTOTAL(109,TrainingEnReizenWerkelijk[Aug])","v":{"v":0,"d":"€ 0.00"}},{"$f":"SUBTOTAL(109,TrainingEnReizenWerkelijk[Sep])","v":{"v":0,"d":"€ 0.00"}},{"$f":"SUBTOTAL(109,TrainingEnReizenWerkelijk[Okt])","v":{"v":0,"d":"€ 0.00"}},{"$f":"SUBTOTAL(109,TrainingEnReizenWerkelijk[Nov])","v":{"v":0,"d":"€ 0.00"}},{"$f":"SUBTOTAL(109,TrainingEnReizenWerkelijk[Dec])","v":{"v":0,"d":"€ 0.00"}},{"$f":"SUBTOTAL(109,TrainingEnReizenWerkelijk[JAAR])","v":{"v":21300,"d":"€ 21,300.00"}}]
[]
["Totalen worden automatisch berekend in de tabel WerkelijkTotaal die in de cel rechts begint.","TOTALE geplande kosten","Jan","Feb","Mrt","Apr","Mei","Jun","Jul","Aug","Sep","Okt","Nov","Dec","Jaar"]
[null,"Werkelijke kosten per maand",{"$f":"TrainingEnReizenWerkelijk[[#Totals],[Jan]]+MarketingWerkelijik[[#Totals],[Jan]]+KantoorWerkelijk[[#Totals],[Jan]]+PersoneelWerkelijk[[#Totals],[Jan]]","v":{"v":129682,"d":"€ 129,682.00"}},{"$f":"TrainingEnReizenWerkelijk[[#Totals],[Feb]]+MarketingWerkelijik[[#Totals],[Feb]]+KantoorWerkelijk[[#Totals],[Feb]]+PersoneelWerkelijk[[#Totals],[Feb]]","v":{"v":127804,"d":"€ 127,804.00"}},{"$f":"TrainingEnReizenWerkelijk[[#Totals],[Mrt]]+MarketingWerkelijik[[#Totals],[Mrt]]+KantoorWerkelijk[[#Totals],[Mrt]]+PersoneelWerkelijk[[#Totals],[Mrt]]","v":{"v":125565,"d":"€ 125,565.00"}},{"$f":"TrainingEnReizenWerkelijk[[#Totals],[Apr]]+MarketingWerkelijik[[#Totals],[Apr]]+KantoorWerkelijk[[#Totals],[Apr]]+PersoneelWerkelijk[[#Totals],[Apr]]","v":{"v":137394,"d":"€ 137,394.00"}},{"$f":"TrainingEnReizenWerkelijk[[#Totals],[Mei]]+MarketingWerkelijik[[#Totals],[Mei]]+KantoorWerkelijk[[#Totals],[Mei]]+PersoneelWerkelijk[[#Totals],[Mei]]","v":{"v":128255,"d":"€ 128,255.00"}},{"$f":"TrainingEnReizenWerkelijk[[#Totals],[Jun]]+MarketingWerkelijik[[#Totals],[Jun]]+KantoorWerkelijk[[#Totals],[Jun]]+PersoneelWerkelijk[[#Totals],[Jun]]","v":{"v":134239,"d":"€ 134,239.00"}},{"$f":"TrainingEnReizenWerkelijk[[#Totals],[Jul]]+MarketingWerkelijik[[#Totals],[Jul]]+KantoorWerkelijk[[#Totals],[Jul]]+PersoneelWerkelijk[[#Totals],[Jul]]","v":{"v":0,"d":"€ 0.00"}},{"$f":"TrainingEnReizenWerkelijk[[#Totals],[Aug]]+MarketingWerkelijik[[#Totals],[Aug]]+KantoorWerkelijk[[#Totals],[Aug]]+PersoneelWerkelijk[[#Totals],[Aug]]","v":{"v":0,"d":"€ 0.00"}},{"$f":"TrainingEnReizenWerkelijk[[#Totals],[Sep]]+MarketingWerkelijik[[#Totals],[Sep]]+KantoorWerkelijk[[#Totals],[Sep]]+PersoneelWerkelijk[[#Totals],[Sep]]","v":{"v":0,"d":"€ 0.00"}},{"$f":"TrainingEnReizenWerkelijk[[#Totals],[Okt]]+MarketingWerkelijik[[#Totals],[Okt]]+KantoorWerkelijk[[#Totals],[Okt]]+PersoneelWerkelijk[[#Totals],[Okt]]","v":{"v":0,"d":"€ 0.00"}},{"$f":"TrainingEnReizenWerkelijk[[#Totals],[Nov]]+MarketingWerkelijik[[#Totals],[Nov]]+KantoorWerkelijk[[#Totals],[Nov]]+PersoneelWerkelijk[[#Totals],[Nov]]","v":{"v":0,"d":"€ 0.00"}},{"$f":"TrainingEnReizenWerkelijk[[#Totals],[Dec]]+MarketingWerkelijik[[#Totals],[Dec]]+KantoorWerkelijk[[#Totals],[Dec]]+PersoneelWerkelijk[[#Totals],[Dec]]","v":{"v":0,"d":"€ 0.00"}},{"$f":"TrainingEnReizenWerkelijk[[#Totals],[JAAR]]+MarketingWerkelijik[[#Totals],[JAAR]]+KantoorWerkelijk[[#Totals],[JAAR]]+PersoneelWerkelijk[[#Totals],[JAAR]]","v":{"v":782939,"d":"€ 782,939.00"}}]
[null,"TOTALE werkelijke kosten",{"$f":"SUM($C$36:C36)","v":{"v":129682,"d":"€ 129,682.00"}},{"$f":"SUM($C$36:D36)","v":{"v":257486,"d":"€ 257,486.00"}},{"$f":"SUM($C$36:E36)","v":{"v":383051,"d":"€ 383,051.00"}},{"$f":"SUM($C$36:F36)","v":{"v":520445,"d":"€ 520,445.00"}},{"$f":"SUM($C$36:G36)","v":{"v":648700,"d":"€ 648,700.00"}},{"$f":"SUM($C$36:H36)","v":{"v":782939,"d":"€ 782,939.00"}},{"$f":"SUM($C$36:I36)","v":{"v":782939,"d":"€ 782,939.00"}},{"$f":"SUM($C$36:J36)","v":{"v":782939,"d":"€ 782,939.00"}},{"$f":"SUM($C$36:K36)","v":{"v":782939,"d":"€ 782,939.00"}},{"$f":"SUM($C$36:L36)","v":{"v":782939,"d":"€ 782,939.00"}},{"$f":"SUM($C$36:M36)","v":{"v":782939,"d":"€ 782,939.00"}},{"$f":"SUM($C$36:N36)","v":{"v":782939,"d":"€ 782,939.00"}}]

{"sheet":"KOSTENVERSCHILLEN","index":3,"n_rows":37,"n_cols":16,"rows_kept":37,"merged":[[1,1,2,3],[1,9,1,12],[1,13,2,14],[2,9,2,12],[8,1,8,2],[19,1,19,2],[28,1,28,2],[33,1,33,2]]}
["In de tabellen op dit werkblad worden automatisch de verschillen berekend tussen geplande en werkelijke personeelskosten, kantoorkosten, marketingkosten en training- of reiskosten. Cellen in deze kolom bevatten handige instructies voor het gebruik van deze sjabloon. Druk op de pijl-omlaag-toets om aan de slag te gaan.",{"$nulls":14}," "]
["Bedrijfsnaam wordt automatisch bijgewerkt in de cel rechts. De titel van dit werkblad staat in cel K2. Voer het logo in cel N2 in.",{"$f":"'GEPLANDE KOSTEN'!B2:D3","v":"Bedrijfsnaam"},{"$nulls":7},{"$f":"werkbladtitel","v":"Gedetailleerde kostenschattingen"},{"$nulls":3},"Tijdelijke aanduiding voor logo bevindt zich in deze cel."]
["De tip staat in cel K3.",{"$nulls":8},"Gekleurde cellen zijn berekeningen."]
["De cel rechts bevat het label KOSTENVERSCHILLEN, de cellen C4 t/m N4 bevatten de maanden, en cel O4 het label JAAR.","KOSTENVERSCHILLEN","JAN","FEB","MRT","APR","MEI","JUN","JUL","AUG","SEPT","OKT","NOV","DEC","JAAR"]
["Het verschil in personeelskosten wordt automatisch berekend in de tabel PersoneelVerschillen die in de cel rechts begint. De volgende aanwijzing staat in cel A10.","Personeelskosten","Jan","Feb","Mrt","Apr","Mei","Jun","Jul","Aug","Sep","Okt","Nov","Dec","JAAR"]
[null,"Salaris",{"$f":"INDEX(PersoneelGepland[],MATCH(INDEX(PersoneelVerschillen[],ROW()-ROW(PersoneelVerschillen[[#Headers],[Jan]]),1),INDEX(PersoneelGepland[],,1),0),MATCH(PersoneelVerschillen[[#Headers],[Jan]],PersoneelGepland[#Headers],0))-INDEX(PersoneelWerkelijk[],MATCH(INDEX(PersoneelVerschillen[],ROW()-ROW(PersoneelVerschillen[[#Headers],[Jan]]),1),INDEX(PersoneelGepland[],,1),0),MATCH(PersoneelVerschillen[[#Headers],[Jan]],PersoneelWerkelijk[#Headers],0))","v":{"v":0,"d":"€ 0.00"}},{"$f":"INDEX(PersoneelGepland[],MATCH(INDEX(PersoneelVerschillen[],ROW()-ROW(PersoneelVerschillen[[#Headers],[Feb]]),1),INDEX(PersoneelGepland[],,1),0),MATCH(PersoneelVerschillen[[#Headers],[Feb]],PersoneelGepland[#Headers],0))-INDEX(PersoneelWerkelijk[],MATCH(INDEX(PersoneelVerschillen[],ROW()-ROW(PersoneelVerschillen[[#Headers],[Feb]]),1),INDEX(PersoneelGepland[],,1),0),MATCH(PersoneelVerschillen[[#Headers],[Feb]],PersoneelWerkelijk[#Headers],0))","v":{"v":0,"d":"€ 0.00"}},{"$f":"INDEX(PersoneelGepland[],MATCH(INDEX(PersoneelVerschillen[],ROW()-ROW(PersoneelVerschillen[[#Headers],[Mrt]]),1),INDEX(PersoneelGepland[],,1),0),MATCH(PersoneelVerschillen[[#Headers],[Mrt]],PersoneelGepland[#Headers],0))-INDEX(PersoneelWerkelijk[],MATCH(INDEX(PersoneelVerschillen[],ROW()-ROW(PersoneelVerschillen[[#Headers],[Mrt]]),1),INDEX(PersoneelGepland[],,1),0),MATCH(PersoneelVerschillen[[#Headers],[Mrt]],PersoneelWerkelijk[#Headers],0))","v":{"v":0,"d":"€ 0.00"}},{"$f":"INDEX(PersoneelGepland[],MATCH(INDEX(PersoneelVerschillen[],ROW()-ROW(PersoneelVerschillen[[#Headers],[Apr]]),1),INDEX(PersoneelGepland[],,1),0),MATCH(PersoneelVerschillen[[#Headers],[Apr]],PersoneelGepland[#Headers],0))-INDEX(PersoneelWerkelijk[],MATCH(INDEX(PersoneelVerschillen[],ROW()-ROW(PersoneelVerschillen[[#Headers],[Apr]]),1),INDEX(PersoneelGepland[],,1),0),MATCH(PersoneelVerschillen[[#Headers],[Apr]],PersoneelWerkelijk[#Headers],0))","v":{"v":-500,"d":"€ -500.00"}},{"$f":"INDEX(PersoneelGepland[],MATCH(INDEX(PersoneelVerschillen[],ROW()-ROW(PersoneelVerschillen[[#Headers],[Mei]]),1),INDEX(PersoneelGepland[],,1),0),MATCH(PersoneelVerschillen[[#Headers],[Mei]],PersoneelGepland[#Headers],0))-INDEX(PersoneelWerkelijk[],MATCH(INDEX(PersoneelVerschillen[],ROW()-ROW(PersoneelVerschillen[[#Headers],[Mei]]),1),INDEX(PersoneelGepland[],,1),0),MATCH(PersoneelVerschillen[[#Headers],[Mei]],PersoneelWerkelijk[#Headers],0))","v":{"v":-500,"d":"€ -500.00"}},{"$f":"INDEX(PersoneelGepland[],MATCH(INDEX(PersoneelVerschillen[],ROW()-ROW(PersoneelVerschillen[[#Headers],[Jun]]),1),INDEX(PersoneelGepland[],,1),0),MATCH(PersoneelVerschillen[[#Headers],[Jun]],PersoneelGepland[#Headers],0))-INDEX(PersoneelWerkelijk[],MATCH(INDEX(PersoneelVerschillen[],ROW()-ROW(PersoneelVerschillen[[#Headers],[Jun]]),1),INDEX(PersoneelGepland[],,1),0),MATCH(PersoneelVerschillen[[#Headers],[Jun]],PersoneelWerkelijk[#Headers],0))","v":{"v":-500,"d":"€ -500.00"}},{"$f":"INDEX(PersoneelGepland[],MATCH(INDEX(PersoneelVerschillen[],ROW()-ROW(PersoneelVerschillen[[#Headers],[Jul]]),1),INDEX(PersoneelGepland[],,1),0),MATCH(PersoneelVerschillen[[#Headers],[Jul]],PersoneelGepland[#Headers],0))-INDEX(PersoneelWerkelijk[],MATCH(INDEX(PersoneelVerschillen[],ROW()-ROW(PersoneelVerschillen[[#Headers],[Jul]]),1),INDEX(PersoneelGepland[],,1),0),MATCH(PersoneelVerschillen[[#Headers],[Jul]],PersoneelWerkelijk[#Headers],0))","v":{"v":87500,"d":"€ 87,500.00"}},{"$f":"INDEX(PersoneelGepland[],MATCH(INDEX(PersoneelVerschillen[],ROW()-ROW(PersoneelVerschillen[[#Headers],[Aug]]),1),INDEX(PersoneelGepland[],,1),0),MATCH(PersoneelVerschillen[[#Headers],[Aug]],PersoneelGepland[#Headers],0))-INDEX(PersoneelWerkelijk[],MATCH(INDEX(PersoneelVerschillen[],ROW()-ROW(PersoneelVerschillen[[#Headers],[Aug]]),1),INDEX(PersoneelGepland[],,1),0),MATCH(PersoneelVerschillen[[#Headers],[Aug]],PersoneelWerkelijk[#Headers],0))","v":{"v":92400,"d":"€ 92,400.00"}},{"$f":"INDEX(PersoneelGepland[],MATCH(INDEX(PersoneelVerschillen[],ROW()-ROW(PersoneelVerschillen[[#Headers],[Sep]]),1),INDEX(PersoneelGepland[],,1),0),MATCH(PersoneelVerschillen[[#Headers],[Sep]],PersoneelGepland[#Headers],0))-INDEX(PersoneelWerkelijk[],MATCH(INDEX(PersoneelVerschillen[],ROW()-ROW(PersoneelVerschillen[[#Headers],[Sep]]),1),INDEX(PersoneelGepland[],,1),0),MATCH(PersoneelVerschillen[[#Headers],[Sep]],PersoneelWerkelijk[#Headers],0))","v":{"v":92400,"d":"€ 92,400.00"}},{"$f":"INDEX(PersoneelGepland[],MATCH(INDEX(PersoneelVerschillen[],ROW()-ROW(PersoneelVerschillen[[#Headers],[Okt]]),1),INDEX(PersoneelGepland[],,1),0),MATCH(PersoneelVerschillen[[#Headers],[Okt]],PersoneelGepland[#Headers],0))-INDEX(PersoneelWerkelijk[],MATCH(INDEX(PersoneelVerschillen[],ROW()-ROW(PersoneelVerschillen[[#Headers],[Okt]]),1),INDEX(PersoneelGepland[],,1),0),MATCH(PersoneelVerschillen[[#Headers],[Okt]],PersoneelWerkelijk[#Headers],0))","v":{"v":92400,"d":"€ 92,400.00"}},{"$f":"INDEX(PersoneelGepland[],MATCH(INDEX(PersoneelVerschillen[],ROW()-ROW(PersoneelVerschillen[[#Headers],[Nov]]),1),INDEX(PersoneelGepland[],,1),0),MATCH(PersoneelVerschillen[[#Headers],[Nov]],PersoneelGepland[#Headers],0))-INDEX(PersoneelWerkelijk[],MATCH(INDEX(PersoneelVerschillen[],ROW()-ROW(PersoneelVerschillen[[#Headers],[Nov]]),1),INDEX(PersoneelGepland[],,1),0),MATCH(PersoneelVerschillen[[#Headers],[Nov]],PersoneelWerkelijk[#Headers],0))","v":{"v":92400,"d":"€ 92,400.00"}},{"$f":"INDEX(PersoneelGepland[],MATCH(INDEX(PersoneelVerschillen[],ROW()-ROW(PersoneelVerschillen[[#Headers],[Dec]]),1),INDEX(PersoneelGepland[],,1),0),MATCH(PersoneelVerschillen[[#Headers],[Dec]],PersoneelGepland[#Headers],0))-INDEX(PersoneelWerkelijk[],MATCH(INDEX(PersoneelVerschillen[],ROW()-ROW(PersoneelVerschillen[[#Headers],[Dec]]),1),INDEX(PersoneelGepland[],,1),0),MATCH(PersoneelVerschillen[[#Headers],[Dec]],PersoneelWerkelijk[#Headers],0))","v":{"v":92400,"d":"€ 92,400.00"}},{"$f":"SUM(PersoneelVerschillen[[#This Row],[Jan]:[Dec]])","v":{"v":548000,"d":"€ 548,000.00"}}]
[null,"Uitkeringen",{"$f":"INDEX(PersoneelGepland[],MATCH(INDEX(PersoneelVerschillen[],ROW()-ROW(PersoneelVerschillen[[#Headers],[Jan]]),1),INDEX(PersoneelGepland[],,1),0),MATCH(PersoneelVerschillen[[#Headers],[Jan]],PersoneelGepland[#Headers],0))-INDEX(PersoneelWerkelijk[],MATCH(INDEX(PersoneelVerschillen[],ROW()-ROW(PersoneelVerschillen[[#Headers],[Jan]]),1),INDEX(PersoneelGepland[],,1),0),MATCH(PersoneelVerschillen[[#Headers],[Jan]],PersoneelWerkelijk[#Headers],0))","v":{"v":0,"d":"€ 0.00"}},{"$f":"INDEX(PersoneelGepland[],MATCH(INDEX(PersoneelVerschillen[],ROW()-ROW(PersoneelVerschillen[[#Headers],[Feb]]),1),INDEX(PersoneelGepland[],,1),0),MATCH(PersoneelVerschillen[[#Headers],[Feb]],PersoneelGepland[#Headers],0))-INDEX(PersoneelWerkelijk[],MATCH(INDEX(PersoneelVerschillen[],ROW()-ROW(PersoneelVerschillen[[#Headers],[Feb]]),1),INDEX(PersoneelGepland[],,1),0),MATCH(PersoneelVerschillen[[#Headers],[Feb]],PersoneelWerkelijk[#Headers],0))","v":{"v":0,"d":"€ 0.00"}},{"$f":"INDEX(PersoneelGepland[],MATCH(INDEX(PersoneelVerschillen[],ROW()-ROW(PersoneelVerschillen[[#Headers],[Mrt]]),1),INDEX(PersoneelGepland[],,1),0),MATCH(PersoneelVerschillen[[#Headers],[Mrt]],PersoneelGepland[#Headers],0))-INDEX(PersoneelWerkelijk[],MATCH(INDEX(PersoneelVerschillen[],ROW()-ROW(PersoneelVerschillen[[#Headers],[Mrt]]),1),INDEX(PersoneelGepland[],,1),0),MATCH(PersoneelVerschillen[[#Headers],[Mrt]],PersoneelWerkelijk[#Headers],0))","v":{"v":0,"d":"€ 0.00"}},{"$f":"INDEX(PersoneelGepland[],MATCH(INDEX(PersoneelVerschillen[],ROW()-ROW(PersoneelVerschillen[[#Headers],[Apr]]),1),INDEX(PersoneelGepland[],,1),0),MATCH(PersoneelVerschillen[[#Headers],[Apr]],PersoneelGepland[#Headers],0))-INDEX(PersoneelWerkelijk[],MATCH(INDEX(PersoneelVerschillen[],ROW()-ROW(PersoneelVerschillen[[#Headers],[Apr]]),1),INDEX(PersoneelGepland[],,1),0),MATCH(PersoneelVerschillen[[#Headers],[Apr]],PersoneelWerkelijk[#Headers],0))","v":{"v":-135,"d":"€ -135.00"}},{"$f":"INDEX(PersoneelGepland[],MATCH(INDEX(PersoneelVerschillen[],ROW()-ROW(PersoneelVerschillen[[#Headers],[Mei]]),1),INDEX(PersoneelGepland[],,1),0),MATCH(PersoneelVerschillen[[#Headers],[Mei]],PersoneelGepland[#Headers],0))-INDEX(PersoneelWerkelijk[],MATCH(INDEX(PersoneelVerschillen[],ROW()-ROW(PersoneelVerschillen[[#Headers],[Mei]]),1),INDEX(PersoneelGepland[],,1),0),MATCH(PersoneelVerschillen[[#Headers],[Mei]],PersoneelWerkelijk[#Headers],0))","v":{"v":-135,"d":"€ -135.00"}},{"$f":"INDEX(PersoneelGepland[],MATCH(INDEX(PersoneelVerschillen[],ROW()-ROW(PersoneelVerschillen[[#Headers],[Jun]]),1),INDEX(PersoneelGepland[],,1),0),MATCH(PersoneelVerschillen[[#Headers],[Jun]],PersoneelGepland[#Headers],0))-INDEX(PersoneelWerkelijk[],MATCH(INDEX(PersoneelVerschillen[],ROW()-ROW(PersoneelVerschillen[[#Headers],[Jun]]),1),INDEX(PersoneelGepland[],,1),0),MATCH(PersoneelVerschillen[[#Headers],[Jun]],PersoneelWerkelijk[#Headers],0))","v":{"v":-135,"d":"€ -135.00"}},{"$f":"INDEX(PersoneelGepland[],MATCH(INDEX(PersoneelVerschillen[],ROW()-ROW(PersoneelVerschillen[[#Headers],[Jul]]),1),INDEX(PersoneelGepland[],,1),0),MATCH(PersoneelVerschillen[[#Headers],[Jul]],PersoneelGepland[#Headers],0))-INDEX(PersoneelWerkelijk[],MATCH(INDEX(PersoneelVerschillen[],ROW()-ROW(PersoneelVerschillen[[#Headers],[Jul]]),1),INDEX(PersoneelGepland[],,1),0),MATCH(PersoneelVerschillen[[#Headers],[Jul]],PersoneelWerkelijk[#Headers],0))","v":{"v":23625,"d":"€ 23,625.00"}},{"$f":"INDEX(PersoneelGepland[],MATCH(INDEX(PersoneelVerschillen[],ROW()-ROW(PersoneelVerschillen[[#Headers],[Aug]]),1),INDEX(PersoneelGepland[],,1),0),MATCH(PersoneelVerschillen[[#Headers],[Aug]],PersoneelGepland[#Headers],0))-INDEX(PersoneelWerkelijk[],MATCH(INDEX(PersoneelVerschillen[],ROW()-ROW(PersoneelVerschillen[[#Headers],[Aug]]),1),INDEX(PersoneelGepland[],,1),0),MATCH(PersoneelVerschillen[[#Headers],[Aug]],PersoneelWerkelijk[#Headers],0))","v":{"v":24948,"d":"€ 24,948.00"}},{"$f":"INDEX(PersoneelGepland[],MATCH(INDEX(PersoneelVerschillen[],ROW()-ROW(PersoneelVerschillen[[#Headers],[Sep]]),1),INDEX(PersoneelGepland[],,1),0),MATCH(PersoneelVerschillen[[#Headers],[Sep]],PersoneelGepland[#Headers],0))-INDEX(PersoneelWerkelijk[],MATCH(INDEX(PersoneelVerschillen[],ROW()-ROW(PersoneelVerschillen[[#Headers],[Sep]]),1),INDEX(PersoneelGepland[],,1),0),MATCH(PersoneelVerschillen[[#Headers],[Sep]],PersoneelWerkelijk[#Headers],0))","v":{"v":24948,"d":"€ 24,948.00"}},{"$f":"INDEX(PersoneelGepland[],MATCH(INDEX(PersoneelVerschillen[],ROW()-ROW(PersoneelVerschillen[[#Headers],[Okt]]),1),INDEX(PersoneelGepland[],,1),0),MATCH(PersoneelVerschillen[[#Headers],[Okt]],PersoneelGepland[#Headers],0))-INDEX(PersoneelWerkelijk[],MATCH(INDEX(PersoneelVerschillen[],ROW()-ROW(PersoneelVerschillen[[#Headers],[Okt]]),1),INDEX(PersoneelGepland[],,1),0),MATCH(PersoneelVerschillen[[#Headers],[Okt]],PersoneelWerkelijk[#Headers],0))","v":{"v":24948,"d":"€ 24,948.00"}},{"$f":"INDEX(PersoneelGepland[],MATCH(INDEX(PersoneelVerschillen[],ROW()-ROW(PersoneelVerschillen[[#Headers],[Nov]]),1),INDEX(PersoneelGepland[],,1),0),MATCH(PersoneelVerschillen[[#Headers],[Nov]],PersoneelGepland[#Headers],0))-INDEX(PersoneelWerkelijk[],MATCH(INDEX(PersoneelVerschillen[],ROW()-ROW(PersoneelVerschillen[[#Headers],[Nov]]),1),INDEX(PersoneelGepland[],,1),0),MATCH(PersoneelVerschillen[[#Headers],[Nov]],PersoneelWerkelijk[#Headers],0))","v":{"v":24948,"d":"€ 24,948.00"}},{"$f":"INDEX(PersoneelGepland[],MATCH(INDEX(PersoneelVerschillen[],ROW()-ROW(PersoneelVerschillen[[#Headers],[Dec]]),1),INDEX(PersoneelGepland[],,1),0),MATCH(PersoneelVerschillen[[#Headers],[Dec]],PersoneelGepland[#Headers],0))-INDEX(PersoneelWerkelijk[],MATCH(INDEX(PersoneelVerschillen[],ROW()-ROW(PersoneelVerschillen[[#Headers],[Dec]]),1),INDEX(PersoneelGepland[],,1),0),MATCH(PersoneelVerschillen[[#Headers],[Dec]],PersoneelWerkelijk[#Headers],0))","v":{"v":24948,"d":"€ 24,948.00"}},{"$f":"SUM(PersoneelVerschillen[[#This Row],[Jan]:[Dec]])","v":{"v":147960,"d":"€ 147,960.00"}}]
[null,"Subtotaal",{"$f":"SUBTOTAL(109,PersoneelVerschillen[Jan])","v":{"v":0,"d":"€ 0.00"}},{"$f":"SUBTOTAL(109,PersoneelVerschillen[Feb])","v":{"v":0,"d":"€ 0.00"}},{"$f":"SUBTOTAL(109,PersoneelVerschillen[Mrt])","v":{"v":0,"d":"€ 0.00"}},{"$f":"SUBTOTAL(109,PersoneelVerschillen[Apr])","v":{"v":-635,"d":"€ -635.00"}},{"$f":"SUBTOTAL(109,PersoneelVerschillen[Mei])","v":{"v":-635,"d":"€ -635.00"}},{"$f":"SUBTOTAL(109,PersoneelVerschillen[Jun])","v":{"v":-635,"d":"€ -635.00"}},{"$f":"SUBTOTAL(109,PersoneelVerschillen[Jul])","v":{"v":111125,"d":"€ 111,125.00"}},{"$f":"SUBTOTAL(109,PersoneelVerschillen[Aug])","v":{"v":117348,"d":"€ 117,348.00"}},{"$f":"SUBTOTAL(109,PersoneelVerschillen[Sep])","v":{"v":117348,"d":"€ 117,348.00"}},{"$f":"SUBTOTAL(109,PersoneelVerschillen[Okt])","v":{"v":117348,"d":"€ 117,348.00"}},{"$f":"SUBTOTAL(109,PersoneelVerschillen[Nov])","v":{"v":117348,"d":"€ 117,348.00"}},{"$f":"SUBTOTAL(109,PersoneelVerschillen[Dec])","v":{"v":117348,"d":"€ 117,348.00"}},{"$f":"SUBTOTAL(109,PersoneelVerschillen[JAAR])","v":{"v":695960,"d":"€ 695,960.00"}}]
[]
["Het verschil in kantoorkosten wordt automatisch berekend in de tabel KantoorVerschillen die in de cel rechts begint. De volgende aanwijzing staat in cel A21.","Kantoorkosten","Jan","Feb","Mrt","Apr","Mei","Jun","Jul","Aug","Sep","Okt","Nov","Dec","JAAR"]
[null,"Kantoorhuur",{"$f":"INDEX(KantoorGepland[],MATCH(INDEX(KantoorVerschillen[],ROW()-ROW(KantoorVerschillen[[#Headers],[Jan]]),1),INDEX(KantoorGepland[],,1),0),MATCH(KantoorVerschillen[[#Headers],[Jan]],KantoorGepland[#Headers],0))-INDEX(KantoorWerkelijk[],MATCH(INDEX(KantoorVerschillen[],ROW()-ROW(KantoorVerschillen[[#Headers],[Jan]]),1),INDEX(KantoorGepland[],,1),0),MATCH(KantoorVerschillen[[#Headers],[Jan]],KantoorWerkelijk[#Headers],0))","v":{"v":0,"d":"€ 0.00"}},{"$f":"INDEX(KantoorGepland[],MATCH(INDEX(KantoorVerschillen[],ROW()-ROW(KantoorVerschillen[[#Headers],[Feb]]),1),INDEX(KantoorGepland[],,1),0),MATCH(KantoorVerschillen[[#Headers],[Feb]],KantoorGepland[#Headers],0))-INDEX(KantoorWerkelijk[],MATCH(INDEX(KantoorVerschillen[],ROW()-ROW(KantoorVerschillen[[#Headers],[Feb]]),1),INDEX(KantoorGepland[],,1),0),MATCH(KantoorVerschillen[[#Headers],[Feb]],KantoorWerkelijk[#Headers],0))","v":{"v":0,"d":"€ 0.00"}},{"$f":"INDEX(KantoorGepland[],MATCH(INDEX(KantoorVerschillen[],ROW()-ROW(KantoorVerschillen[[#Headers],[Mrt]]),1),INDEX(KantoorGepland[],,1),0),MATCH(KantoorVerschillen[[#Headers],[Mrt]],KantoorGepland[#Headers],0))-INDEX(KantoorWerkelijk[],MATCH(INDEX(KantoorVerschillen[],ROW()-ROW(KantoorVerschillen[[#Headers],[Mrt]]),1),INDEX(KantoorGepland[],,1),0),MATCH(KantoorVerschillen[[#Headers],[Mrt]],KantoorWerkelijk[#Headers],0))","v":{"v":0,"d":"€ 0.00"}},{"$f":"INDEX(KantoorGepland[],MATCH(INDEX(KantoorVerschillen[],ROW()-ROW(KantoorVerschillen[[#Headers],[Apr]]),1),INDEX(KantoorGepland[],,1),0),MATCH(KantoorVerschillen[[#Headers],[Apr]],KantoorGepland[#Headers],0))-INDEX(KantoorWerkelijk[],MATCH(INDEX(KantoorVerschillen[],ROW()-ROW(KantoorVerschillen[[#Headers],[Apr]]),1),INDEX(KantoorGepland[],,1),0),MATCH(KantoorVerschillen[[#Headers],[Apr]],KantoorWerkelijk[#Headers],0))","v":{"v":0,"d":"€ 0.00"}},{"$f":"INDEX(KantoorGepland[],MATCH(INDEX(KantoorVerschillen[],ROW()-ROW(KantoorVerschillen[[#Headers],[Mei]]),1),INDEX(KantoorGepland[],,1),0),MATCH(KantoorVerschillen[[#Headers],[Mei]],KantoorGepland[#Headers],0))-INDEX(KantoorWerkelijk[],MATCH(INDEX(KantoorVerschillen[],ROW()-ROW(KantoorVerschillen[[#Headers],[Mei]]),1),INDEX(KantoorGepland[],,1),0),MATCH(KantoorVerschillen[[#Headers],[Mei]],KantoorWerkelijk[#Headers],0))","v":{"v":0,"d":"€ 0.00"}},{"$f":"INDEX(KantoorGepland[],MATCH(INDEX(KantoorVerschillen[],ROW()-ROW(KantoorVerschillen[[#Headers],[Jun]]),1),INDEX(KantoorGepland[],,1),0),MATCH(KantoorVerschillen[[#Headers],[Jun]],KantoorGepland[#Headers],0))-INDEX(KantoorWerkelijk[],MATCH(INDEX(KantoorVerschillen[],ROW()-ROW(KantoorVerschillen[[#Headers],[Jun]]),1),INDEX(KantoorGepland[],,1),0),MATCH(KantoorVerschillen[[#Headers],[Jun]],KantoorWerkelijk[#Headers],0))","v":{"v":0,"d":"€ 0.00"}},{"$f":"INDEX(KantoorGepland[],MATCH(INDEX(KantoorVerschillen[],ROW()-ROW(KantoorVerschillen[[#Headers],[Jul]]),1),INDEX(KantoorGepland[],,1),0),MATCH(KantoorVerschillen[[#Headers],[Jul]],KantoorGepland[#Headers],0))-INDEX(KantoorWerkelijk[],MATCH(INDEX(KantoorVerschillen[],ROW()-ROW(KantoorVerschillen[[#Headers],[Jul]]),1),INDEX(KantoorGepland[],,1),0),MATCH(KantoorVerschillen[[#Headers],[Jul]],KantoorWerkelijk[#Headers],0))","v":{"v":9800,"d":"€ 9,800.00"}},{"$f":"INDEX(KantoorGepland[],MATCH(INDEX(KantoorVerschillen[],ROW()-ROW(KantoorVerschillen[[#Headers],[Aug]]),1),INDEX(KantoorGepland[],,1),0),MATCH(KantoorVerschillen[[#Headers],[Aug]],KantoorGepland[#Headers],0))-INDEX(KantoorWerkelijk[],MATCH(INDEX(KantoorVerschillen[],ROW()-ROW(KantoorVerschillen[[#Headers],[Aug]]),1),INDEX(KantoorGepland[],,1),0),MATCH(KantoorVerschillen[[#Headers],[Aug]],KantoorWerkelijk[#Headers],0))","v":{"v":9800,"d":"€ 9,800.00"}},{"$f":"INDEX(KantoorGepland[],MATCH(INDEX(KantoorVerschillen[],ROW()-ROW(KantoorVerschillen[[#Headers],[Sep]]),1),INDEX(KantoorGepland[],,1),0),MATCH(KantoorVerschillen[[#Headers],[Sep]],KantoorGepland[#Headers],0))-INDEX(KantoorWerkelijk[],MATCH(INDEX(KantoorVerschillen[],ROW()-ROW(KantoorVerschillen[[#Headers],[Sep]]),1),INDEX(KantoorGepland[],,1),0),MATCH(KantoorVerschillen[[#Headers],[Sep]],KantoorWerkelijk[#Headers],0))","v":{"v":9800,"d":"€ 9,800.00"}},{"$f":"INDEX(KantoorGepland[],MATCH(INDEX(KantoorVerschillen[],ROW()-ROW(KantoorVerschillen[[#Headers],[Okt]]),1),INDEX(KantoorGepland[],,1),0),MATCH(KantoorVerschillen[[#Headers],[Okt]],KantoorGepland[#Headers],0))-INDEX(KantoorWerkelijk[],MATCH(INDEX(KantoorVerschillen[],ROW()-ROW(KantoorVerschillen[[#Headers],[Okt]]),1),INDEX(KantoorGepland[],,1),0),MATCH(KantoorVerschillen[[#Headers],[Okt]],KantoorWerkelijk[#Headers],0))","v":{"v":9800,"d":"€ 9,800.00"}},{"$f":"INDEX(KantoorGepland[],MATCH(INDEX(KantoorVerschillen[],ROW()-ROW(KantoorVerschillen[[#Headers],[Nov]]),1),INDEX(KantoorGepland[],,1),0),MATCH(KantoorVerschillen[[#Headers],[Nov]],KantoorGepland[#Headers],0))-INDEX(KantoorWerkelijk[],MATCH(INDEX(KantoorVerschillen[],ROW()-ROW(KantoorVerschillen[[#Headers],[Nov]]),1),INDEX(KantoorGepland[],,1),0),MATCH(KantoorVerschillen[[#Headers],[Nov]],KantoorWerkelijk[#Headers],0))","v":{"v":9800,"d":"€ 9,800.00"}},{"$f":"INDEX(KantoorGepland[],MATCH(INDEX(KantoorVerschillen[],ROW()-ROW(KantoorVerschillen[[#Headers],[Dec]]),1),INDEX(KantoorGepland[],,1),0),MATCH(KantoorVerschillen[[#Headers],[Dec]],KantoorGepland[#Headers],0))-INDEX(KantoorWerkelijk[],MATCH(INDEX(KantoorVerschillen[],ROW()-ROW(KantoorVerschillen[[#Headers],[Dec]]),1),INDEX(KantoorGepland[],,1),0),MATCH(KantoorVerschillen[[#Headers],[Dec]],KantoorWerkelijk[#Headers],0))","v":{"v":9800,"d":"€ 9,800.00"}},{"$f":"SUM(KantoorVerschillen[[#This Row],[Jan]:[Dec]])","v":{"v":58800,"d":"€ 58,800.00"}}]
[null,"Gas",{"$f":"INDEX(KantoorGepland[],MATCH(INDEX(KantoorVerschillen[],ROW()-ROW(KantoorVerschillen[[#Headers],[Jan]]),1),INDEX(KantoorGepland[],,1),0),MATCH(KantoorVerschillen[[#Headers],[Jan]],KantoorGepland[#Headers],0))-INDEX(KantoorWerkelijk[],MATCH(INDEX(KantoorVerschillen[],ROW()-ROW(KantoorVerschillen[[#Headers],[Jan]]),1),INDEX(KantoorGepland[],,1),0),MATCH(KantoorVerschillen[[#Headers],[Jan]],KantoorWerkelijk[#Headers],0))","v":{"v":-4,"d":"€ -4.00"}},{"$f":"INDEX(KantoorGepland[],MATCH(INDEX(KantoorVerschillen[],ROW()-ROW(KantoorVerschillen[[#Headers],[Feb]]),1),INDEX(KantoorGepland[],,1),0),MATCH(KantoorVerschillen[[#Headers],[Feb]],KantoorGepland[#Headers],0))-INDEX(KantoorWerkelijk[],MATCH(INDEX(KantoorVerschillen[],ROW()-ROW(KantoorVerschillen[[#Headers],[Feb]]),1),INDEX(KantoorGepland[],,1),0),MATCH(KantoorVerschillen[[#Headers],[Feb]],KantoorWerkelijk[#Headers],0))","v":{"v":-30,"d":"€ -30.00"}},{"$f":"INDEX(KantoorGepland[],MATCH(INDEX(KantoorVerschillen[],ROW()-ROW(KantoorVerschillen[[#Headers],[Mrt]]),1),INDEX(KantoorGepland[],,1),0),MATCH(KantoorVerschillen[[#Headers],[Mrt]],KantoorGepland[#Headers],0))-INDEX(KantoorWerkelijk[],MATCH(INDEX(KantoorVerschillen[],ROW()-ROW(KantoorVerschillen[[#Headers],[Mrt]]),1),INDEX(KantoorGepland[],,1),0),MATCH(KantoorVerschillen[[#Headers],[Mrt]],KantoorWerkelijk[#Headers],0))","v":{"v":15,"d":"€ 15.00"}},{"$f":"INDEX(KantoorGepland[],MATCH(INDEX(KantoorVerschillen[],ROW()-ROW(KantoorVerschillen[[#Headers],[Apr]]),1),INDEX(KantoorGepland[],,1),0),MATCH(KantoorVerschillen[[#Headers],[Apr]],KantoorGepland[#Headers],0))-INDEX(KantoorWerkelijk[],MATCH(INDEX(KantoorVerschillen[],ROW()-ROW(KantoorVerschillen[[#Headers],[Apr]]),1),INDEX(KantoorGepland[],,1),0),MATCH(KantoorVerschillen[[#Headers],[Apr]],KantoorWerkelijk[#Headers],0))","v":{"v":-130,"d":"€ -130.00"}},{"$f":"INDEX(KantoorGepland[],MATCH(INDEX(KantoorVerschillen[],ROW()-ROW(KantoorVerschillen[[#Headers],[Mei]]),1),INDEX(KantoorGepland[],,1),0),MATCH(KantoorVerschillen[[#Headers],[Mei]],KantoorGepland[#Headers],0))-INDEX(KantoorWerkelijk[],MATCH(INDEX(KantoorVerschillen[],ROW()-ROW(KantoorVerschillen[[#Headers],[Mei]]),1),INDEX(KantoorGepland[],,1),0),MATCH(KantoorVerschillen[[#Headers],[Mei]],KantoorWerkelijk[#Headers],0))","v":{"v":13,"d":"€ 13.00"}},{"$f":"INDEX(KantoorGepland[],MATCH(INDEX(KantoorVerschillen[],ROW()-ROW(KantoorVerschillen[[#Headers],[Jun]]),1),INDEX(KantoorGepland[],,1),0),MATCH(KantoorVerschillen[[#Headers],[Jun]],KantoorGepland[#Headers],0))-INDEX(KantoorWerkelijk[],MATCH(INDEX(KantoorVerschillen[],ROW()-ROW(KantoorVerschillen[[#Headers],[Jun]]),1),INDEX(KantoorGepland[],,1),0),MATCH(KantoorVerschillen[[#Headers],[Jun]],KantoorWerkelijk[#Headers],0))","v":{"v":12,"d":"€ 12.00"}},{"$f":"INDEX(KantoorGepland[],MATCH(INDEX(KantoorVerschillen[],ROW()-ROW(KantoorVerschillen[[#Headers],[Jul]]),1),INDEX(KantoorGepland[],,1),0),MATCH(KantoorVerschillen[[#Headers],[Jul]],KantoorGepland[#Headers],0))-INDEX(KantoorWerkelijk[],MATCH(INDEX(KantoorVerschillen[],ROW()-ROW(KantoorVerschillen[[#Headers],[Jul]]),1),INDEX(KantoorGepland[],,1),0),MATCH(KantoorVerschillen[[#Headers],[Jul]],KantoorWerkelijk[#Headers],0))","v":{"v":100,"d":"€ 100.00"}},{"$f":"INDEX(KantoorGepland[],MATCH(INDEX(KantoorVerschillen[],ROW()-ROW(KantoorVerschillen[[#Headers],[Aug]]),1),INDEX(KantoorGepland[],,1),0),MATCH(KantoorVerschillen[[#Headers],[Aug]],KantoorGepland[#Headers],0))-INDEX(KantoorWerkelijk[],MATCH(INDEX(KantoorVerschillen[],ROW()-ROW(KantoorVerschillen[[#Headers],[Aug]]),1),INDEX(KantoorGepland[],,1),0),MATCH(KantoorVerschillen[[#Headers],[Aug]],KantoorWerkelijk[#Headers],0))","v":{"v":100,"d":"€ 100.00"}},{"$f":"INDEX(KantoorGepland[],MATCH(INDEX(KantoorVerschillen[],ROW()-ROW(KantoorVerschillen[[#Headers],[Sep]]),1),INDEX(KantoorGepland[],,1),0),MATCH(KantoorVerschillen[[#Headers],[Sep]],KantoorGepland[#Headers],0))-INDEX(KantoorWerkelijk[],MATCH(INDEX(KantoorVerschillen[],ROW()-ROW(KantoorVerschillen[[#Headers],[Sep]]),1),INDEX(KantoorGepland[],,1),0),MATCH(KantoorVerschillen[[#Headers],[Sep]],KantoorWerkelijk[#Headers],0))","v":{"v":100,"d":"€ 100.00"}},{"$f":"INDEX(KantoorGepland[],MATCH(INDEX(KantoorVerschillen[],ROW()-ROW(KantoorVerschillen[[#Headers],[Okt]]),1),INDEX(KantoorGepland[],,1),0),MATCH(KantoorVerschillen[[#Headers],[Okt]],KantoorGepland[#Headers],0))-INDEX(KantoorWerkelijk[],MATCH(INDEX(KantoorVerschillen[],ROW()-ROW(KantoorVerschillen[[#Headers],[Okt]]),1),INDEX(KantoorGepland[],,1),0),MATCH(KantoorVerschillen[[#Headers],[Okt]],KantoorWerkelijk[#Headers],0))","v":{"v":100,"d":"€ 100.00"}},{"$f":"INDEX(KantoorGepland[],MATCH(INDEX(KantoorVerschillen[],ROW()-ROW(KantoorVerschillen[[#Headers],[Nov]]),1),INDEX(KantoorGepland[],,1),0),MATCH(KantoorVerschillen[[#Headers],[Nov]],KantoorGepland[#Headers],0))-INDEX(KantoorWerkelijk[],MATCH(INDEX(KantoorVerschillen[],ROW()-ROW(KantoorVerschillen[[#Headers],[Nov]]),1),INDEX(KantoorGepland[],,1),0),MATCH(KantoorVerschillen[[#Headers],[Nov]],KantoorWerkelijk[#Headers],0))","v":{"v":400,"d":"€ 400.00"}},{"$f":"INDEX(KantoorGepland[],MATCH(INDEX(KantoorVerschillen[],ROW()-ROW(KantoorVerschillen[[#Headers],[Dec]]),1),INDEX(KantoorGepland[],,1),0),MATCH(KantoorVerschillen[[#Headers],[Dec]],KantoorGepland[#Headers],0))-INDEX(KantoorWerkelijk[],MATCH(INDEX(KantoorVerschillen[],ROW()-ROW(KantoorVerschillen[[#Headers],[Dec]]),1),INDEX(KantoorGepland[],,1),0),MATCH(KantoorVerschillen[[#Headers],[Dec]],KantoorWerkelijk[#Headers],0))","v":{"v":400,"d":"€ 400.00"}},{"$f":"SUM(KantoorVerschillen[[#This Row],[Jan]:[Dec]])","v":{"v":1076,"d":"€ 1,076.00"}}]
[null,"Elektriciteit",{"$f":"INDEX(KantoorGepland[],MATCH(INDEX(KantoorVerschillen[],ROW()-ROW(KantoorVerschillen[[#Headers],[Jan]]),1),INDEX(KantoorGepland[],,1),0),MATCH(KantoorVerschillen[[#Headers],[Jan]],KantoorGepland[#Headers],0))-INDEX(KantoorWerkelijk[],MATCH(INDEX(KantoorVerschillen[],ROW()-ROW(KantoorVerschillen[[#Headers],[Jan]]),1),INDEX(KantoorGepland[],,1),0),MATCH(KantoorVerschillen[[#Headers],[Jan]],KantoorWerkelijk[#Headers],0))","v":{"v":12,"d":"€ 12.00"}},{"$f":"INDEX(KantoorGepland[],MATCH(INDEX(KantoorVerschillen[],ROW()-ROW(KantoorVerschillen[[#Headers],[Feb]]),1),INDEX(KantoorGepland[],,1),0),MATCH(KantoorVerschillen[[#Headers],[Feb]],KantoorGepland[#Headers],0))-INDEX(KantoorWerkelijk[],MATCH(INDEX(KantoorVerschillen[],ROW()-ROW(KantoorVerschillen[[#Headers],[Feb]]),1),INDEX(KantoorGepland[],,1),0),MATCH(KantoorVerschillen[[#Headers],[Feb]],KantoorWerkelijk[#Headers],0))","v":{"v":22,"d":"€ 22.00"}},{"$f":"INDEX(KantoorGepland[],MATCH(INDEX(KantoorVerschillen[],ROW()-ROW(KantoorVerschillen[[#Headers],[Mrt]]),1),INDEX(KantoorGepland[],,1),0),MATCH(KantoorVerschillen[[#Headers],[Mrt]],KantoorGepland[#Headers],0))-INDEX(KantoorWerkelijk[],MATCH(INDEX(KantoorVerschillen[],ROW()-ROW(KantoorVerschillen[[#Headers],[Mrt]]),1),INDEX(KantoorGepland[],,1),0),MATCH(KantoorVerschillen[[#Headers],[Mrt]],KantoorWerkelijk[#Headers],0))","v":{"v":32,"d":"€ 32.00"}},{"$f":"INDEX(KantoorGepland[],MATCH(INDEX(KantoorVerschillen[],ROW()-ROW(KantoorVerschillen[[#Headers],[Apr]]),1),INDEX(KantoorGepland[],,1),0),MATCH(KantoorVerschillen[[#Headers],[Apr]],KantoorGepland[#Headers],0))-INDEX(KantoorWerkelijk[],MATCH(INDEX(KantoorVerschillen[],ROW()-ROW(KantoorVerschillen[[#Headers],[Apr]]),1),INDEX(KantoorGepland[],,1),0),MATCH(KantoorVerschillen[[#Headers],[Apr]],KantoorWerkelijk[#Headers],0))","v":{"v":1,"d":"€ 1.00"}},{"$f":"INDEX(KantoorGepland[],MATCH(INDEX(KantoorVerschillen[],ROW()-ROW(KantoorVerschillen[[#Headers],[Mei]]),1),INDEX(KantoorGepland[],,1),0),MATCH(KantoorVerschillen[[#Headers],[Mei]],KantoorGepland[#Headers],0))-INDEX(KantoorWerkelijk[],MATCH(INDEX(KantoorVerschillen[],ROW()-ROW(KantoorVerschillen[[#Headers],[Mei]]),1),INDEX(KantoorGepland[],,1),0),MATCH(KantoorVerschillen[[#Headers],[Mei]],KantoorWerkelijk[#Headers],0))","v":{"v":-6,"d":"€ -6.00"}},{"$f":"INDEX(KantoorGepland[],MATCH(INDEX(KantoorVerschillen[],ROW()-ROW(KantoorVerschillen[[#Headers],[Jun]]),1),INDEX(KantoorGepland[],,1),0),MATCH(KantoorVerschillen[[#Headers],[Jun]],KantoorGepland[#Headers],0))-INDEX(KantoorWerkelijk[],MATCH(INDEX(KantoorVerschillen[],ROW()-ROW(KantoorVerschillen[[#Headers],[Jun]]),1),INDEX(KantoorGepland[],,1),0),MATCH(KantoorVerschillen[[#Headers],[Jun]],KantoorWerkelijk[#Headers],0))","v":{"v":10,"d":"€ 10.00"}},{"$f":"INDEX(KantoorGepland[],MATCH(INDEX(KantoorVerschillen[],ROW()-ROW(KantoorVerschillen[[#Headers],[Jul]]),1),INDEX(KantoorGepland[],,1),0),MATCH(KantoorVerschillen[[#Headers],[Jul]],KantoorGepland[#Headers],0))-INDEX(KantoorWerkelijk[],MATCH(INDEX(KantoorVerschillen[],ROW()-ROW(KantoorVerschillen[[#Headers],[Jul]]),1),INDEX(KantoorGepland[],,1),0),MATCH(KantoorVerschillen[[#Headers],[Jul]],KantoorWerkelijk[#Headers],0))","v":{"v":300,"d":"€ 300.00"}},{"$f":"INDEX(KantoorGepland[],MATCH(INDEX(KantoorVerschillen[],ROW()-ROW(KantoorVerschillen[[#Headers],[Aug]]),1),INDEX(KantoorGepland[],,1),0),MATCH(KantoorVerschillen[[#Headers],[Aug]],KantoorGepland[#Headers],0))-INDEX(KantoorWerkelijk[],MATCH(INDEX(KantoorVerschillen[],ROW()-ROW(KantoorVerschillen[[#Headers],[Aug]]),1),INDEX(KantoorGepland[],,1),0),MATCH(KantoorVerschillen[[#Headers],[Aug]],KantoorWerkelijk[#Headers],0))","v":{"v":300,"d":"€ 300.00"}},{"$f":"INDEX(KantoorGepland[],MATCH(INDEX(KantoorVerschillen[],ROW()-ROW(KantoorVerschillen[[#Headers],[Sep]]),1),INDEX(KantoorGepland[],,1),0),MATCH(KantoorVerschillen[[#Headers],[Sep]],KantoorGepland[#Headers],0))-INDEX(KantoorWerkelijk[],MATCH(INDEX(KantoorVerschillen[],ROW()-ROW(KantoorVerschillen[[#Headers],[Sep]]),1),INDEX(KantoorGepland[],,1),0),MATCH(KantoorVerschillen[[#Headers],[Sep]],KantoorWerkelijk[#Headers],0))","v":{"v":300,"d":"€ 300.00"}},{"$f":"INDEX(KantoorGepland[],MATCH(INDEX(KantoorVerschillen[],ROW()-ROW(KantoorVerschillen[[#Headers],[Okt]]),1),INDEX(KantoorGepland[],,1),0),MATCH(KantoorVerschillen[[#Headers],[Okt]],KantoorGepland[#Headers],0))-INDEX(KantoorWerkelijk[],MATCH(INDEX(KantoorVerschillen[],ROW()-ROW(KantoorVerschillen[[#Headers],[Okt]]),1),INDEX(KantoorGepland[],,1),0),MATCH(KantoorVerschillen[[#Headers],[Okt]],KantoorWerkelijk[#Headers],0))","v":{"v":300,"d":"€ 300.00"}},{"$f":"INDEX(KantoorGepland[],MATCH(INDEX(KantoorVerschillen[],ROW()-ROW(KantoorVerschillen[[#Headers],[Nov]]),1),INDEX(KantoorGepland[],,1),0),MATCH(KantoorVerschillen[[#Headers],[Nov]],KantoorGepland[#Headers],0))-INDEX(KantoorWerkelijk[],MATCH(INDEX(KantoorVerschillen[],ROW()-ROW(KantoorVerschillen[[#Headers],[Nov]]),1),INDEX(KantoorGepland[],,1),0),MATCH(KantoorVerschillen[[#Headers],[Nov]],KantoorWerkelijk[#Headers],0))","v":{"v":300,"d":"€ 300.00"}},{"$f":"INDEX(KantoorGepland[],MATCH(INDEX(KantoorVerschillen[],ROW()-ROW(KantoorVerschillen[[#Headers],[Dec]]),1),INDEX(KantoorGepland[],,1),0),MATCH(KantoorVerschillen[[#Headers],[Dec]],KantoorGepland[#Headers],0))-INDEX(KantoorWerkelijk[],MATCH(INDEX(KantoorVerschillen[],ROW()-ROW(KantoorVerschillen[[#Headers],[Dec]]),1),INDEX(KantoorGepland[],,1),0),MATCH(KantoorVerschillen[[#Headers],[Dec]],KantoorWerkelijk[#Headers],0))","v":{"v":300,"d":"€ 300.00"}},{"$f":"SUM(KantoorVerschillen[[#This Row],[Jan]:[Dec]])","v":{"v":1871,"d":"€ 1,871.00"}}]
[null,"Water",{"$f":"INDEX(KantoorGepland[],MATCH(INDEX(KantoorVerschillen[],ROW()-ROW(KantoorVerschillen[[#Headers],[Jan]]),1),INDEX(KantoorGepland[],,1),0),MATCH(KantoorVerschillen[[#Headers],[Jan]],KantoorGepland[#Headers],0))-INDEX(KantoorWerkelijk[],MATCH(INDEX(KantoorVerschillen[],ROW()-ROW(KantoorVerschillen[[#Headers],[Jan]]),1),INDEX(KantoorGepland[],,1),0),MATCH(KantoorVerschillen[[#Headers],[Jan]],KantoorWerkelijk[#Headers],0))","v":{"v":5,"d":"€ 5.00"}},{"$f":"INDEX(KantoorGepland[],MATCH(INDEX(KantoorVerschillen[],ROW()-ROW(KantoorVerschillen[[#Headers],[Feb]]),1),INDEX(KantoorGepland[],,1),0),MATCH(KantoorVerschillen[[#Headers],[Feb]],KantoorGepland[#Headers],0))-INDEX(KantoorWerkelijk[],MATCH(INDEX(KantoorVerschillen[],ROW()-ROW(KantoorVerschillen[[#Headers],[Feb]]),1),INDEX(KantoorGepland[],,1),0),MATCH(KantoorVerschillen[[#Headers],[Feb]],KantoorWerkelijk[#Headers],0))","v":{"v":7,"d":"€ 7.00"}},{"$f":"INDEX(KantoorGepland[],MATCH(INDEX(KantoorVerschillen[],ROW()-ROW(KantoorVerschillen[[#Headers],[Mrt]]),1),INDEX(KantoorGepland[],,1),0),MATCH(KantoorVerschillen[[#Headers],[Mrt]],KantoorGepland[#Headers],0))-INDEX(KantoorWerkelijk[],MATCH(INDEX(KantoorVerschillen[],ROW()-ROW(KantoorVerschillen[[#Headers],[Mrt]]),1),INDEX(KantoorGepland[],,1),0),MATCH(KantoorVerschillen[[#Headers],[Mrt]],KantoorWerkelijk[#Headers],0))","v":{"v":6,"d":"€ 6.00"}},{"$f":"INDEX(KantoorGepland[],MATCH(INDEX(KantoorVerschillen[],ROW()-ROW(KantoorVerschillen[[#Headers],[Apr]]),1),INDEX(KantoorGepland[],,1),0),MATCH(KantoorVerschillen[[#Headers],[Apr]],KantoorGepland[#Headers],0))-INDEX(KantoorWerkelijk[],MATCH(INDEX(KantoorVerschillen[],ROW()-ROW(KantoorVerschillen[[#Headers],[Apr]]),1),INDEX(KantoorGepland[],,1),0),MATCH(KantoorVerschillen[[#Headers],[Apr]],KantoorWerkelijk[#Headers],0))","v":{"v":4,"d":"€ 4.00"}},{"$f":"INDEX(KantoorGepland[],MATCH(INDEX(KantoorVerschillen[],ROW()-ROW(KantoorVerschillen[[#Headers],[Mei]]),1),INDEX(KantoorGepland[],,1),0),MATCH(KantoorVerschillen[[#Headers],[Mei]],KantoorGepland[#Headers],0))-INDEX(KantoorWerkelijk[],MATCH(INDEX(KantoorVerschillen[],ROW()-ROW(KantoorVerschillen[[#Headers],[Mei]]),1),INDEX(KantoorGepland[],,1),0),MATCH(KantoorVerschillen[[#Headers],[Mei]],KantoorWerkelijk[#Headers],0))","v":{"v":6,"d":"€ 6.00"}},{"$f":"INDEX(KantoorGepland[],MATCH(INDEX(KantoorVerschillen[],ROW()-ROW(KantoorVerschillen[[#Headers],[Jun]]),1),INDEX(KantoorGepland[],,1),0),MATCH(KantoorVerschillen[[#Headers],[Jun]],KantoorGepland[#Headers],0))-INDEX(KantoorWerkelijk[],MATCH(INDEX(KantoorVerschillen[],ROW()-ROW(KantoorVerschillen[[#Headers],[Jun]]),1),INDEX(KantoorGepland[],,1),0),MATCH(KantoorVerschillen[[#Headers],[Jun]],KantoorWerkelijk[#Headers],0))","v":{"v":4,"d":"€ 4.00"}},{"$f":"INDEX(KantoorGepland[],MATCH(INDEX(KantoorVerschillen[],ROW()-ROW(KantoorVerschillen[[#Headers],[Jul]]),1),INDEX(KantoorGepland[],,1),0),MATCH(KantoorVerschillen[[#Headers],[Jul]],KantoorGepland[#Headers],0))-INDEX(KantoorWerkelijk[],MATCH(INDEX(KantoorVerschillen[],ROW()-ROW(KantoorVerschillen[[#Headers],[Jul]]),1),INDEX(KantoorGepland[],,1),0),MATCH(KantoorVerschillen[[#Headers],[Jul]],KantoorWerkelijk[#Headers],0))","v":{"v":40,"d":"€ 40.00"}},{"$f":"INDEX(KantoorGepland[],MATCH(INDEX(KantoorVerschillen[],ROW()-ROW(KantoorVerschillen[[#Headers],[Aug]]),1),INDEX(KantoorGepland[],,1),0),MATCH(KantoorVerschillen[[#Headers],[Aug]],KantoorGepland[#Headers],0))-INDEX(KantoorWerkelijk[],MATCH(INDEX(KantoorVerschillen[],ROW()-ROW(KantoorVerschillen[[#Headers],[Aug]]),1),INDEX(KantoorGepland[],,1),0),MATCH(KantoorVerschillen[[#Headers],[Aug]],KantoorWerkelijk[#Headers],0))","v":{"v":40,"d":"€ 40.00"}},{"$f":"INDEX(KantoorGepland[],MATCH(INDEX(KantoorVerschillen[],ROW()-ROW(KantoorVerschillen[[#Headers],[Sep]]),1),INDEX(KantoorGepland[],,1),0),MATCH(KantoorVerschillen[[#Headers],[Sep]],KantoorGepland[#Headers],0))-INDEX(KantoorWerkelijk[],MATCH(INDEX(KantoorVerschillen[],ROW()-ROW(KantoorVerschillen[[#Headers],[Sep]]),1),INDEX(KantoorGepland[],,1),0),MATCH(KantoorVerschillen[[#Headers],[Sep]],KantoorWerkelijk[#Headers],0))","v":{"v":40,"d":"€ 40.00"}},{"$f":"INDEX(KantoorGepland[],MATCH(INDEX(KantoorVerschillen[],ROW()-ROW(KantoorVerschillen[[#Headers],[Okt]]),1),INDEX(KantoorGepland[],,1),0),MATCH(KantoorVerschillen[[#Headers],[Okt]],KantoorGepland[#Headers],0))-INDEX(KantoorWerkelijk[],MATCH(INDEX(KantoorVerschillen[],ROW()-ROW(KantoorVerschillen[[#Headers],[Okt]]),1),INDEX(KantoorGepland[],,1),0),MATCH(KantoorVerschillen[[#Headers],[Okt]],KantoorWerkelijk[#Headers],0))","v":{"v":40,"d":"€ 40.00"}},{"$f":"INDEX(KantoorGepland[],MATCH(INDEX(KantoorVerschillen[],ROW()-ROW(KantoorVerschillen[[#Headers],[Nov]]),1),INDEX(KantoorGepland[],,1),0),MATCH(KantoorVerschillen[[#Headers],[Nov]],KantoorGepland[#Headers],0))-INDEX(KantoorWerkelijk[],MATCH(INDEX(KantoorVerschillen[],ROW()-ROW(KantoorVerschillen[[#Headers],[Nov]]),1),INDEX(KantoorGepland[],,1),0),MATCH(KantoorVerschillen[[#Headers],[Nov]],KantoorWerkelijk[#Headers],0))","v":{"v":40,"d":"€ 40.00"}},{"$f":"INDEX(KantoorGepland[],MATCH(INDEX(KantoorVerschillen[],ROW()-ROW(KantoorVerschillen[[#Headers],[Dec]]),1),INDEX(KantoorGepland[],,1),0),MATCH(KantoorVerschillen[[#Headers],[Dec]],KantoorGepland[#Headers],0))-INDEX(KantoorWerkelijk[],MATCH(INDEX(KantoorVerschillen[],ROW()-ROW(KantoorVerschillen[[#Headers],[Dec]]),1),INDEX(KantoorGepland[],,1),0),MATCH(KantoorVerschillen[[#Headers],[Dec]],KantoorWerkelijk[#Headers],0))","v":{"v":40,"d":"€ 40.00"}},{"$f":"SUM(KantoorVerschillen[[#This Row],[Jan]:[Dec]])","v":{"v":272,"d":"€ 272.00"}}]
[null,"Telefoon",{"$f":"INDEX(KantoorGepland[],MATCH(INDEX(KantoorVerschillen[],ROW()-ROW(KantoorVerschillen[[#Headers],[Jan]]),1),INDEX(KantoorGepland[],,1),0),MATCH(KantoorVerschillen[[#Headers],[Jan]],KantoorGepland[#Headers],0))-INDEX(KantoorWerkelijk[],MATCH(INDEX(KantoorVerschillen[],ROW()-ROW(KantoorVerschillen[[#Headers],[Jan]]),1),INDEX(KantoorGepland[],,1),0),MATCH(KantoorVerschillen[[#Headers],[Jan]],KantoorWerkelijk[#Headers],0))","v":{"v":26,"d":"€ 26.00"}},{"$f":"INDEX(KantoorGepland[],MATCH(INDEX(KantoorVerschillen[],ROW()-ROW(KantoorVerschillen[[#Headers],[Feb]]),1),INDEX(KantoorGepland[],,1),0),MATCH(KantoorVerschillen[[#Headers],[Feb]],KantoorGepland[#Headers],0))-INDEX(KantoorWerkelijk[],MATCH(INDEX(KantoorVerschillen[],ROW()-ROW(KantoorVerschillen[[#Headers],[Feb]]),1),INDEX(KantoorGepland[],,1),0),MATCH(KantoorVerschillen[[#Headers],[Feb]],KantoorWerkelijk[#Headers],0))","v":{"v":15,"d":"€ 15.00"}},{"$f":"INDEX(KantoorGepland[],MATCH(INDEX(KantoorVerschillen[],ROW()-ROW(KantoorVerschillen[[#Headers],[Mrt]]),1),INDEX(KantoorGepland[],,1),0),MATCH(KantoorVerschillen[[#Headers],[Mrt]],KantoorGepland[#Headers],0))-INDEX(KantoorWerkelijk[],MATCH(INDEX(KantoorVerschillen[],ROW()-ROW(KantoorVerschillen[[#Headers],[Mrt]]),1),INDEX(KantoorGepland[],,1),0),MATCH(KantoorVerschillen[[#Headers],[Mrt]],KantoorWerkelijk[#Headers],0))","v":{"v":-15,"d":"€ -15.00"}},{"$f":"INDEX(KantoorGepland[],MATCH(INDEX(KantoorVerschillen[],ROW()-ROW(KantoorVerschillen[[#Headers],[Apr]]),1),INDEX(KantoorGepland[],,1),0),MATCH(KantoorVerschillen[[#Headers],[Apr]],KantoorGepland[#Headers],0))-INDEX(KantoorWerkelijk[],MATCH(INDEX(KantoorVerschillen[],ROW()-ROW(KantoorVerschillen[[#Headers],[Apr]]),1),INDEX(KantoorGepland[],,1),0),MATCH(KantoorVerschillen[[#Headers],[Apr]],KantoorWerkelijk[#Headers],0))","v":{"v":5,"d":"€ 5.00"}},{"$f":"INDEX(KantoorGepland[],MATCH(INDEX(KantoorVerschillen[],ROW()-ROW(KantoorVerschillen[[#Headers],[Mei]]),1),INDEX(KantoorGepland[],,1),0),MATCH(KantoorVerschillen[[#Headers],[Mei]],KantoorGepland[#Headers],0))-INDEX(KantoorWerkelijk[],MATCH(INDEX(KantoorVerschillen[],ROW()-ROW(KantoorVerschillen[[#Headers],[Mei]]),1),INDEX(KantoorGepland[],,1),0),MATCH(KantoorVerschillen[[#Headers],[Mei]],KantoorWerkelijk[#Headers],0))","v":{"v":5,"d":"€ 5.00"}},{"$f":"INDEX(KantoorGepland[],MATCH(INDEX(KantoorVerschillen[],ROW()-ROW(KantoorVerschillen[[#Headers],[Jun]]),1),INDEX(KantoorGepland[],,1),0),MATCH(KantoorVerschillen[[#Headers],[Jun]],KantoorGepland[#Headers],0))-INDEX(KantoorWerkelijk[],MATCH(INDEX(KantoorVerschillen[],ROW()-ROW(KantoorVerschillen[[#Headers],[Jun]]),1),INDEX(KantoorGepland[],,1),0),MATCH(KantoorVerschillen[[#Headers],[Jun]],KantoorWerkelijk[#Headers],0))","v":{"v":30,"d":"€ 30.00"}},{"$f":"INDEX(KantoorGepland[],MATCH(INDEX(KantoorVerschillen[],ROW()-ROW(KantoorVerschillen[[#Headers],[Jul]]),1),INDEX(KantoorGepland[],,1),0),MATCH(KantoorVerschillen[[#Headers],[Jul]],KantoorGepland[#Headers],0))-INDEX(KantoorWerkelijk[],MATCH(INDEX(KantoorVerschillen[],ROW()-ROW(KantoorVerschillen[[#Headers],[Jul]]),1),INDEX(KantoorGepland[],,1),0),MATCH(KantoorVerschillen[[#Headers],[Jul]],KantoorWerkelijk[#Headers],0))","v":{"v":250,"d":"€ 250.00"}},{"$f":"INDEX(KantoorGepland[],MATCH(INDEX(KantoorVerschillen[],ROW()-ROW(KantoorVerschillen[[#Headers],[Aug]]),1),INDEX(KantoorGepland[],,1),0),MATCH(KantoorVerschillen[[#Headers],[Aug]],KantoorGepland[#Headers],0))-INDEX(KantoorWerkelijk[],MATCH(INDEX(KantoorVerschillen[],ROW()-ROW(KantoorVerschillen[[#Headers],[Aug]]),1),INDEX(KantoorGepland[],,1),0),MATCH(KantoorVerschillen[[#Headers],[Aug]],KantoorWerkelijk[#Headers],0))","v":{"v":250,"d":"€ 250.00"}},{"$f":"INDEX(KantoorGepland[],MATCH(INDEX(KantoorVerschillen[],ROW()-ROW(KantoorVerschillen[[#Headers],[Sep]]),1),INDEX(KantoorGepland[],,1),0),MATCH(KantoorVerschillen[[#Headers],[Sep]],KantoorGepland[#Headers],0))-INDEX(KantoorWerkelijk[],MATCH(INDEX(KantoorVerschillen[],ROW()-ROW(KantoorVerschillen[[#Headers],[Sep]]),1),INDEX(KantoorGepland[],,1),0),MATCH(KantoorVerschillen[[#Headers],[Sep]],KantoorWerkelijk[#Headers],0))","v":{"v":250,"d":"€ 250.00"}},{"$f":"INDEX(KantoorGepland[],MATCH(INDEX(KantoorVerschillen[],ROW()-ROW(KantoorVerschillen[[#Headers],[Okt]]),1),INDEX(KantoorGepland[],,1),0),MATCH(KantoorVerschillen[[#Headers],[Okt]],KantoorGepland[#Headers],0))-INDEX(KantoorWerkelijk[],MATCH(INDEX(KantoorVerschillen[],ROW()-ROW(KantoorVerschillen[[#Headers],[Okt]]),1),INDEX(KantoorGepland[],,1),0),MATCH(KantoorVerschillen[[#Headers],[Okt]],KantoorWerkelijk[#Headers],0))","v":{"v":250,"d":"€ 250.00"}},{"$f":"INDEX(KantoorGepland[],MATCH(INDEX(KantoorVerschillen[],ROW()-ROW(KantoorVerschillen[[#Headers],[Nov]]),1),INDEX(KantoorGepland[],,1),0),MATCH(KantoorVerschillen[[#Headers],[Nov]],KantoorGepland[#Headers],0))-INDEX(KantoorWerkelijk[],MATCH(INDEX(KantoorVerschillen[],ROW()-ROW(KantoorVerschillen[[#Headers],[Nov]]),1),INDEX(KantoorGepland[],,1),0),MATCH(KantoorVerschillen[[#Headers],[Nov]],KantoorWerkelijk[#Headers],0))","v":{"v":250,"d":"€ 250.00"}},{"$f":"INDEX(KantoorGepland[],MATCH(INDEX(KantoorVerschillen[],ROW()-ROW(KantoorVerschillen[[#Headers],[Dec]]),1),INDEX(KantoorGepland[],,1),0),MATCH(KantoorVerschillen[[#Headers],[Dec]],KantoorGepland[#Headers],0))-INDEX(KantoorWerkelijk[],MATCH(INDEX(KantoorVerschillen[],ROW()-ROW(KantoorVerschillen[[#Headers],[Dec]]),1),INDEX(KantoorGepland[],,1),0),MATCH(KantoorVerschillen[[#Headers],[Dec]],KantoorWerkelijk[#Headers],0))","v":{"v":250,"d":"€ 250.00"}},{"$f":"SUM(KantoorVerschillen[[#This Row],[Jan]:[Dec]])","v":{"v":1566,"d":"€ 1,566.00"}}]
[null,"Internettoegang",{"$f":"INDEX(KantoorGepland[],MATCH(INDEX(KantoorVerschillen[],ROW()-ROW(KantoorVerschillen[[#Headers],[Jan]]),1),INDEX(KantoorGepland[],,1),0),MATCH(KantoorVerschillen[[#Headers],[Jan]],KantoorGepland[#Headers],0))-INDEX(KantoorWerkelijk[],MATCH(INDEX(KantoorVerschillen[],ROW()-ROW(KantoorVerschillen[[#Headers],[Jan]]),1),INDEX(KantoorGepland[],,1),0),MATCH(KantoorVerschillen[[#Headers],[Jan]],KantoorWerkelijk[#Headers],0))","v":{"v":0,"d":"€ 0.00"}},{"$f":"INDEX(KantoorGepland[],MATCH(INDEX(KantoorVerschillen[],ROW()-ROW(KantoorVerschillen[[#Headers],[Feb]]),1),INDEX(KantoorGepland[],,1),0),MATCH(KantoorVerschillen[[#Headers],[Feb]],KantoorGepland[#Headers],0))-INDEX(KantoorWerkelijk[],MATCH(INDEX(KantoorVerschillen[],ROW()-ROW(KantoorVerschillen[[#Headers],[Feb]]),1),INDEX(KantoorGepland[],,1),0),MATCH(KantoorVerschillen[[#Headers],[Feb]],KantoorWerkelijk[#Headers],0))","v":{"v":0,"d":"€ 0.00"}},{"$f":"INDEX(KantoorGepland[],MATCH(INDEX(KantoorVerschillen[],ROW()-ROW(KantoorVerschillen[[#Headers],[Mrt]]),1),INDEX(KantoorGepland[],,1),0),MATCH(KantoorVerschillen[[#Headers],[Mrt]],KantoorGepland[#Headers],0))-INDEX(KantoorWerkelijk[],MATCH(INDEX(KantoorVerschillen[],ROW()-ROW(KantoorVerschillen[[#Headers],[Mrt]]),1),INDEX(KantoorGepland[],,1),0),MATCH(KantoorVerschillen[[#Headers],[Mrt]],KantoorWerkelijk[#Headers],0))","v":{"v":0,"d":"€ 0.00"}},{"$f":"INDEX(KantoorGepland[],MATCH(INDEX(KantoorVerschillen[],ROW()-ROW(KantoorVerschillen[[#Headers],[Apr]]),1),INDEX(KantoorGepland[],,1),0),MATCH(KantoorVerschillen[[#Headers],[Apr]],KantoorGepland[#Headers],0))-INDEX(KantoorWerkelijk[],MATCH(INDEX(KantoorVerschillen[],ROW()-ROW(KantoorVerschillen[[#Headers],[Apr]]),1),INDEX(KantoorGepland[],,1),0),MATCH(KantoorVerschillen[[#Headers],[Apr]],KantoorWerkelijk[#Headers],0))","v":{"v":0,"d":"€ 0.00"}},{"$f":"INDEX(KantoorGepland[],MATCH(INDEX(KantoorVerschillen[],ROW()-ROW(KantoorVerschillen[[#Headers],[Mei]]),1),INDEX(KantoorGepland[],,1),0),MATCH(KantoorVerschillen[[#Headers],[Mei]],KantoorGepland[#Headers],0))-INDEX(KantoorWerkelijk[],MATCH(INDEX(KantoorVerschillen[],ROW()-ROW(KantoorVerschillen[[#Headers],[Mei]]),1),INDEX(KantoorGepland[],,1),0),MATCH(KantoorVerschillen[[#Headers],[Mei]],KantoorWerkelijk[#Headers],0))","v":{"v":0,"d":"€ 0.00"}},{"$f":"INDEX(KantoorGepland[],MATCH(INDEX(KantoorVerschillen[],ROW()-ROW(KantoorVerschillen[[#Headers],[Jun]]),1),INDEX(KantoorGepland[],,1),0),MATCH(KantoorVerschillen[[#Headers],[Jun]],KantoorGepland[#Headers],0))-INDEX(KantoorWerkelijk[],MATCH(INDEX(KantoorVerschillen[],ROW()-ROW(KantoorVerschillen[[#Headers],[Jun]]),1),INDEX(KantoorGepland[],,1),0),MATCH(KantoorVerschillen[[#Headers],[Jun]],KantoorWerkelijk[#Headers],0))","v":{"v":0,"d":"€ 0.00"}},{"$f":"INDEX(KantoorGepland[],MATCH(INDEX(KantoorVerschillen[],ROW()-ROW(KantoorVerschillen[[#Headers],[Jul]]),1),INDEX(KantoorGepland[],,1),0),MATCH(KantoorVerschillen[[#Headers],[Jul]],KantoorGepland[#Headers],0))-INDEX(KantoorWerkelijk[],MATCH(INDEX(KantoorVerschillen[],ROW()-ROW(KantoorVerschillen[[#Headers],[Jul]]),1),INDEX(KantoorGepland[],,1),0),MATCH(KantoorVerschillen[[#Headers],[Jul]],KantoorWerkelijk[#Headers],0))","v":{"v":180,"d":"€ 180.00"}},{"$f":"INDEX(KantoorGepland[],MATCH(INDEX(KantoorVerschillen[],ROW()-ROW(KantoorVerschillen[[#Headers],[Aug]]),1),INDEX(KantoorGepland[],,1),0),MATCH(KantoorVerschillen[[#Headers],[Aug]],KantoorGepland[#Headers],0))-INDEX(KantoorWerkelijk[],MATCH(INDEX(KantoorVerschillen[],ROW()-ROW(KantoorVerschillen[[#Headers],[Aug]]),1),INDEX(KantoorGepland[],,1),0),MATCH(KantoorVerschillen[[#Headers],[Aug]],KantoorWerkelijk[#Headers],0))","v":{"v":180,"d":"€ 180.00"}},{"$f":"INDEX(KantoorGepland[],MATCH(INDEX(KantoorVerschillen[],ROW()-ROW(KantoorVerschillen[[#Headers],[Sep]]),1),INDEX(KantoorGepland[],,1),0),MATCH(KantoorVerschillen[[#Headers],[Sep]],KantoorGepland[#Headers],0))-INDEX(KantoorWerkelijk[],MATCH(INDEX(KantoorVerschillen[],ROW()-ROW(KantoorVerschillen[[#Headers],[Sep]]),1),INDEX(KantoorGepland[],,1),0),MATCH(KantoorVerschillen[[#Headers],[Sep]],KantoorWerkelijk[#Headers],0))","v":{"v":180,"d":"€ 180.00"}},{"$f":"INDEX(KantoorGepland[],MATCH(INDEX(KantoorVerschillen[],ROW()-ROW(KantoorVerschillen[[#Headers],[Okt]]),1),INDEX(KantoorGepland[],,1),0),MATCH(KantoorVerschillen[[#Headers],[Okt]],KantoorGepland[#Headers],0))-INDEX(KantoorWerkelijk[],MATCH(INDEX(KantoorVerschillen[],ROW()-ROW(KantoorVerschillen[[#Headers],[Okt]]),1),INDEX(KantoorGepland[],,1),0),MATCH(KantoorVerschillen[[#Headers],[Okt]],KantoorWerkelijk[#Headers],0))","v":{"v":180,"d":"€ 180.00"}},{"$f":"INDEX(KantoorGepland[],MATCH(INDEX(KantoorVerschillen[],ROW()-ROW(KantoorVerschillen[[#Headers],[Nov]]),1),INDEX(KantoorGepland[],,1),0),MATCH(KantoorVerschillen[[#Headers],[Nov]],KantoorGepland[#Headers],0))-INDEX(KantoorWerkelijk[],MATCH(INDEX(KantoorVerschillen[],ROW()-ROW(KantoorVerschillen[[#Headers],[Nov]]),1),INDEX(KantoorGepland[],,1),0),MATCH(KantoorVerschillen[[#Headers],[Nov]],KantoorWerkelijk[#Headers],0))","v":{"v":180,"d":"€ 180.00"}},{"$f":"INDEX(KantoorGepland[],MATCH(INDEX(KantoorVerschillen[],ROW()-ROW(KantoorVerschillen[[#Headers],[Dec]]),1),INDEX(KantoorGepland[],,1),0),MATCH(KantoorVerschillen[[#Headers],[Dec]],KantoorGepland[#Headers],0))-INDEX(KantoorWerkelijk[],MATCH(INDEX(KantoorVerschillen[],ROW()-ROW(KantoorVerschillen[[#Headers],[Dec]]),1),INDEX(KantoorGepland[],,1),0),MATCH(KantoorVerschillen[[#Headers],[Dec]],KantoorWerkelijk[#Headers],0))","v":{"v":180,"d":"€ 180.00"}},{"$f":"SUM(KantoorVerschillen[[#This Row],[Jan]:[Dec]])","v":{"v":1080,"d":"€ 1,080.00"}}]
[null,"Kantoorbenodigdheden",{"$f":"INDEX(KantoorGepland[],MATCH(INDEX(KantoorVerschillen[],ROW()-ROW(KantoorVerschillen[[#Headers],[Jan]]),1),INDEX(KantoorGepland[],,1),0),MATCH(KantoorVerschillen[[#Headers],[Jan]],KantoorGepland[#Headers],0))-INDEX(KantoorWerkelijk[],MATCH(INDEX(KantoorVerschillen[],ROW()-ROW(KantoorVerschillen[[#Headers],[Jan]]),1),INDEX(KantoorGepland[],,1),0),MATCH(KantoorVerschillen[[#Headers],[Jan]],KantoorWerkelijk[#Headers],0))","v":{"v":-56,"d":"€ -56.00"}},{"$f":"INDEX(KantoorGepland[],MATCH(INDEX(KantoorVerschillen[],ROW()-ROW(KantoorVerschillen[[#Headers],[Feb]]),1),INDEX(KantoorGepland[],,1),0),MATCH(KantoorVerschillen[[#Headers],[Feb]],KantoorGepland[#Headers],0))-INDEX(KantoorWerkelijk[],MATCH(INDEX(KantoorVerschillen[],ROW()-ROW(KantoorVerschillen[[#Headers],[Feb]]),1),INDEX(KantoorGepland[],,1),0),MATCH(KantoorVerschillen[[#Headers],[Feb]],KantoorWerkelijk[#Headers],0))","v":{"v":58,"d":"€ 58.00"}},{"$f":"INDEX(KantoorGepland[],MATCH(INDEX(KantoorVerschillen[],ROW()-ROW(KantoorVerschillen[[#Headers],[Mrt]]),1),INDEX(KantoorGepland[],,1),0),MATCH(KantoorVerschillen[[#Headers],[Mrt]],KantoorGepland[#Headers],0))-INDEX(KantoorWerkelijk[],MATCH(INDEX(KantoorVerschillen[],ROW()-ROW(KantoorVerschillen[[#Headers],[Mrt]]),1),INDEX(KantoorGepland[],,1),0),MATCH(KantoorVerschillen[[#Headers],[Mrt]],KantoorWerkelijk[#Headers],0))","v":{"v":40,"d":"€ 40.00"}},{"$f":"INDEX(KantoorGepland[],MATCH(INDEX(KantoorVerschillen[],ROW()-ROW(KantoorVerschillen[[#Headers],[Apr]]),1),INDEX(KantoorGepland[],,1),0),MATCH(KantoorVerschillen[[#Headers],[Apr]],KantoorGepland[#Headers],0))-INDEX(KantoorWerkelijk[],MATCH(INDEX(KantoorVerschillen[],ROW()-ROW(KantoorVerschillen[[#Headers],[Apr]]),1),INDEX(KantoorGepland[],,1),0),MATCH(KantoorVerschillen[[#Headers],[Apr]],KantoorWerkelijk[#Headers],0))","v":{"v":-21,"d":"€ -21.00"}},{"$f":"INDEX(KantoorGepland[],MATCH(INDEX(KantoorVerschillen[],ROW()-ROW(KantoorVerschillen[[#Headers],[Mei]]),1),INDEX(KantoorGepland[],,1),0),MATCH(KantoorVerschillen[[#Headers],[Mei]],KantoorGepland[#Headers],0))-INDEX(KantoorWerkelijk[],MATCH(INDEX(KantoorVerschillen[],ROW()-ROW(KantoorVerschillen[[#Headers],[Mei]]),1),INDEX(KantoorGepland[],,1),0),MATCH(KantoorVerschillen[[#Headers],[Mei]],KantoorWerkelijk[#Headers],0))","v":{"v":-56,"d":"€ -56.00"}},{"$f":"INDEX(KantoorGepland[],MATCH(INDEX(KantoorVerschillen[],ROW()-ROW(KantoorVerschillen[[#Headers],[Jun]]),1),INDEX(KantoorGepland[],,1),0),MATCH(KantoorVerschillen[[#Headers],[Jun]],KantoorGepland[#Headers],0))-INDEX(KantoorWerkelijk[],MATCH(INDEX(KantoorVerschillen[],ROW()-ROW(KantoorVerschillen[[#Headers],[Jun]]),1),INDEX(KantoorGepland[],,1),0),MATCH(KantoorVerschillen[[#Headers],[Jun]],KantoorWerkelijk[#Headers],0))","v":{"v":-40,"d":"€ -40.00"}},{"$f":"INDEX(KantoorGepland[],MATCH(INDEX(KantoorVerschillen[],ROW()-ROW(KantoorVerschillen[[#Headers],[Jul]]),1),INDEX(KantoorGepland[],,1),0),MATCH(KantoorVerschillen[[#Headers],[Jul]],KantoorGepland[#Headers],0))-INDEX(KantoorWerkelijk[],MATCH(INDEX(KantoorVerschillen[],ROW()-ROW(KantoorVerschillen[[#Headers],[Jul]]),1),INDEX(KantoorGepland[],,1),0),MATCH(KantoorVerschillen[[#Headers],[Jul]],KantoorWerkelijk[#Headers],0))","v":{"v":200,"d":"€ 200.00"}},{"$f":"INDEX(KantoorGepland[],MATCH(INDEX(KantoorVerschillen[],ROW()-ROW(KantoorVerschillen[[#Headers],[Aug]]),1),INDEX(KantoorGepland[],,1),0),MATCH(KantoorVerschillen[[#Headers],[Aug]],KantoorGepland[#Headers],0))-INDEX(KantoorWerkelijk[],MATCH(INDEX(KantoorVerschillen[],ROW()-ROW(KantoorVerschillen[[#Headers],[Aug]]),1),INDEX(KantoorGepland[],,1),0),MATCH(KantoorVerschillen[[#Headers],[Aug]],KantoorWerkelijk[#Headers],0))","v":{"v":200,"d":"€ 200.00"}},{"$f":"INDEX(KantoorGepland[],MATCH(INDEX(KantoorVerschillen[],ROW()-ROW(KantoorVerschillen[[#Headers],[Sep]]),1),INDEX(KantoorGepland[],,1),0),MATCH(KantoorVerschillen[[#Headers],[Sep]],KantoorGepland[#Headers],0))-INDEX(KantoorWerkelijk[],MATCH(INDEX(KantoorVerschillen[],ROW()-ROW(KantoorVerschillen[[#Headers],[Sep]]),1),INDEX(KantoorGepland[],,1),0),MATCH(KantoorVerschillen[[#Headers],[Sep]],KantoorWerkelijk[#Headers],0))","v":{"v":200,"d":"€ 200.00"}},{"$f":"INDEX(KantoorGepland[],MATCH(INDEX(KantoorVerschillen[],ROW()-ROW(KantoorVerschillen[[#Headers],[Okt]]),1),INDEX(KantoorGepland[],,1),0),MATCH(KantoorVerschillen[[#Headers],[Okt]],KantoorGepland[#Headers],0))-INDEX(KantoorWerkelijk[],MATCH(INDEX(KantoorVerschillen[],ROW()-ROW(KantoorVerschillen[[#Headers],[Okt]]),1),INDEX(KantoorGepland[],,1),0),MATCH(KantoorVerschillen[[#Headers],[Okt]],KantoorWerkelijk[#Headers],0))","v":{"v":200,"d":"€ 200.00"}},{"$f":"INDEX(KantoorGepland[],MATCH(INDEX(KantoorVerschillen[],ROW()-ROW(KantoorVerschillen[[#Headers],[Nov]]),1),INDEX(KantoorGepland[],,1),0),MATCH(KantoorVerschillen[[#Headers],[Nov]],KantoorGepland[#Headers],0))-INDEX(KantoorWerkelijk[],MATCH(INDEX(KantoorVerschillen[],ROW()-ROW(KantoorVerschillen[[#Headers],[Nov]]),1),INDEX(KantoorGepland[],,1),0),MATCH(KantoorVerschillen[[#Headers],[Nov]],KantoorWerkelijk[#Headers],0))","v":{"v":200,"d":"€ 200.00"}},{"$f":"INDEX(KantoorGepland[],MATCH(INDEX(KantoorVerschillen[],ROW()-ROW(KantoorVerschillen[[#Headers],[Dec]]),1),INDEX(KantoorGepland[],,1),0),MATCH(KantoorVerschillen[[#Headers],[Dec]],KantoorGepland[#Headers],0))-INDEX(KantoorWerkelijk[],MATCH(INDEX(KantoorVerschillen[],ROW()-ROW(KantoorVerschillen[[#Headers],[Dec]]),1),INDEX(KantoorGepland[],,1),0),MATCH(KantoorVerschillen[[#Headers],[Dec]],KantoorWerkelijk[#Headers],0))","v":{"v":200,"d":"€ 200.00"}},{"$f":"SUM(KantoorVerschillen[[#This Row],[Jan]:[Dec]])","v":{"v":1125,"d":"€ 1,125.00"}}]
[null,"Beveiliging",{"$f":"INDEX(KantoorGepland[],MATCH(INDEX(KantoorVerschillen[],ROW()-ROW(KantoorVerschillen[[#Headers],[Jan]]),1),INDEX(KantoorGepland[],,1),0),MATCH(KantoorVerschillen[[#Headers],[Jan]],KantoorGepland[#Headers],0))-INDEX(KantoorWerkelijk[],MATCH(INDEX(KantoorVerschillen[],ROW()-ROW(KantoorVerschillen[[#Headers],[Jan]]),1),INDEX(KantoorGepland[],,1),0),MATCH(KantoorVerschillen[[#Headers],[Jan]],KantoorWerkelijk[#Headers],0))","v":{"v":0,"d":"€ 0.00"}},{"$f":"INDEX(KantoorGepland[],MATCH(INDEX(KantoorVerschillen[],ROW()-ROW(KantoorVerschillen[[#Headers],[Feb]]),1),INDEX(KantoorGepland[],,1),0),MATCH(KantoorVerschillen[[#Headers],[Feb]],KantoorGepland[#Headers],0))-INDEX(KantoorWerkelijk[],MATCH(INDEX(KantoorVerschillen[],ROW()-ROW(KantoorVerschillen[[#Headers],[Feb]]),1),INDEX(KantoorGepland[],,1),0),MATCH(KantoorVerschillen[[#Headers],[Feb]],KantoorWerkelijk[#Headers],0))","v":{"v":0,"d":"€ 0.00"}},{"$f":"INDEX(KantoorGepland[],MATCH(INDEX(KantoorVerschillen[],ROW()-ROW(KantoorVerschillen[[#Headers],[Mrt]]),1),INDEX(KantoorGepland[],,1),0),MATCH(KantoorVerschillen[[#Headers],[Mrt]],KantoorGepland[#Headers],0))-INDEX(KantoorWerkelijk[],MATCH(INDEX(KantoorVerschillen[],ROW()-ROW(KantoorVerschillen[[#Headers],[Mrt]]),1),INDEX(KantoorGepland[],,1),0),MATCH(KantoorVerschillen[[#Headers],[Mrt]],KantoorWerkelijk[#Headers],0))","v":{"v":0,"d":"€ 0.00"}},{"$f":"INDEX(KantoorGepland[],MATCH(INDEX(KantoorVerschillen[],ROW()-ROW(KantoorVerschillen[[#Headers],[Apr]]),1),INDEX(KantoorGepland[],,1),0),MATCH(KantoorVerschillen[[#Headers],[Apr]],KantoorGepland[#Headers],0))-INDEX(KantoorWerkelijk[],MATCH(INDEX(KantoorVerschillen[],ROW()-ROW(KantoorVerschillen[[#Headers],[Apr]]),1),INDEX(KantoorGepland[],,1),0),MATCH(KantoorVerschillen[[#Headers],[Apr]],KantoorWerkelijk[#Headers],0))","v":{"v":0,"d":"€ 0.00"}},{"$f":"INDEX(KantoorGepland[],MATCH(INDEX(KantoorVerschillen[],ROW()-ROW(KantoorVerschillen[[#Headers],[Mei]]),1),INDEX(KantoorGepland[],,1),0),MATCH(KantoorVerschillen[[#Headers],[Mei]],KantoorGepland[#Headers],0))-INDEX(KantoorWerkelijk[],MATCH(INDEX(KantoorVerschillen[],ROW()-ROW(KantoorVerschillen[[#Headers],[Mei]]),1),INDEX(KantoorGepland[],,1),0),MATCH(KantoorVerschillen[[#Headers],[Mei]],KantoorWerkelijk[#Headers],0))","v":{"v":0,"d":"€ 0.00"}},{"$f":"INDEX(KantoorGepland[],MATCH(INDEX(KantoorVerschillen[],ROW()-ROW(KantoorVerschillen[[#Headers],[Jun]]),1),INDEX(KantoorGepland[],,1),0),MATCH(KantoorVerschillen[[#Headers],[Jun]],KantoorGepland[#Headers],0))-INDEX(KantoorWerkelijk[],MATCH(INDEX(KantoorVerschillen[],ROW()-ROW(KantoorVerschillen[[#Headers],[Jun]]),1),INDEX(KantoorGepland[],,1),0),MATCH(KantoorVerschillen[[#Headers],[Jun]],KantoorWerkelijk[#Headers],0))","v":{"v":0,"d":"€ 0.00"}},{"$f":"INDEX(KantoorGepland[],MATCH(INDEX(KantoorVerschillen[],ROW()-ROW(KantoorVerschillen[[#Headers],[Jul]]),1),INDEX(KantoorGepland[],,1),0),MATCH(KantoorVerschillen[[#Headers],[Jul]],KantoorGepland[#Headers],0))-INDEX(KantoorWerkelijk[],MATCH(INDEX(KantoorVerschillen[],ROW()-ROW(KantoorVerschillen[[#Headers],[Jul]]),1),INDEX(KantoorGepland[],,1),0),MATCH(KantoorVerschillen[[#Headers],[Jul]],KantoorWerkelijk[#Headers],0))","v":{"v":600,"d":"€ 600.00"}},{"$f":"INDEX(KantoorGepland[],MATCH(INDEX(KantoorVerschillen[],ROW()-ROW(KantoorVerschillen[[#Headers],[Aug]]),1),INDEX(KantoorGepland[],,1),0),MATCH(KantoorVerschillen[[#Headers],[Aug]],KantoorGepland[#Headers],0))-INDEX(KantoorWerkelijk[],MATCH(INDEX(KantoorVerschillen[],ROW()-ROW(KantoorVerschillen[[#Headers],[Aug]]),1),INDEX(KantoorGepland[],,1),0),MATCH(KantoorVerschillen[[#Headers],[Aug]],KantoorWerkelijk[#Headers],0))","v":{"v":600,"d":"€ 600.00"}},{"$f":"INDEX(KantoorGepland[],MATCH(INDEX(KantoorVerschillen[],ROW()-ROW(KantoorVerschillen[[#Headers],[Sep]]),1),INDEX(KantoorGepland[],,1),0),MATCH(KantoorVerschillen[[#Headers],[Sep]],KantoorGepland[#Headers],0))-INDEX(KantoorWerkelijk[],MATCH(INDEX(KantoorVerschillen[],ROW()-ROW(KantoorVerschillen[[#Headers],[Sep]]),1),INDEX(KantoorGepland[],,1),0),MATCH(KantoorVerschillen[[#Headers],[Sep]],KantoorWerkelijk[#Headers],0))","v":{"v":600,"d":"€ 600.00"}},{"$f":"INDEX(KantoorGepland[],MATCH(INDEX(KantoorVerschillen[],ROW()-ROW(KantoorVerschillen[[#Headers],[Okt]]),1),INDEX(KantoorGepland[],,1),0),MATCH(KantoorVerschillen[[#Headers],[Okt]],KantoorGepland[#Headers],0))-INDEX(KantoorWerkelijk[],MATCH(INDEX(KantoorVerschillen[],ROW()-ROW(KantoorVerschillen[[#Headers],[Okt]]),1),INDEX(KantoorGepland[],,1),0),MATCH(KantoorVerschillen[[#Headers],[Okt]],KantoorWerkelijk[#Headers],0))","v":{"v":600,"d":"€ 600.00"}},{"$f":"INDEX(KantoorGepland[],MATCH(INDEX(KantoorVerschillen[],ROW()-ROW(KantoorVerschillen[[#Headers],[Nov]]),1),INDEX(KantoorGepland[],,1),0),MATCH(KantoorVerschillen[[#Headers],[Nov]],KantoorGepland[#Headers],0))-INDEX(KantoorWerkelijk[],MATCH(INDEX(KantoorVerschillen[],ROW()-ROW(KantoorVerschillen[[#Headers],[Nov]]),1),INDEX(KantoorGepland[],,1),0),MATCH(KantoorVerschillen[[#Headers],[Nov]],KantoorWerkelijk[#Headers],0))","v":{"v":600,"d":"€ 600.00"}},{"$f":"INDEX(KantoorGepland[],MATCH(INDEX(KantoorVerschillen[],ROW()-ROW(KantoorVerschillen[[#Headers],[Dec]]),1),INDEX(KantoorGepland[],,1),0),MATCH(KantoorVerschillen[[#Headers],[Dec]],KantoorGepland[#Headers],0))-INDEX(KantoorWerkelijk[],MATCH(INDEX(KantoorVerschillen[],ROW()-ROW(KantoorVerschillen[[#Headers],[Dec]]),1),INDEX(KantoorGepland[],,1),0),MATCH(KantoorVerschillen[[#Headers],[Dec]],KantoorWerkelijk[#Headers],0))","v":{"v":600,"d":"€ 600.00"}},{"$f":"SUM(KantoorVerschillen[[#This Row],[Jan]:[Dec]])","v":{"v":3600,"d":"€ 3,600.00"}}]
[null,"Subtotaal",{"$f":"SUBTOTAL(109,KantoorVerschillen[Jan])","v":{"v":-17,"d":"€ -17.00"}},{"$f":"SUBTOTAL(109,KantoorVerschillen[Feb])","v":{"v":72,"d":"€ 72.00"}},{"$f":"SUBTOTAL(109,KantoorVerschillen[Mrt])","v":{"v":78,"d":"€ 78.00"}},{"$f":"SUBTOTAL(109,KantoorVerschillen[Apr])","v":{"v":-141,"d":"€ -141.00"}},{"$f":"SUBTOTAL(109,KantoorVerschillen[Mei])","v":{"v":-38,"d":"€ -38.00"}},{"$f":"SUBTOTAL(109,KantoorVerschillen[Jun])","v":{"v":16,"d":"€ 16.00"}},{"$f":"SUBTOTAL(109,KantoorVerschillen[Jul])","v":{"v":11470,"d":"€ 11,470.00"}},{"$f":"SUBTOTAL(109,KantoorVerschillen[Aug])","v":{"v":11470,"d":"€ 11,470.00"}},{"$f":"SUBTOTAL(109,KantoorVerschillen[Sep])","v":{"v":11470,"d":"€ 11,470.00"}},{"$f":"SUBTOTAL(109,KantoorVerschillen[Okt])","v":{"v":11470,"d":"€ 11,470.00"}},{"$f":"SUBTOTAL(109,KantoorVerschillen[Nov])","v":{"v":11770,"d":"€ 11,770.00"}},{"$f":"SUBTOTAL(109,KantoorVerschillen[Dec])","v":{"v":11770,"d":"€ 11,770.00"}},{"$f":"SUBTOTAL(109,KantoorVerschillen[JAAR])","v":{"v":69390,"d":"€ 69,390.00"}}]
[]
["Het verschil in marketingkosten wordt automatisch berekend in de tabel MarketingVerschillen die in de cel rechts begint. De volgende aanwijzing staat in cel A30.","Marketingkosten","Jan","Feb","Mrt","Apr","Mei","Jun","Jul","Aug","Sep","Okt","Nov","Dec","JAAR"]
[null,"Websitehosting",{"$f":"INDEX(MarketingGepland[],MATCH(INDEX(MarketingVerschillen[],ROW()-ROW(MarketingVerschillen[[#Headers],[Jan]]),1),INDEX(MarketingGepland[],,1),0),MATCH(MarketingVerschillen[[#Headers],[Jan]],MarketingGepland[#Headers],0))-INDEX(MarketingWerkelijik[],MATCH(INDEX(MarketingVerschillen[],ROW()-ROW(MarketingVerschillen[[#Headers],[Jan]]),1),INDEX(MarketingGepland[],,1),0),MATCH(MarketingVerschillen[[#Headers],[Jan]],MarketingWerkelijik[#Headers],0))","v":{"v":0,"d":"€ 0.00"}},{"$f":"INDEX(MarketingGepland[],MATCH(INDEX(MarketingVerschillen[],ROW()-ROW(MarketingVerschillen[[#Headers],[Feb]]),1),INDEX(MarketingGepland[],,1),0),MATCH(MarketingVerschillen[[#Headers],[Feb]],MarketingGepland[#Headers],0))-INDEX(MarketingWerkelijik[],MATCH(INDEX(MarketingVerschillen[],ROW()-ROW(MarketingVerschillen[[#Headers],[Feb]]),1),INDEX(MarketingGepland[],,1),0),MATCH(MarketingVerschillen[[#Headers],[Feb]],MarketingWerkelijik[#Headers],0))","v":{"v":0,"d":"€ 0.00"}},{"$f":"INDEX(MarketingGepland[],MATCH(INDEX(MarketingVerschillen[],ROW()-ROW(MarketingVerschillen[[#Headers],[Mrt]]),1),INDEX(MarketingGepland[],,1),0),MATCH(MarketingVerschillen[[#Headers],[Mrt]],MarketingGepland[#Headers],0))-INDEX(MarketingWerkelijik[],MATCH(INDEX(MarketingVerschillen[],ROW()-ROW(MarketingVerschillen[[#Headers],[Mrt]]),1),INDEX(MarketingGepland[],,1),0),MATCH(MarketingVerschillen[[#Headers],[Mrt]],MarketingWerkelijik[#Headers],0))","v":{"v":0,"d":"€ 0.00"}},{"$f":"INDEX(MarketingGepland[],MATCH(INDEX(MarketingVerschillen[],ROW()-ROW(MarketingVerschillen[[#Headers],[Apr]]),1),INDEX(MarketingGepland[],,1),0),MATCH(MarketingVerschillen[[#Headers],[Apr]],MarketingGepland[#Headers],0))-INDEX(MarketingWerkelijik[],MATCH(INDEX(MarketingVerschillen[],ROW()-ROW(MarketingVerschillen[[#Headers],[Apr]]),1),INDEX(MarketingGepland[],,1),0),MATCH(MarketingVerschillen[[#Headers],[Apr]],MarketingWerkelijik[#Headers],0))","v":{"v":0,"d":"€ 0.00"}},{"$f":"INDEX(MarketingGepland[],MATCH(INDEX(MarketingVerschillen[],ROW()-ROW(MarketingVerschillen[[#Headers],[Mei]]),1),INDEX(MarketingGepland[],,1),0),MATCH(MarketingVerschillen[[#Headers],[Mei]],MarketingGepland[#Headers],0))-INDEX(MarketingWerkelijik[],MATCH(INDEX(MarketingVerschillen[],ROW()-ROW(MarketingVerschillen[[#Headers],[Mei]]),1),INDEX(MarketingGepland[],,1),0),MATCH(MarketingVerschillen[[#Headers],[Mei]],MarketingWerkelijik[#Headers],0))","v":{"v":0,"d":"€ 0.00"}},{"$f":"INDEX(MarketingGepland[],MATCH(INDEX(MarketingVerschillen[],ROW()-ROW(MarketingVerschillen[[#Headers],[Jun]]),1),INDEX(MarketingGepland[],,1),0),MATCH(MarketingVerschillen[[#Headers],[Jun]],MarketingGepland[#Headers],0))-INDEX(MarketingWerkelijik[],MATCH(INDEX(MarketingVerschillen[],ROW()-ROW(MarketingVerschillen[[#Headers],[Jun]]),1),INDEX(MarketingGepland[],,1),0),MATCH(MarketingVerschillen[[#Headers],[Jun]],MarketingWerkelijik[#Headers],0))","v":{"v":0,"d":"€ 0.00"}},{"$f":"INDEX(MarketingGepland[],MATCH(INDEX(MarketingVerschillen[],ROW()-ROW(MarketingVerschillen[[#Headers],[Jul]]),1),INDEX(MarketingGepland[],,1),0),MATCH(MarketingVerschillen[[#Headers],[Jul]],MarketingGepland[#Headers],0))-INDEX(MarketingWerkelijik[],MATCH(INDEX(MarketingVerschillen[],ROW()-ROW(MarketingVerschillen[[#Headers],[Jul]]),1),INDEX(MarketingGepland[],,1),0),MATCH(MarketingVerschillen[[#Headers],[Jul]],MarketingWerkelijik[#Headers],0))","v":{"v":500,"d":"€ 500.00"}},{"$f":"INDEX(MarketingGepland[],MATCH(INDEX(MarketingVerschillen[],ROW()-ROW(MarketingVerschillen[[#Headers],[Aug]]),1),INDEX(MarketingGepland[],,1),0),MATCH(MarketingVerschillen[[#Headers],[Aug]],MarketingGepland[#Headers],0))-INDEX(MarketingWerkelijik[],MATCH(INDEX(MarketingVerschillen[],ROW()-ROW(MarketingVerschillen[[#Headers],[Aug]]),1),INDEX(MarketingGepland[],,1),0),MATCH(MarketingVerschillen[[#Headers],[Aug]],MarketingWerkelijik[#Headers],0))","v":{"v":500,"d":"€ 500.00"}},{"$f":"INDEX(MarketingGepland[],MATCH(INDEX(MarketingVerschillen[],ROW()-ROW(MarketingVerschillen[[#Headers],[Sep]]),1),INDEX(MarketingGepland[],,1),0),MATCH(MarketingVerschillen[[#Headers],[Sep]],MarketingGepland[#Headers],0))-INDEX(MarketingWerkelijik[],MATCH(INDEX(MarketingVerschillen[],ROW()-ROW(MarketingVerschillen[[#Headers],[Sep]]),1),INDEX(MarketingGepland[],,1),0),MATCH(MarketingVerschillen[[#Headers],[Sep]],MarketingWerkelijik[#Headers],0))","v":{"v":500,"d":"€ 500.00"}},{"$f":"INDEX(MarketingGepland[],MATCH(INDEX(MarketingVerschillen[],ROW()-ROW(MarketingVerschillen[[#Headers],[Okt]]),1),INDEX(MarketingGepland[],,1),0),MATCH(MarketingVerschillen[[#Headers],[Okt]],MarketingGepland[#Headers],0))-INDEX(MarketingWerkelijik[],MATCH(INDEX(MarketingVerschillen[],ROW()-ROW(MarketingVerschillen[[#Headers],[Okt]]),1),INDEX(MarketingGepland[],,1),0),MATCH(MarketingVerschillen[[#Headers],[Okt]],MarketingWerkelijik[#Headers],0))","v":{"v":500,"d":"€ 500.00"}},{"$f":"INDEX(MarketingGepland[],MATCH(INDEX(MarketingVerschillen[],ROW()-ROW(MarketingVerschillen[[#Headers],[Nov]]),1),INDEX(MarketingGepland[],,1),0),MATCH(MarketingVerschillen[[#Headers],[Nov]],MarketingGepland[#Headers],0))-INDEX(MarketingWerkelijik[],MATCH(INDEX(MarketingVerschillen[],ROW()-ROW(MarketingVerschillen[[#Headers],[Nov]]),1),INDEX(MarketingGepland[],,1),0),MATCH(MarketingVerschillen[[#Headers],[Nov]],MarketingWerkelijik[#Headers],0))","v":{"v":500,"d":"€ 500.00"}},{"$f":"INDEX(MarketingGepland[],MATCH(INDEX(MarketingVerschillen[],ROW()-ROW(MarketingVerschillen[[#Headers],[Dec]]),1),INDEX(MarketingGepland[],,1),0),MATCH(MarketingVerschillen[[#Headers],[Dec]],MarketingGepland[#Headers],0))-INDEX(MarketingWerkelijik[],MATCH(INDEX(MarketingVerschillen[],ROW()-ROW(MarketingVerschillen[[#Headers],[Dec]]),1),INDEX(MarketingGepland[],,1),0),MATCH(MarketingVerschillen[[#Headers],[Dec]],MarketingWerkelijik[#Headers],0))","v":{"v":500,"d":"€ 500.00"}},{"$f":"SUM(MarketingVerschillen[[#This Row],[Jan]:[Dec]])","v":{"v":3000,"d":"€ 3,000.00"}}]
[null,"Website-updates",{"$f":"INDEX(MarketingGepland[],MATCH(INDEX(MarketingVerschillen[],ROW()-ROW(MarketingVerschillen[[#Headers],[Jan]]),1),INDEX(MarketingGepland[],,1),0),MATCH(MarketingVerschillen[[#Headers],[Jan]],MarketingGepland[#Headers],0))-INDEX(MarketingWerkelijik[],MATCH(INDEX(MarketingVerschillen[],ROW()-ROW(MarketingVerschillen[[#Headers],[Jan]]),1),INDEX(MarketingGepland[],,1),0),MATCH(MarketingVerschillen[[#Headers],[Jan]],MarketingWerkelijik[#Headers],0))","v":{"v":0,"d":"€ 0.00"}},{"$f":"INDEX(MarketingGepland[],MATCH(INDEX(MarketingVerschillen[],ROW()-ROW(MarketingVerschillen[[#Headers],[Feb]]),1),INDEX(MarketingGepland[],,1),0),MATCH(MarketingVerschillen[[#Headers],[Feb]],MarketingGepland[#Headers],0))-INDEX(MarketingWerkelijik[],MATCH(INDEX(MarketingVerschillen[],ROW()-ROW(MarketingVerschillen[[#Headers],[Feb]]),1),INDEX(MarketingGepland[],,1),0),MATCH(MarketingVerschillen[[#Headers],[Feb]],MarketingWerkelijik[#Headers],0))","v":{"v":0,"d":"€ 0.00"}},{"$f":"INDEX(MarketingGepland[],MATCH(INDEX(MarketingVerschillen[],ROW()-ROW(MarketingVerschillen[[#Headers],[Mrt]]),1),INDEX(MarketingGepland[],,1),0),MATCH(MarketingVerschillen[[#Headers],[Mrt]],MarketingGepland[#Headers],0))-INDEX(MarketingWerkelijik[],MATCH(INDEX(MarketingVerschillen[],ROW()-ROW(MarketingVerschillen[[#Headers],[Mrt]]),1),INDEX(MarketingGepland[],,1),0),MATCH(MarketingVerschillen[[#Headers],[Mrt]],MarketingWerkelijik[#Headers],0))","v":{"v":0,"d":"€ 0.00"}},{"$f":"INDEX(MarketingGepland[],MATCH(INDEX(MarketingVerschillen[],ROW()-ROW(MarketingVerschillen[[#Headers],[Apr]]),1),INDEX(MarketingGepland[],,1),0),MATCH(MarketingVerschillen[[#Headers],[Apr]],MarketingGepland[#Headers],0))-INDEX(MarketingWerkelijik[],MATCH(INDEX(MarketingVerschillen[],ROW()-ROW(MarketingVerschillen[[#Headers],[Apr]]),1),INDEX(MarketingGepland[],,1),0),MATCH(MarketingVerschillen[[#Headers],[Apr]],MarketingWerkelijik[#Headers],0))","v":{"v":0,"d":"€ 0.00"}},{"$f":"INDEX(MarketingGepland[],MATCH(INDEX(MarketingVerschillen[],ROW()-ROW(MarketingVerschillen[[#Headers],[Mei]]),1),INDEX(MarketingGepland[],,1),0),MATCH(MarketingVerschillen[[#Headers],[Mei]],MarketingGepland[#Headers],0))-INDEX(MarketingWerkelijik[],MATCH(INDEX(MarketingVerschillen[],ROW()-ROW(MarketingVerschillen[[#Headers],[Mei]]),1),INDEX(MarketingGepland[],,1),0),MATCH(MarketingVerschillen[[#Headers],[Mei]],MarketingWerkelijik[#Headers],0))","v":{"v":0,"d":"€ 0.00"}},{"$f":"INDEX(MarketingGepland[],MATCH(INDEX(MarketingVerschillen[],ROW()-ROW(MarketingVerschillen[[#Headers],[Jun]]),1),INDEX(MarketingGepland[],,1),0),MATCH(MarketingVerschillen[[#Headers],[Jun]],MarketingGepland[#Headers],0))-INDEX(MarketingWerkelijik[],MATCH(INDEX(MarketingVerschillen[],ROW()-ROW(MarketingVerschillen[[#Headers],[Jun]]),1),INDEX(MarketingGepland[],,1),0),MATCH(MarketingVerschillen[[#Headers],[Jun]],MarketingWerkelijik[#Headers],0))","v":{"v":-500,"d":"€ -500.00"}},{"$f":"INDEX(MarketingGepland[],MATCH(INDEX(MarketingVerschillen[],ROW()-ROW(MarketingVerschillen[[#Headers],[Jul]]),1),INDEX(MarketingGepland[],,1),0),MATCH(MarketingVerschillen[[#Headers],[Jul]],MarketingGepland[#Headers],0))-INDEX(MarketingWerkelijik[],MATCH(INDEX(MarketingVerschillen[],ROW()-ROW(MarketingVerschillen[[#Headers],[Jul]]),1),INDEX(MarketingGepland[],,1),0),MATCH(MarketingVerschillen[[#Headers],[Jul]],MarketingWerkelijik[#Headers],0))","v":{"v":200,"d":"€ 200.00"}},{"$f":"INDEX(MarketingGepland[],MATCH(INDEX(MarketingVerschillen[],ROW()-ROW(MarketingVerschillen[[#Headers],[Aug]]),1),INDEX(MarketingGepland[],,1),0),MATCH(MarketingVerschillen[[#Headers],[Aug]],MarketingGepland[#Headers],0))-INDEX(MarketingWerkelijik[],MATCH(INDEX(MarketingVerschillen[],ROW()-ROW(MarketingVerschillen[[#Headers],[Aug]]),1),INDEX(MarketingGepland[],,1),0),MATCH(MarketingVerschillen[[#Headers],[Aug]],MarketingWerkelijik[#Headers],0))","v":{"v":200,"d":"€ 200.00"}},{"$f":"INDEX(MarketingGepland[],MATCH(INDEX(MarketingVerschillen[],ROW()-ROW(MarketingVerschillen[[#Headers],[Sep]]),1),INDEX(MarketingGepland[],,1),0),MATCH(MarketingVerschillen[[#Headers],[Sep]],MarketingGepland[#Headers],0))-INDEX(MarketingWerkelijik[],MATCH(INDEX(MarketingVerschillen[],ROW()-ROW(MarketingVerschillen[[#Headers],[Sep]]),1),INDEX(MarketingGepland[],,1),0),MATCH(MarketingVerschillen[[#Headers],[Sep]],MarketingWerkelijik[#Headers],0))","v":{"v":200,"d":"€ 200.00"}},{"$f":"INDEX(MarketingGepland[],MATCH(INDEX(MarketingVerschillen[],ROW()-ROW(MarketingVerschillen[[#Headers],[Okt]]),1),INDEX(MarketingGepland[],,1),0),MATCH(MarketingVerschillen[[#Headers],[Okt]],MarketingGepland[#Headers],0))-INDEX(MarketingWerkelijik[],MATCH(INDEX(MarketingVerschillen[],ROW()-ROW(MarketingVerschillen[[#Headers],[Okt]]),1),INDEX(MarketingGepland[],,1),0),MATCH(MarketingVerschillen[[#Headers],[Okt]],MarketingWerkelijik[#Headers],0))","v":{"v":200,"d":"€ 200.00"}},{"$f":"INDEX(MarketingGepland[],MATCH(INDEX(MarketingVerschillen[],ROW()-ROW(MarketingVerschillen[[#Headers],[Nov]]),1),INDEX(MarketingGepland[],,1),0),MATCH(MarketingVerschillen[[#Headers],[Nov]],MarketingGepland[#Headers],0))-INDEX(MarketingWerkelijik[],MATCH(INDEX(MarketingVerschillen[],ROW()-ROW(MarketingVerschillen[[#Headers],[Nov]]),1),INDEX(MarketingGepland[],,1),0),MATCH(MarketingVerschillen[[#Headers],[Nov]],MarketingWerkelijik[#Headers],0))","v":{"v":200,"d":"€ 200.00"}},{"$f":"INDEX(MarketingGepland[],MATCH(INDEX(MarketingVerschillen[],ROW()-ROW(MarketingVerschillen[[#Headers],[Dec]]),1),INDEX(MarketingGepland[],,1),0),MATCH(MarketingVerschillen[[#Headers],[Dec]],MarketingGepland[#Headers],0))-INDEX(MarketingWerkelijik[],MATCH(INDEX(MarketingVerschillen[],ROW()-ROW(MarketingVerschillen[[#Headers],[Dec]]),1),INDEX(MarketingGepland[],,1),0),MATCH(MarketingVerschillen[[#Headers],[Dec]],MarketingWerkelijik[#Headers],0))","v":{"v":1000,"d":"€ 1,000.00"}},{"$f":"SUM(MarketingVerschillen[[#This Row],[Jan]:[Dec]])","v":{"v":1500,"d":"€ 1,500.00"}}]
[null,"Voorbereiding marketingmateriaal",{"$f":"INDEX(MarketingGepland[],MATCH(INDEX(MarketingVerschillen[],ROW()-ROW(MarketingVerschillen[[#Headers],[Jan]]),1),INDEX(MarketingGepland[],,1),0),MATCH(MarketingVerschillen[[#Headers],[Jan]],MarketingGepland[#Headers],0))-INDEX(MarketingWerkelijik[],MATCH(INDEX(MarketingVerschillen[],ROW()-ROW(MarketingVerschillen[[#Headers],[Jan]]),1),INDEX(MarketingGepland[],,1),0),MATCH(MarketingVerschillen[[#Headers],[Jan]],MarketingWerkelijik[#Headers],0))","v":{"v":200,"d":"€ 200.00"}},{"$f":"INDEX(MarketingGepland[],MATCH(INDEX(MarketingVerschillen[],ROW()-ROW(MarketingVerschillen[[#Headers],[Feb]]),1),INDEX(MarketingGepland[],,1),0),MATCH(MarketingVerschillen[[#Headers],[Feb]],MarketingGepland[#Headers],0))-INDEX(MarketingWerkelijik[],MATCH(INDEX(MarketingVerschillen[],ROW()-ROW(MarketingVerschillen[[#Headers],[Feb]]),1),INDEX(MarketingGepland[],,1),0),MATCH(MarketingVerschillen[[#Headers],[Feb]],MarketingWerkelijik[#Headers],0))","v":{"v":0,"d":"€ 0.00"}},{"$f":"INDEX(MarketingGepland[],MATCH(INDEX(MarketingVerschillen[],ROW()-ROW(MarketingVerschillen[[#Headers],[Mrt]]),1),INDEX(MarketingGepland[],,1),0),MATCH(MarketingVerschillen[[#Headers],[Mrt]],MarketingGepland[#Headers],0))-INDEX(MarketingWerkelijik[],MATCH(INDEX(MarketingVerschillen[],ROW()-ROW(MarketingVerschillen[[#Headers],[Mrt]]),1),INDEX(MarketingGepland[],,1),0),MATCH(MarketingVerschillen[[#Headers],[Mrt]],MarketingWerkelijik[#Headers],0))","v":{"v":0,"d":"€ 0.00"}},{"$f":"INDEX(MarketingGepland[],MATCH(INDEX(MarketingVerschillen[],ROW()-ROW(MarketingVerschillen[[#Headers],[Apr]]),1),INDEX(MarketingGepland[],,1),0),MATCH(MarketingVerschillen[[#Headers],[Apr]],MarketingGepland[#Headers],0))-INDEX(MarketingWerkelijik[],MATCH(INDEX(MarketingVerschillen[],ROW()-ROW(MarketingVerschillen[[#Headers],[Apr]]),1),INDEX(MarketingGepland[],,1),0),MATCH(MarketingVerschillen[[#Headers],[Apr]],MarketingWerkelijik[#Headers],0))","v":{"v":-500,"d":"€ -500.00"}},{"$f":"INDEX(MarketingGepland[],MATCH(INDEX(MarketingVerschillen[],ROW()-ROW(MarketingVerschillen[[#Headers],[Mei]]),1),INDEX(MarketingGepland[],,1),0),MATCH(MarketingVerschillen[[#Headers],[Mei]],MarketingGepland[#Headers],0))-INDEX(MarketingWerkelijik[],MATCH(INDEX(MarketingVerschillen[],ROW()-ROW(MarketingVerschillen[[#Headers],[Mei]]),1),INDEX(MarketingGepland[],,1),0),MATCH(MarketingVerschillen[[#Headers],[Mei]],MarketingWerkelijik[#Headers],0))","v":{"v":0,"d":"€ 0.00"}},{"$f":"INDEX(MarketingGepland[],MATCH(INDEX(MarketingVerschillen[],ROW()-ROW(MarketingVerschillen[[#Headers],[Jun]]),1),INDEX(MarketingGepland[],,1),0),MATCH(MarketingVerschillen[[#Headers],[Jun]],MarketingGepland[#Headers],0))-INDEX(MarketingWerkelijik[],MATCH(INDEX(MarketingVerschillen[],ROW()-ROW(MarketingVerschillen[[#Headers],[Jun]]),1),INDEX(MarketingGepland[],,1),0),MATCH(MarketingVerschillen[[#Headers],[Jun]],MarketingWerkelijik[#Headers],0))","v":{"v":0,"d":"€ 0.00"}},{"$f":"INDEX(MarketingGepland[],MATCH(INDEX(MarketingVerschillen[],ROW()-ROW(MarketingVerschillen[[#Headers],[Jul]]),1),INDEX(MarketingGepland[],,1),0),MATCH(MarketingVerschillen[[#Headers],[Jul]],MarketingGepland[#Headers],0))-INDEX(MarketingWerkelijik[],MATCH(INDEX(MarketingVerschillen[],ROW()-ROW(MarketingVerschillen[[#Headers],[Jul]]),1),INDEX(MarketingGepland[],,1),0),MATCH(MarketingVerschillen[[#Headers],[Jul]],MarketingWerkelijik[#Headers],0))","v":{"v":5000,"d":"€ 5,000.00"}},{"$f":"INDEX(MarketingGepland[],MATCH(INDEX(MarketingVerschillen[],ROW()-ROW(MarketingVerschillen[[#Headers],[Aug]]),1),INDEX(MarketingGepland[],,1),0),MATCH(MarketingVerschillen[[#Headers],[Aug]],MarketingGepland[#Headers],0))-INDEX(MarketingWerkelijik[],MATCH(INDEX(MarketingVerschillen[],ROW()-ROW(MarketingVerschillen[[#Headers],[Aug]]),1),INDEX(MarketingGepland[],,1),0),MATCH(MarketingVerschillen[[#Headers],[Aug]],MarketingWerkelijik[#Headers],0))","v":{"v":0,"d":"€ 0.00"}},{"$f":"INDEX(MarketingGepland[],MATCH(INDEX(MarketingVerschillen[],ROW()-ROW(MarketingVerschillen[[#Headers],[Sep]]),1),INDEX(MarketingGepland[],,1),0),MATCH(MarketingVerschillen[[#Headers],[Sep]],MarketingGepland[#Headers],0))-INDEX(MarketingWerkelijik[],MATCH(INDEX(MarketingVerschillen[],ROW()-ROW(MarketingVerschillen[[#Headers],[Sep]]),1),INDEX(MarketingGepland[],,1),0),MATCH(MarketingVerschillen[[#Headers],[Sep]],MarketingWerkelijik[#Headers],0))","v":{"v":0,"d":"€ 0.00"}},{"$f":"INDEX(MarketingGepland[],MATCH(INDEX(MarketingVerschillen[],ROW()-ROW(MarketingVerschillen[[#Headers],[Okt]]),1),INDEX(MarketingGepland[],,1),0),MATCH(MarketingVerschillen[[#Headers],[Okt]],MarketingGepland[#Headers],0))-INDEX(MarketingWerkelijik[],MATCH(INDEX(MarketingVerschillen[],ROW()-ROW(MarketingVerschillen[[#Headers],[Okt]]),1),INDEX(MarketingGepland[],,1),0),MATCH(MarketingVerschillen[[#Headers],[Okt]],MarketingWerkelijik[#Headers],0))","v":{"v":5000,"d":"€ 5,000.00"}},{"$f":"INDEX(MarketingGepland[],MATCH(INDEX(MarketingVerschillen[],ROW()-ROW(MarketingVerschillen[[#Headers],[Nov]]),1),INDEX(MarketingGepland[],,1),0),MATCH(MarketingVerschillen[[#Headers],[Nov]],MarketingGepland[#Headers],0))-INDEX(MarketingWerkelijik[],MATCH(INDEX(MarketingVerschillen[],ROW()-ROW(MarketingVerschillen[[#Headers],[Nov]]),1),INDEX(MarketingGepland[],,1),0),MATCH(MarketingVerschillen[[#Headers],[Nov]],MarketingWerkelijik[#Headers],0))","v":{"v":0,"d":"€ 0.00"}},{"$f":"INDEX(MarketingGepland[],MATCH(INDEX(MarketingVerschillen[],ROW()-ROW(MarketingVerschillen[[#Headers],[Dec]]),1),INDEX(MarketingGepland[],,1),0),MATCH(MarketingVerschillen[[#Headers],[Dec]],MarketingGepland[#Headers],0))-INDEX(MarketingWerkelijik[],MATCH(INDEX(MarketingVerschillen[],ROW()-ROW(MarketingVerschillen[[#Headers],[Dec]]),1),INDEX(MarketingGepland[],,1),0),MATCH(MarketingVerschillen[[#Headers],[Dec]],MarketingWerkelijik[#Headers],0))","v":{"v":0,"d":"€ 0.00"}},{"$f":"SUM(MarketingVerschillen[[#This Row],[Jan]:[Dec]])","v":{"v":9700,"d":"€ 9,700.00"}}]
[null,"Afdrukken marketingmateriaal",{"$f":"INDEX(MarketingGepland[],MATCH(INDEX(MarketingVerschillen[],ROW()-ROW(MarketingVerschillen[[#Headers],[Jan]]),1),INDEX(MarketingGepland[],,1),0),MATCH(MarketingVerschillen[[#Headers],[Jan]],MarketingGepland[#Headers],0))-INDEX(MarketingWerkelijik[],MATCH(INDEX(MarketingVerschillen[],ROW()-ROW(MarketingVerschillen[[#Headers],[Jan]]),1),INDEX(MarketingGepland[],,1),0),MATCH(MarketingVerschillen[[#Headers],[Jan]],MarketingWerkelijik[#Headers],0))","v":{"v":100,"d":"€ 100.00"}},{"$f":"INDEX(MarketingGepland[],MATCH(INDEX(MarketingVerschillen[],ROW()-ROW(MarketingVerschillen[[#Headers],[Feb]]),1),INDEX(MarketingGepland[],,1),0),MATCH(MarketingVerschillen[[#Headers],[Feb]],MarketingGepland[#Headers],0))-INDEX(MarketingWerkelijik[],MATCH(INDEX(MarketingVerschillen[],ROW()-ROW(MarketingVerschillen[[#Headers],[Feb]]),1),INDEX(MarketingGepland[],,1),0),MATCH(MarketingVerschillen[[#Headers],[Feb]],MarketingWerkelijik[#Headers],0))","v":{"v":-300,"d":"€ -300.00"}},{"$f":"INDEX(MarketingGepland[],MATCH(INDEX(MarketingVerschillen[],ROW()-ROW(MarketingVerschillen[[#Headers],[Mrt]]),1),INDEX(MarketingGepland[],,1),0),MATCH(MarketingVerschillen[[#Headers],[Mrt]],MarketingGepland[#Headers],0))-INDEX(MarketingWerkelijik[],MATCH(INDEX(MarketingVerschillen[],ROW()-ROW(MarketingVerschillen[[#Headers],[Mrt]]),1),INDEX(MarketingGepland[],,1),0),MATCH(MarketingVerschillen[[#Headers],[Mrt]],MarketingWerkelijik[#Headers],0))","v":{"v":100,"d":"€ 100.00"}},{"$f":"INDEX(MarketingGepland[],MATCH(INDEX(MarketingVerschillen[],ROW()-ROW(MarketingVerschillen[[#Headers],[Apr]]),1),INDEX(MarketingGepland[],,1),0),MATCH(MarketingVerschillen[[#Headers],[Apr]],MarketingGepland[#Headers],0))-INDEX(MarketingWerkelijik[],MATCH(INDEX(MarketingVerschillen[],ROW()-ROW(MarketingVerschillen[[#Headers],[Apr]]),1),INDEX(MarketingGepland[],,1),0),MATCH(MarketingVerschillen[[#Headers],[Apr]],MarketingWerkelijik[#Headers],0))","v":{"v":100,"d":"€ 100.00"}},{"$f":"INDEX(MarketingGepland[],MATCH(INDEX(MarketingVerschillen[],ROW()-ROW(MarketingVerschillen[[#Headers],[Mei]]),1),INDEX(MarketingGepland[],,1),0),MATCH(MarketingVerschillen[[#Headers],[Mei]],MarketingGepland[#Headers],0))-INDEX(MarketingWerkelijik[],MATCH(INDEX(MarketingVerschillen[],ROW()-ROW(MarketingVerschillen[[#Headers],[Mei]]),1),INDEX(MarketingGepland[],,1),0),MATCH(MarketingVerschillen[[#Headers],[Mei]],MarketingWerkelijik[#Headers],0))","v":{"v":-400,"d":"€ -400.00"}},{"$f":"INDEX(MarketingGepland[],MATCH(INDEX(MarketingVerschillen[],ROW()-ROW(MarketingVerschillen[[#Headers],[Jun]]),1),INDEX(MarketingGepland[],,1),0),MATCH(MarketingVerschillen[[#Headers],[Jun]],MarketingGepland[#Headers],0))-INDEX(MarketingWerkelijik[],MATCH(INDEX(MarketingVerschillen[],ROW()-ROW(MarketingVerschillen[[#Headers],[Jun]]),1),INDEX(MarketingGepland[],,1),0),MATCH(MarketingVerschillen[[#Headers],[Jun]],MarketingWerkelijik[#Headers],0))","v":{"v":20,"d":"€ 20.00"}},{"$f":"INDEX(MarketingGepland[],MATCH(INDEX(MarketingVerschillen[],ROW()-ROW(MarketingVerschillen[[#Headers],[Jul]]),1),INDEX(MarketingGepland[],,1),0),MATCH(MarketingVerschillen[[#Headers],[Jul]],MarketingGepland[#Headers],0))-INDEX(MarketingWerkelijik[],MATCH(INDEX(MarketingVerschillen[],ROW()-ROW(MarketingVerschillen[[#Headers],[Jul]]),1),INDEX(MarketingGepland[],,1),0),MATCH(MarketingVerschillen[[#Headers],[Jul]],MarketingWerkelijik[#Headers],0))","v":{"v":200,"d":"€ 200.00"}},{"$f":"INDEX(MarketingGepland[],MATCH(INDEX(MarketingVerschillen[],ROW()-ROW(MarketingVerschillen[[#Headers],[Aug]]),1),INDEX(MarketingGepland[],,1),0),MATCH(MarketingVerschillen[[#Headers],[Aug]],MarketingGepland[#Headers],0))-INDEX(MarketingWerkelijik[],MATCH(INDEX(MarketingVerschillen[],ROW()-ROW(MarketingVerschillen[[#Headers],[Aug]]),1),INDEX(MarketingGepland[],,1),0),MATCH(MarketingVerschillen[[#Headers],[Aug]],MarketingWerkelijik[#Headers],0))","v":{"v":200,"d":"€ 200.00"}},{"$f":"INDEX(MarketingGepland[],MATCH(INDEX(MarketingVerschillen[],ROW()-ROW(MarketingVerschillen[[#Headers],[Sep]]),1),INDEX(MarketingGepland[],,1),0),MATCH(MarketingVerschillen[[#Headers],[Sep]],MarketingGepland[#Headers],0))-INDEX(MarketingWerkelijik[],MATCH(INDEX(MarketingVerschillen[],ROW()-ROW(MarketingVerschillen[[#Headers],[Sep]]),1),INDEX(MarketingGepland[],,1),0),MATCH(MarketingVerschillen[[#Headers],[Sep]],MarketingWerkelijik[#Headers],0))","v":{"v":200,"d":"€ 200.00"}},{"$f":"INDEX(MarketingGepland[],MATCH(INDEX(MarketingVerschillen[],ROW()-ROW(MarketingVerschillen[[#Headers],[Okt]]),1),INDEX(MarketingGepland[],,1),0),MATCH(MarketingVerschillen[[#Headers],[Okt]],MarketingGepland[#Headers],0))-INDEX(MarketingWerkelijik[],MATCH(INDEX(MarketingVerschillen[],ROW()-ROW(MarketingVerschillen[[#Headers],[Okt]]),1),INDEX(MarketingGepland[],,1),0),MATCH(MarketingVerschillen[[#Headers],[Okt]],MarketingWerkelijik[#Headers],0))","v":{"v":200,"d":"€ 200.00"}},{"$f":"INDEX(MarketingGepland[],MATCH(INDEX(MarketingVerschillen[],ROW()-ROW(MarketingVerschillen[[#Headers],[Nov]]),1),INDEX(MarketingGepland[],,1),0),MATCH(MarketingVerschillen[[#Headers],[Nov]],MarketingGepland[#Headers],0))-INDEX(MarketingWerkelijik[],MATCH(INDEX(MarketingVerschillen[],ROW()-ROW(MarketingVerschillen[[#Headers],[Nov]]),1),INDEX(MarketingGepland[],,1),0),MATCH(MarketingVerschillen[[#Headers],[Nov]],MarketingWerkelijik[#Headers],0))","v":{"v":200,"d":"€ 200.00"}},{"$f":"INDEX(MarketingGepland[],MATCH(INDEX(MarketingVerschillen[],ROW()-ROW(MarketingVerschillen[[#Headers],[Dec]]),1),INDEX(MarketingGepland[],,1),0),MATCH(MarketingVerschillen[[#Headers],[Dec]],MarketingGepland[#Headers],0))-INDEX(MarketingWerkelijik[],MATCH(INDEX(MarketingVerschillen[],ROW()-ROW(MarketingVerschillen[[#Headers],[Dec]]),1),INDEX(MarketingGepland[],,1),0),MATCH(MarketingVerschillen[[#Headers],[Dec]],MarketingWerkelijik[#Headers],0))","v":{"v":200,"d":"€ 200.00"}},{"$f":"SUM(MarketingVerschillen[[#This Row],[Jan]:[Dec]])","v":{"v":820,"d":"€ 820.00"}}]
[null,"Marketingevenementen",{"$f":"INDEX(MarketingGepland[],MATCH(INDEX(MarketingVerschillen[],ROW()-ROW(MarketingVerschillen[[#Headers],[Jan]]),1),INDEX(MarketingGepland[],,1),0),MATCH(MarketingVerschillen[[#Headers],[Jan]],MarketingGepland[#Headers],0))-INDEX(MarketingWerkelijik[],MATCH(INDEX(MarketingVerschillen[],ROW()-ROW(MarketingVerschillen[[#Headers],[Jan]]),1),INDEX(MarketingGepland[],,1),0),MATCH(MarketingVerschillen[[#Headers],[Jan]],MarketingWerkelijik[#Headers],0))","v":{"v":200,"d":"€ 200.00"}},{"$f":"INDEX(MarketingGepland[],MATCH(INDEX(MarketingVerschillen[],ROW()-ROW(MarketingVerschillen[[#Headers],[Feb]]),1),INDEX(MarketingGepland[],,1),0),MATCH(MarketingVerschillen[[#Headers],[Feb]],MarketingGepland[#Headers],0))-INDEX(MarketingWerkelijik[],MATCH(INDEX(MarketingVerschillen[],ROW()-ROW(MarketingVerschillen[[#Headers],[Feb]]),1),INDEX(MarketingGepland[],,1),0),MATCH(MarketingVerschillen[[#Headers],[Feb]],MarketingWerkelijik[#Headers],0))","v":{"v":-200,"d":"€ -200.00"}},{"$f":"INDEX(MarketingGepland[],MATCH(INDEX(MarketingVerschillen[],ROW()-ROW(MarketingVerschillen[[#Headers],[Mrt]]),1),INDEX(MarketingGepland[],,1),0),MATCH(MarketingVerschillen[[#Headers],[Mrt]],MarketingGepland[#Headers],0))-INDEX(MarketingWerkelijik[],MATCH(INDEX(MarketingVerschillen[],ROW()-ROW(MarketingVerschillen[[#Headers],[Mrt]]),1),INDEX(MarketingGepland[],,1),0),MATCH(MarketingVerschillen[[#Headers],[Mrt]],MarketingWerkelijik[#Headers],0))","v":{"v":-200,"d":"€ -200.00"}},{"$f":"INDEX(MarketingGepland[],MATCH(INDEX(MarketingVerschillen[],ROW()-ROW(MarketingVerschillen[[#Headers],[Apr]]),1),INDEX(MarketingGepland[],,1),0),MATCH(MarketingVerschillen[[#Headers],[Apr]],MarketingGepland[#Headers],0))-INDEX(MarketingWerkelijik[],MATCH(INDEX(MarketingVerschillen[],ROW()-ROW(MarketingVerschillen[[#Headers],[Apr]]),1),INDEX(MarketingGepland[],,1),0),MATCH(MarketingVerschillen[[#Headers],[Apr]],MarketingWerkelijik[#Headers],0))","v":{"v":300,"d":"€ 300.00"}},{"$f":"INDEX(MarketingGepland[],MATCH(INDEX(MarketingVerschillen[],ROW()-ROW(MarketingVerschillen[[#Headers],[Mei]]),1),INDEX(MarketingGepland[],,1),0),MATCH(MarketingVerschillen[[#Headers],[Mei]],MarketingGepland[#Headers],0))-INDEX(MarketingWerkelijik[],MATCH(INDEX(MarketingVerschillen[],ROW()-ROW(MarketingVerschillen[[#Headers],[Mei]]),1),INDEX(MarketingGepland[],,1),0),MATCH(MarketingVerschillen[[#Headers],[Mei]],MarketingWerkelijik[#Headers],0))","v":{"v":500,"d":"€ 500.00"}},{"$f":"INDEX(MarketingGepland[],MATCH(INDEX(MarketingVerschillen[],ROW()-ROW(MarketingVerschillen[[#Headers],[Jun]]),1),INDEX(MarketingGepland[],,1),0),MATCH(MarketingVerschillen[[#Headers],[Jun]],MarketingGepland[#Headers],0))-INDEX(MarketingWerkelijik[],MATCH(INDEX(MarketingVerschillen[],ROW()-ROW(MarketingVerschillen[[#Headers],[Jun]]),1),INDEX(MarketingGepland[],,1),0),MATCH(MarketingVerschillen[[#Headers],[Jun]],MarketingWerkelijik[#Headers],0))","v":{"v":-300,"d":"€ -300.00"}},{"$f":"INDEX(MarketingGepland[],MATCH(INDEX(MarketingVerschillen[],ROW()-ROW(MarketingVerschillen[[#Headers],[Jul]]),1),INDEX(MarketingGepland[],,1),0),MATCH(MarketingVerschillen[[#Headers],[Jul]],MarketingGepland[#Headers],0))-INDEX(MarketingWerkelijik[],MATCH(INDEX(MarketingVerschillen[],ROW()-ROW(MarketingVerschillen[[#Headers],[Jul]]),1),INDEX(MarketingGepland[],,1),0),MATCH(MarketingVerschillen[[#Headers],[Jul]],MarketingWerkelijik[#Headers],0))","v":{"v":2000,"d":"€ 2,000.00"}},{"$f":"INDEX(MarketingGepland[],MATCH(INDEX(MarketingVerschillen[],ROW()-ROW(MarketingVerschillen[[#Headers],[Aug]]),1),INDEX(MarketingGepland[],,1),0),MATCH(MarketingVerschillen[[#Headers],[Aug]],MarketingGepland[#Headers],0))-INDEX(MarketingWerkelijik[],MATCH(INDEX(MarketingVerschillen[],ROW()-ROW(MarketingVerschillen[[#Headers],[Aug]]),1),INDEX(MarketingGepland[],,1),0),MATCH(MarketingVerschillen[[#Headers],[Aug]],MarketingWerkelijik[#Headers],0))","v":{"v":5000,"d":"€ 5,000.00"}},{"$f":"INDEX(MarketingGepland[],MATCH(INDEX(MarketingVerschillen[],ROW()-ROW(MarketingVerschillen[[#Headers],[Sep]]),1),INDEX(MarketingGepland[],,1),0),MATCH(MarketingVerschillen[[#Headers],[Sep]],MarketingGepland[#Headers],0))-INDEX(MarketingWerkelijik[],MATCH(INDEX(MarketingVerschillen[],ROW()-ROW(MarketingVerschillen[[#Headers],[Sep]]),1),INDEX(MarketingGepland[],,1),0),MATCH(MarketingVerschillen[[#Headers],[Sep]],MarketingWerkelijik[#Headers],0))","v":{"v":2000,"d":"€ 2,000.00"}},{"$f":"INDEX(MarketingGepland[],MATCH(INDEX(MarketingVerschillen[],ROW()-ROW(MarketingVerschillen[[#Headers],[Okt]]),1),INDEX(MarketingGepland[],,1),0),MATCH(MarketingVerschillen[[#Headers],[Okt]],MarketingGepland[#Headers],0))-INDEX(MarketingWerkelijik[],MATCH(INDEX(MarketingVerschillen[],ROW()-ROW(MarketingVerschillen[[#Headers],[Okt]]),1),INDEX(MarketingGepland[],,1),0),MATCH(MarketingVerschillen[[#Headers],[Okt]],MarketingWerkelijik[#Headers],0))","v":{"v":2000,"d":"€ 2,000.00"}},{"$f":"INDEX(MarketingGepland[],MATCH(INDEX(MarketingVerschillen[],ROW()-ROW(MarketingVerschillen[[#Headers],[Nov]]),1),INDEX(MarketingGepland[],,1),0),MATCH(MarketingVerschillen[[#Headers],[Nov]],MarketingGepland[#Headers],0))-INDEX(MarketingWerkelijik[],MATCH(INDEX(MarketingVerschillen[],ROW()-ROW(MarketingVerschillen[[#Headers],[Nov]]),1),INDEX(MarketingGepland[],,1),0),MATCH(MarketingVerschillen[[#Headers],[Nov]],MarketingWerkelijik[#Headers],0))","v":{"v":2000,"d":"€ 2,000.00"}},{"$f":"INDEX(MarketingGepland[],MATCH(INDEX(MarketingVerschillen[],ROW()-ROW(MarketingVerschillen[[#Headers],[Dec]]),1),INDEX(MarketingGepland[],,1),0),MATCH(MarketingVerschillen[[#Headers],[Dec]],MarketingGepland[#Headers],0))-INDEX(MarketingWerkelijik[],MATCH(INDEX(MarketingVerschillen[],ROW()-ROW(MarketingVerschillen[[#Headers],[Dec]]),1),INDEX(MarketingGepland[],,1),0),MATCH(MarketingVerschillen[[#Headers],[Dec]],MarketingWerkelijik[#Headers],0))","v":{"v":5000,"d":"€ 5,000.00"}},{"$f":"SUM(MarketingVerschillen[[#This Row],[Jan]:[Dec]])","v":{"v":18300,"d":"€ 18,300.00"}}]
[null,"Diverse kosten",{"$f":"INDEX(MarketingGepland[],MATCH(INDEX(MarketingVerschillen[],ROW()-ROW(MarketingVerschillen[[#Headers],[Jan]]),1),INDEX(MarketingGepland[],,1),0),MATCH(MarketingVerschillen[[#Headers],[Jan]],MarketingGepland[#Headers],0))-INDEX(MarketingWerkelijik[],MATCH(INDEX(MarketingVerschillen[],ROW()-ROW(MarketingVerschillen[[#Headers],[Jan]]),1),INDEX(MarketingGepland[],,1),0),MATCH(MarketingVerschillen[[#Headers],[Jan]],MarketingWerkelijik[#Headers],0))","v":{"v":55,"d":"€ 55.00"}},{"$f":"INDEX(MarketingGepland[],MATCH(INDEX(MarketingVerschillen[],ROW()-ROW(MarketingVerschillen[[#Headers],[Feb]]),1),INDEX(MarketingGepland[],,1),0),MATCH(MarketingVerschillen[[#Headers],[Feb]],MarketingGepland[#Headers],0))-INDEX(MarketingWerkelijik[],MATCH(INDEX(MarketingVerschillen[],ROW()-ROW(MarketingVerschillen[[#Headers],[Feb]]),1),INDEX(MarketingGepland[],,1),0),MATCH(MarketingVerschillen[[#Headers],[Feb]],MarketingWerkelijik[#Headers],0))","v":{"v":44,"d":"€ 44.00"}},{"$f":"INDEX(MarketingGepland[],MATCH(INDEX(MarketingVerschillen[],ROW()-ROW(MarketingVerschillen[[#Headers],[Mrt]]),1),INDEX(MarketingGepland[],,1),0),MATCH(MarketingVerschillen[[#Headers],[Mrt]],MarketingGepland[#Headers],0))-INDEX(MarketingWerkelijik[],MATCH(INDEX(MarketingVerschillen[],ROW()-ROW(MarketingVerschillen[[#Headers],[Mrt]]),1),INDEX(MarketingGepland[],,1),0),MATCH(MarketingVerschillen[[#Headers],[Mrt]],MarketingWerkelijik[#Headers],0))","v":{"v":77,"d":"€ 77.00"}},{"$f":"INDEX(MarketingGepland[],MATCH(INDEX(MarketingVerschillen[],ROW()-ROW(MarketingVerschillen[[#Headers],[Apr]]),1),INDEX(MarketingGepland[],,1),0),MATCH(MarketingVerschillen[[#Headers],[Apr]],MarketingGepland[#Headers],0))-INDEX(MarketingWerkelijik[],MATCH(INDEX(MarketingVerschillen[],ROW()-ROW(MarketingVerschillen[[#Headers],[Apr]]),1),INDEX(MarketingGepland[],,1),0),MATCH(MarketingVerschillen[[#Headers],[Apr]],MarketingWerkelijik[#Headers],0))","v":{"v":-23,"d":"€ -23.00"}},{"$f":"INDEX(MarketingGepland[],MATCH(INDEX(MarketingVerschillen[],ROW()-ROW(MarketingVerschillen[[#Headers],[Mei]]),1),INDEX(MarketingGepland[],,1),0),MATCH(MarketingVerschillen[[#Headers],[Mei]],MarketingGepland[#Headers],0))-INDEX(MarketingWerkelijik[],MATCH(INDEX(MarketingVerschillen[],ROW()-ROW(MarketingVerschillen[[#Headers],[Mei]]),1),INDEX(MarketingGepland[],,1),0),MATCH(MarketingVerschillen[[#Headers],[Mei]],MarketingWerkelijik[#Headers],0))","v":{"v":13,"d":"€ 13.00"}},{"$f":"INDEX(MarketingGepland[],MATCH(INDEX(MarketingVerschillen[],ROW()-ROW(MarketingVerschillen[[#Headers],[Jun]]),1),INDEX(MarketingGepland[],,1),0),MATCH(MarketingVerschillen[[#Headers],[Jun]],MarketingGepland[#Headers],0))-INDEX(MarketingWerkelijik[],MATCH(INDEX(MarketingVerschillen[],ROW()-ROW(MarketingVerschillen[[#Headers],[Jun]]),1),INDEX(MarketingGepland[],,1),0),MATCH(MarketingVerschillen[[#Headers],[Jun]],MarketingWerkelijik[#Headers],0))","v":{"v":-45,"d":"€ -45.00"}},{"$f":"INDEX(MarketingGepland[],MATCH(INDEX(MarketingVerschillen[],ROW()-ROW(MarketingVerschillen[[#Headers],[Jul]]),1),INDEX(MarketingGepland[],,1),0),MATCH(MarketingVerschillen[[#Headers],[Jul]],MarketingGepland[#Headers],0))-INDEX(MarketingWerkelijik[],MATCH(INDEX(MarketingVerschillen[],ROW()-ROW(MarketingVerschillen[[#Headers],[Jul]]),1),INDEX(MarketingGepland[],,1),0),MATCH(MarketingVerschillen[[#Headers],[Jul]],MarketingWerkelijik[#Headers],0))","v":{"v":200,"d":"€ 200.00"}},{"$f":"INDEX(MarketingGepland[],MATCH(INDEX(MarketingVerschillen[],ROW()-ROW(MarketingVerschillen[[#Headers],[Aug]]),1),INDEX(MarketingGepland[],,1),0),MATCH(MarketingVerschillen[[#Headers],[Aug]],MarketingGepland[#Headers],0))-INDEX(MarketingWerkelijik[],MATCH(INDEX(MarketingVerschillen[],ROW()-ROW(MarketingVerschillen[[#Headers],[Aug]]),1),INDEX(MarketingGepland[],,1),0),MATCH(MarketingVerschillen[[#Headers],[Aug]],MarketingWerkelijik[#Headers],0))","v":{"v":200,"d":"€ 200.00"}},{"$f":"INDEX(MarketingGepland[],MATCH(INDEX(MarketingVerschillen[],ROW()-ROW(MarketingVerschillen[[#Headers],[Sep]]),1),INDEX(MarketingGepland[],,1),0),MATCH(MarketingVerschillen[[#Headers],[Sep]],MarketingGepland[#Headers],0))-INDEX(MarketingWerkelijik[],MATCH(INDEX(MarketingVerschillen[],ROW()-ROW(MarketingVerschillen[[#Headers],[Sep]]),1),INDEX(MarketingGepland[],,1),0),MATCH(MarketingVerschillen[[#Headers],[Sep]],MarketingWerkelijik[#Headers],0))","v":{"v":200,"d":"€ 200.00"}},{"$f":"INDEX(MarketingGepland[],MATCH(INDEX(MarketingVerschillen[],ROW()-ROW(MarketingVerschillen[[#Headers],[Okt]]),1),INDEX(MarketingGepland[],,1),0),MATCH(MarketingVerschillen[[#Headers],[Okt]],MarketingGepland[#Headers],0))-INDEX(MarketingWerkelijik[],MATCH(INDEX(MarketingVerschillen[],ROW()-ROW(MarketingVerschillen[[#Headers],[Okt]]),1),INDEX(MarketingGepland[],,1),0),MATCH(MarketingVerschillen[[#Headers],[Okt]],MarketingWerkelijik[#Headers],0))","v":{"v":200,"d":"€ 200.00"}},{"$f":"INDEX(MarketingGepland[],MATCH(INDEX(MarketingVerschillen[],ROW()-ROW(MarketingVerschillen[[#Headers],[Nov]]),1),INDEX(MarketingGepland[],,1),0),MATCH(MarketingVerschillen[[#Headers],[Nov]],MarketingGepland[#Headers],0))-INDEX(MarketingWerkelijik[],MATCH(INDEX(MarketingVerschillen[],ROW()-ROW(MarketingVerschillen[[#Headers],[Nov]]),1),INDEX(MarketingGepland[],,1),0),MATCH(MarketingVerschillen[[#Headers],[Nov]],MarketingWerkelijik[#Headers],0))","v":{"v":200,"d":"€ 200.00"}},{"$f":"INDEX(MarketingGepland[],MATCH(INDEX(MarketingVerschillen[],ROW()-ROW(MarketingVerschillen[[#Headers],[Dec]]),1),INDEX(MarketingGepland[],,1),0),MATCH(MarketingVerschillen[[#Headers],[Dec]],MarketingGepland[#Headers],0))-INDEX(MarketingWerkelijik[],MATCH(INDEX(MarketingVerschillen[],ROW()-ROW(MarketingVerschillen[[#Headers],[Dec]]),1),INDEX(MarketingGepland[],,1),0),MATCH(MarketingVerschillen[[#Headers],[Dec]],MarketingWerkelijik[#Headers],0))","v":{"v":200,"d":"€ 200.00"}},{"$f":"SUM(MarketingVerschillen[[#This Row],[Jan]:[Dec]])","v":{"v":1321,"d":"€ 1,321.00"}}]
[null,"Subtotaal",{"$f":"SUBTOTAL(109,MarketingVerschillen[Jan])","v":{"v":555,"d":"€ 555.00"}},{"$f":"SUBTOTAL(109,MarketingVerschillen[Feb])","v":{"v":-456,"d":"€ -456.00"}},{"$f":"SUBTOTAL(109,MarketingVerschillen[Mrt])","v":{"v":-23,"d":"€ -23.00"}},{"$f":"SUBTOTAL(109,MarketingVerschillen[Apr])","v":{"v":-123,"d":"€ -123.00"}},{"$f":"SUBTOTAL(109,MarketingVerschillen[Mei])","v":{"v":113,"d":"€ 113.00"}},{"$f":"SUBTOTAL(109,MarketingVerschillen[Jun])","v":{"v":-825,"d":"€ -825.00"}},{"$f":"SUBTOTAL(109,MarketingVerschillen[Jul])","v":{"v":8100,"d":"€ 8,100.00"}},{"$f":"SUBTOTAL(109,MarketingVerschillen[Aug])","v":{"v":6100,"d":"€ 6,100.00"}},{"$f":"SUBTOTAL(109,MarketingVerschillen[Sep])","v":{"v":3100,"d":"€ 3,100.00"}},{"$f":"SUBTOTAL(109,MarketingVerschillen[Okt])","v":{"v":8100,"d":"€ 8,100.00"}},{"$f":"SUBTOTAL(109,MarketingVerschillen[Nov])","v":{"v":3100,"d":"€ 3,100.00"}},{"$f":"SUBTOTAL(109,MarketingVerschillen[Dec])","v":{"v":6900,"d":"€ 6,900.00"}},{"$f":"SUBTOTAL(109,MarketingVerschillen[JAAR])","v":{"v":34641,"d":"€ 34,641.00"}}]
[]
["Het verschil in training- of reiskosten wordt automatisch berekend in de tabel TrainingEnReizenVerschillen die in de cel rechts begint. De volgende aanwijzing staat in cel A35.","Training/Reizen","Jan","Feb","Mrt","Apr","Mei","Jun","Jul","Aug","Sep","Okt","Nov","Dec","JAAR"]
[null,"Trainingscursussen",{"$f":"INDEX(TrainingEnReizenGepland[],MATCH(INDEX(TrainingEnReizenVerschillen[],ROW()-ROW(TrainingEnReizenVerschillen[[#Headers],[Jan]]),1),INDEX(TrainingEnReizenGepland[],,1),0),MATCH(TrainingEnReizenVerschillen[[#Headers],[Jan]],TrainingEnReizenGepland[#Headers],0))-INDEX(TrainingEnReizenWerkelijk[],MATCH(INDEX(TrainingEnReizenVerschillen[],ROW()-ROW(TrainingEnReizenVerschillen[[#Headers],[Jan]]),1),INDEX(TrainingEnReizenGepland[],,1),0),MATCH(TrainingEnReizenVerschillen[[#Headers],[Jan]],TrainingEnReizenWerkelijk[#Headers],0))","v":{"v":400,"d":"€ 400.00"}},{"$f":"INDEX(TrainingEnReizenGepland[],MATCH(INDEX(TrainingEnReizenVerschillen[],ROW()-ROW(TrainingEnReizenVerschillen[[#Headers],[Feb]]),1),INDEX(TrainingEnReizenGepland[],,1),0),MATCH(TrainingEnReizenVerschillen[[#Headers],[Feb]],TrainingEnReizenGepland[#Headers],0))-INDEX(TrainingEnReizenWerkelijk[],MATCH(INDEX(TrainingEnReizenVerschillen[],ROW()-ROW(TrainingEnReizenVerschillen[[#Headers],[Feb]]),1),INDEX(TrainingEnReizenGepland[],,1),0),MATCH(TrainingEnReizenVerschillen[[#Headers],[Feb]],TrainingEnReizenWerkelijk[#Headers],0))","v":{"v":-400,"d":"€ -400.00"}},{"$f":"INDEX(TrainingEnReizenGepland[],MATCH(INDEX(TrainingEnReizenVerschillen[],ROW()-ROW(TrainingEnReizenVerschillen[[#Headers],[Mrt]]),1),INDEX(TrainingEnReizenGepland[],,1),0),MATCH(TrainingEnReizenVerschillen[[#Headers],[Mrt]],TrainingEnReizenGepland[#Headers],0))-INDEX(TrainingEnReizenWerkelijk[],MATCH(INDEX(TrainingEnReizenVerschillen[],ROW()-ROW(TrainingEnReizenVerschillen[[#Headers],[Mrt]]),1),INDEX(TrainingEnReizenGepland[],,1),0),MATCH(TrainingEnReizenVerschillen[[#Headers],[Mrt]],TrainingEnReizenWerkelijk[#Headers],0))","v":{"v":600,"d":"€ 600.00"}},{"$f":"INDEX(TrainingEnReizenGepland[],MATCH(INDEX(TrainingEnReizenVerschillen[],ROW()-ROW(TrainingEnReizenVerschillen[[#Headers],[Apr]]),1),INDEX(TrainingEnReizenGepland[],,1),0),MATCH(TrainingEnReizenVerschillen[[#Headers],[Apr]],TrainingEnReizenGepland[#Headers],0))-INDEX(TrainingEnReizenWerkelijk[],MATCH(INDEX(TrainingEnReizenVerschillen[],ROW()-ROW(TrainingEnReizenVerschillen[[#Headers],[Apr]]),1),INDEX(TrainingEnReizenGepland[],,1),0),MATCH(TrainingEnReizenVerschillen[[#Headers],[Apr]],TrainingEnReizenWerkelijk[#Headers],0))","v":{"v":400,"d":"€ 400.00"}},{"$f":"INDEX(TrainingEnReizenGepland[],MATCH(INDEX(TrainingEnReizenVerschillen[],ROW()-ROW(TrainingEnReizenVerschillen[[#Headers],[Mei]]),1),INDEX(TrainingEnReizenGepland[],,1),0),MATCH(TrainingEnReizenVerschillen[[#Headers],[Mei]],TrainingEnReizenGepland[#Headers],0))-INDEX(TrainingEnReizenWerkelijk[],MATCH(INDEX(TrainingEnReizenVerschillen[],ROW()-ROW(TrainingEnReizenVerschillen[[#Headers],[Mei]]),1),INDEX(TrainingEnReizenGepland[],,1),0),MATCH(TrainingEnReizenVerschillen[[#Headers],[Mei]],TrainingEnReizenWerkelijk[#Headers],0))","v":{"v":800,"d":"€ 800.00"}},{"$f":"INDEX(TrainingEnReizenGepland[],MATCH(INDEX(TrainingEnReizenVerschillen[],ROW()-ROW(TrainingEnReizenVerschillen[[#Headers],[Jun]]),1),INDEX(TrainingEnReizenGepland[],,1),0),MATCH(TrainingEnReizenVerschillen[[#Headers],[Jun]],TrainingEnReizenGepland[#Headers],0))-INDEX(TrainingEnReizenWerkelijk[],MATCH(INDEX(TrainingEnReizenVerschillen[],ROW()-ROW(TrainingEnReizenVerschillen[[#Headers],[Jun]]),1),INDEX(TrainingEnReizenGepland[],,1),0),MATCH(TrainingEnReizenVerschillen[[#Headers],[Jun]],TrainingEnReizenWerkelijk[#Headers],0))","v":{"v":-800,"d":"€ -800.00"}},{"$f":"INDEX(TrainingEnReizenGepland[],MATCH(INDEX(TrainingEnReizenVerschillen[],ROW()-ROW(TrainingEnReizenVerschillen[[#Headers],[Jul]]),1),INDEX(TrainingEnReizenGepland[],,1),0),MATCH(TrainingEnReizenVerschillen[[#Headers],[Jul]],TrainingEnReizenGepland[#Headers],0))-INDEX(TrainingEnReizenWerkelijk[],MATCH(INDEX(TrainingEnReizenVerschillen[],ROW()-ROW(TrainingEnReizenVerschillen[[#Headers],[Jul]]),1),INDEX(TrainingEnReizenGepland[],,1),0),MATCH(TrainingEnReizenVerschillen[[#Headers],[Jul]],TrainingEnReizenWerkelijk[#Headers],0))","v":{"v":2000,"d":"€ 2,000.00"}},{"$f":"INDEX(TrainingEnReizenGepland[],MATCH(INDEX(TrainingEnReizenVerschillen[],ROW()-ROW(TrainingEnReizenVerschillen[[#Headers],[Aug]]),1),INDEX(TrainingEnReizenGepland[],,1),0),MATCH(TrainingEnReizenVerschillen[[#Headers],[Aug]],TrainingEnReizenGepland[#Headers],0))-INDEX(TrainingEnReizenWerkelijk[],MATCH(INDEX(TrainingEnReizenVerschillen[],ROW()-ROW(TrainingEnReizenVerschillen[[#Headers],[Aug]]),1),INDEX(TrainingEnReizenGepland[],,1),0),MATCH(TrainingEnReizenVerschillen[[#Headers],[Aug]],TrainingEnReizenWerkelijk[#Headers],0))","v":{"v":2000,"d":"€ 2,000.00"}},{"$f":"INDEX(TrainingEnReizenGepland[],MATCH(INDEX(TrainingEnReizenVerschillen[],ROW()-ROW(TrainingEnReizenVerschillen[[#Headers],[Sep]]),1),INDEX(TrainingEnReizenGepland[],,1),0),MATCH(TrainingEnReizenVerschillen[[#Headers],[Sep]],TrainingEnReizenGepland[#Headers],0))-INDEX(TrainingEnReizenWerkelijk[],MATCH(INDEX(TrainingEnReizenVerschillen[],ROW()-ROW(TrainingEnReizenVerschillen[[#Headers],[Sep]]),1),INDEX(TrainingEnReizenGepland[],,1),0),MATCH(TrainingEnReizenVerschillen[[#Headers],[Sep]],TrainingEnReizenWerkelijk[#Headers],0))","v":{"v":2000,"d":"€ 2,000.00"}},{"$f":"INDEX(TrainingEnReizenGepland[],MATCH(INDEX(TrainingEnReizenVerschillen[],ROW()-ROW(TrainingEnReizenVerschillen[[#Headers],[Okt]]),1),INDEX(TrainingEnReizenGepland[],,1),0),MATCH(TrainingEnReizenVerschillen[[#Headers],[Okt]],TrainingEnReizenGepland[#Headers],0))-INDEX(TrainingEnReizenWerkelijk[],MATCH(INDEX(TrainingEnReizenVerschillen[],ROW()-ROW(TrainingEnReizenVerschillen[[#Headers],[Okt]]),1),INDEX(TrainingEnReizenGepland[],,1),0),MATCH(TrainingEnReizenVerschillen[[#Headers],[Okt]],TrainingEnReizenWerkelijk[#Headers],0))","v":{"v":2000,"d":"€ 2,000.00"}},{"$f":"INDEX(TrainingEnReizenGepland[],MATCH(INDEX(TrainingEnReizenVerschillen[],ROW()-ROW(TrainingEnReizenVerschillen[[#Headers],[Nov]]),1),INDEX(TrainingEnReizenGepland[],,1),0),MATCH(TrainingEnReizenVerschillen[[#Headers],[Nov]],TrainingEnReizenGepland[#Headers],0))-INDEX(TrainingEnReizenWerkelijk[],MATCH(INDEX(TrainingEnReizenVerschillen[],ROW()-ROW(TrainingEnReizenVerschillen[[#Headers],[Nov]]),1),INDEX(TrainingEnReizenGepland[],,1),0),MATCH(TrainingEnReizenVerschillen[[#Headers],[Nov]],TrainingEnReizenWerkelijk[#Headers],0))","v":{"v":2000,"d":"€ 2,000.00"}},{"$f":"INDEX(TrainingEnReizenGepland[],MATCH(INDEX(TrainingEnReizenVerschillen[],ROW()-ROW(TrainingEnReizenVerschillen[[#Headers],[Dec]]),1),INDEX(TrainingEnReizenGepland[],,1),0),MATCH(TrainingEnReizenVerschillen[[#Headers],[Dec]],TrainingEnReizenGepland[#Headers],0))-INDEX(TrainingEnReizenWerkelijk[],MATCH(INDEX(TrainingEnReizenVerschillen[],ROW()-ROW(TrainingEnReizenVerschillen[[#Headers],[Dec]]),1),INDEX(TrainingEnReizenGepland[],,1),0),MATCH(TrainingEnReizenVerschillen[[#Headers],[Dec]],TrainingEnReizenWerkelijk[#Headers],0))","v":{"v":2000,"d":"€ 2,000.00"}},{"$f":"SUM(TrainingEnReizenVerschillen[[#This Row],[Jan]:[Dec]])","v":{"v":13000,"d":"€ 13,000.00"}}]
[null,"Traininggerelateerde reiskosten",{"$f":"INDEX(TrainingEnReizenGepland[],MATCH(INDEX(TrainingEnReizenVerschillen[],ROW()-ROW(TrainingEnReizenVerschillen[[#Headers],[Jan]]),1),INDEX(TrainingEnReizenGepland[],,1),0),MATCH(TrainingEnReizenVerschillen[[#Headers],[Jan]],TrainingEnReizenGepland[#Headers],0))-INDEX(TrainingEnReizenWerkelijk[],MATCH(INDEX(TrainingEnReizenVerschillen[],ROW()-ROW(TrainingEnReizenVerschillen[[#Headers],[Jan]]),1),INDEX(TrainingEnReizenGepland[],,1),0),MATCH(TrainingEnReizenVerschillen[[#Headers],[Jan]],TrainingEnReizenWerkelijk[#Headers],0))","v":{"v":800,"d":"€ 800.00"}},{"$f":"INDEX(TrainingEnReizenGepland[],MATCH(INDEX(TrainingEnReizenVerschillen[],ROW()-ROW(TrainingEnReizenVerschillen[[#Headers],[Feb]]),1),INDEX(TrainingEnReizenGepland[],,1),0),MATCH(TrainingEnReizenVerschillen[[#Headers],[Feb]],TrainingEnReizenGepland[#Headers],0))-INDEX(TrainingEnReizenWerkelijk[],MATCH(INDEX(TrainingEnReizenVerschillen[],ROW()-ROW(TrainingEnReizenVerschillen[[#Headers],[Feb]]),1),INDEX(TrainingEnReizenGepland[],,1),0),MATCH(TrainingEnReizenVerschillen[[#Headers],[Feb]],TrainingEnReizenWerkelijk[#Headers],0))","v":{"v":-200,"d":"€ -200.00"}},{"$f":"INDEX(TrainingEnReizenGepland[],MATCH(INDEX(TrainingEnReizenVerschillen[],ROW()-ROW(TrainingEnReizenVerschillen[[#Headers],[Mrt]]),1),INDEX(TrainingEnReizenGepland[],,1),0),MATCH(TrainingEnReizenVerschillen[[#Headers],[Mrt]],TrainingEnReizenGepland[#Headers],0))-INDEX(TrainingEnReizenWerkelijk[],MATCH(INDEX(TrainingEnReizenVerschillen[],ROW()-ROW(TrainingEnReizenVerschillen[[#Headers],[Mrt]]),1),INDEX(TrainingEnReizenGepland[],,1),0),MATCH(TrainingEnReizenVerschillen[[#Headers],[Mrt]],TrainingEnReizenWerkelijk[#Headers],0))","v":{"v":600,"d":"€ 600.00"}},{"$f":"INDEX(TrainingEnReizenGepland[],MATCH(INDEX(TrainingEnReizenVerschillen[],ROW()-ROW(TrainingEnReizenVerschillen[[#Headers],[Apr]]),1),INDEX(TrainingEnReizenGepland[],,1),0),MATCH(TrainingEnReizenVerschillen[[#Headers],[Apr]],TrainingEnReizenGepland[#Headers],0))-INDEX(TrainingEnReizenWerkelijk[],MATCH(INDEX(TrainingEnReizenVerschillen[],ROW()-ROW(TrainingEnReizenVerschillen[[#Headers],[Apr]]),1),INDEX(TrainingEnReizenGepland[],,1),0),MATCH(TrainingEnReizenVerschillen[[#Headers],[Apr]],TrainingEnReizenWerkelijk[#Headers],0))","v":{"v":800,"d":"€ 800.00"}},{"$f":"INDEX(TrainingEnReizenGepland[],MATCH(INDEX(TrainingEnReizenVerschillen[],ROW()-ROW(TrainingEnReizenVerschillen[[#Headers],[Mei]]),1),INDEX(TrainingEnReizenGepland[],,1),0),MATCH(TrainingEnReizenVerschillen[[#Headers],[Mei]],TrainingEnReizenGepland[#Headers],0))-INDEX(TrainingEnReizenWerkelijk[],MATCH(INDEX(TrainingEnReizenVerschillen[],ROW()-ROW(TrainingEnReizenVerschillen[[#Headers],[Mei]]),1),INDEX(TrainingEnReizenGepland[],,1),0),MATCH(TrainingEnReizenVerschillen[[#Headers],[Mei]],TrainingEnReizenWerkelijk[#Headers],0))","v":{"v":1200,"d":"€ 1,200.00"}},{"$f":"INDEX(TrainingEnReizenGepland[],MATCH(INDEX(TrainingEnReizenVerschillen[],ROW()-ROW(TrainingEnReizenVerschillen[[#Headers],[Jun]]),1),INDEX(TrainingEnReizenGepland[],,1),0),MATCH(TrainingEnReizenVerschillen[[#Headers],[Jun]],TrainingEnReizenGepland[#Headers],0))-INDEX(TrainingEnReizenWerkelijk[],MATCH(INDEX(TrainingEnReizenVerschillen[],ROW()-ROW(TrainingEnReizenVerschillen[[#Headers],[Jun]]),1),INDEX(TrainingEnReizenGepland[],,1),0),MATCH(TrainingEnReizenVerschillen[[#Headers],[Jun]],TrainingEnReizenWerkelijk[#Headers],0))","v":{"v":-1500,"d":"€ -1,500.00"}},{"$f":"INDEX(TrainingEnReizenGepland[],MATCH(INDEX(TrainingEnReizenVerschillen[],ROW()-ROW(TrainingEnReizenVerschillen[[#Headers],[Jul]]),1),INDEX(TrainingEnReizenGepland[],,1),0),MATCH(TrainingEnReizenVerschillen[[#Headers],[Jul]],TrainingEnReizenGepland[#Headers],0))-INDEX(TrainingEnReizenWerkelijk[],MATCH(INDEX(TrainingEnReizenVerschillen[],ROW()-ROW(TrainingEnReizenVerschillen[[#Headers],[Jul]]),1),INDEX(TrainingEnReizenGepland[],,1),0),MATCH(TrainingEnReizenVerschillen[[#Headers],[Jul]],TrainingEnReizenWerkelijk[#Headers],0))","v":{"v":2000,"d":"€ 2,000.00"}},{"$f":"INDEX(TrainingEnReizenGepland[],MATCH(INDEX(TrainingEnReizenVerschillen[],ROW()-ROW(TrainingEnReizenVerschillen[[#Headers],[Aug]]),1),INDEX(TrainingEnReizenGepland[],,1),0),MATCH(TrainingEnReizenVerschillen[[#Headers],[Aug]],TrainingEnReizenGepland[#Headers],0))-INDEX(TrainingEnReizenWerkelijk[],MATCH(INDEX(TrainingEnReizenVerschillen[],ROW()-ROW(TrainingEnReizenVerschillen[[#Headers],[Aug]]),1),INDEX(TrainingEnReizenGepland[],,1),0),MATCH(TrainingEnReizenVerschillen[[#Headers],[Aug]],TrainingEnReizenWerkelijk[#Headers],0))","v":{"v":2000,"d":"€ 2,000.00"}},{"$f":"INDEX(TrainingEnReizenGepland[],MATCH(INDEX(TrainingEnReizenVerschillen[],ROW()-ROW(TrainingEnReizenVerschillen[[#Headers],[Sep]]),1),INDEX(TrainingEnReizenGepland[],,1),0),MATCH(TrainingEnReizenVerschillen[[#Headers],[Sep]],TrainingEnReizenGepland[#Headers],0))-INDEX(TrainingEnReizenWerkelijk[],MATCH(INDEX(TrainingEnReizenVerschillen[],ROW()-ROW(TrainingEnReizenVerschillen[[#Headers],[Sep]]),1),INDEX(TrainingEnReizenGepland[],,1),0),MATCH(TrainingEnReizenVerschillen[[#Headers],[Sep]],TrainingEnReizenWerkelijk[#Headers],0))","v":{"v":2000,"d":"€ 2,000.00"}},{"$f":"INDEX(TrainingEnReizenGepland[],MATCH(INDEX(TrainingEnReizenVerschillen[],ROW()-ROW(TrainingEnReizenVerschillen[[#Headers],[Okt]]),1),INDEX(TrainingEnReizenGepland[],,1),0),MATCH(TrainingEnReizenVerschillen[[#Headers],[Okt]],TrainingEnReizenGepland[#Headers],0))-INDEX(TrainingEnReizenWerkelijk[],MATCH(INDEX(TrainingEnReizenVerschillen[],ROW()-ROW(TrainingEnReizenVerschillen[[#Headers],[Okt]]),1),INDEX(TrainingEnReizenGepland[],,1),0),MATCH(TrainingEnReizenVerschillen[[#Headers],[Okt]],TrainingEnReizenWerkelijk[#Headers],0))","v":{"v":2000,"d":"€ 2,000.00"}},{"$f":"INDEX(TrainingEnReizenGepland[],MATCH(INDEX(TrainingEnReizenVerschillen[],ROW()-ROW(TrainingEnReizenVerschillen[[#Headers],[Nov]]),1),INDEX(TrainingEnReizenGepland[],,1),0),MATCH(TrainingEnReizenVerschillen[[#Headers],[Nov]],TrainingEnReizenGepland[#Headers],0))-INDEX(TrainingEnReizenWerkelijk[],MATCH(INDEX(TrainingEnReizenVerschillen[],ROW()-ROW(TrainingEnReizenVerschillen[[#Headers],[Nov]]),1),INDEX(TrainingEnReizenGepland[],,1),0),MATCH(TrainingEnReizenVerschillen[[#Headers],[Nov]],TrainingEnReizenWerkelijk[#Headers],0))","v":{"v":2000,"d":"€ 2,000.00"}},{"$f":"INDEX(TrainingEnReizenGepland[],MATCH(INDEX(TrainingEnReizenVerschillen[],ROW()-ROW(TrainingEnReizenVerschillen[[#Headers],[Dec]]),1),INDEX(TrainingEnReizenGepland[],,1),0),MATCH(TrainingEnReizenVerschillen[[#Headers],[Dec]],TrainingEnReizenGepland[#Headers],0))-INDEX(TrainingEnReizenWerkelijk[],MATCH(INDEX(TrainingEnReizenVerschillen[],ROW()-ROW(TrainingEnReizenVerschillen[[#Headers],[Dec]]),1),INDEX(TrainingEnReizenGepland[],,1),0),MATCH(TrainingEnReizenVerschillen[[#Headers],[Dec]],TrainingEnReizenWerkelijk[#Headers],0))","v":{"v":2000,"d":"€ 2,000.00"}},{"$f":"SUM(TrainingEnReizenVerschillen[[#This Row],[Jan]:[Dec]])","v":{"v":13700,"d":"€ 13,700.00"}}]
[null,"Subtotaal",{"$f":"SUBTOTAL(109,TrainingEnReizenVerschillen[Jan])","v":{"v":1200,"d":"€ 1,200.00"}},{"$f":"SUBTOTAL(109,TrainingEnReizenVerschillen[Feb])","v":{"v":-600,"d":"€ -600.00"}},{"$f":"SUBTOTAL(109,TrainingEnReizenVerschillen[Mrt])","v":{"v":1200,"d":"€ 1,200.00"}},{"$f":"SUBTOTAL(109,TrainingEnReizenVerschillen[Apr])","v":{"v":1200,"d":"€ 1,200.00"}},{"$f":"SUBTOTAL(109,TrainingEnReizenVerschillen[Mei])","v":{"v":2000,"d":"€ 2,000.00"}},{"$f":"SUBTOTAL(109,TrainingEnReizenVerschillen[Jun])","v":{"v":-2300,"d":"€ -2,300.00"}},{"$f":"SUBTOTAL(109,TrainingEnReizenVerschillen[Jul])","v":{"v":4000,"d":"€ 4,000.00"}},{"$f":"SUBTOTAL(109,TrainingEnReizenVerschillen[Aug])","v":{"v":4000,"d":"€ 4,000.00"}},{"$f":"SUBTOTAL(109,TrainingEnReizenVerschillen[Sep])","v":{"v":4000,"d":"€ 4,000.00"}},{"$f":"SUBTOTAL(109,TrainingEnReizenVerschillen[Okt])","v":{"v":4000,"d":"€ 4,000.00"}},{"$f":"SUBTOTAL(109,TrainingEnReizenVerschillen[Nov])","v":{"v":4000,"d":"€ 4,000.00"}},{"$f":"SUBTOTAL(109,TrainingEnReizenVerschillen[Dec])","v":{"v":4000,"d":"€ 4,000.00"}},{"$f":"SUBTOTAL(109,TrainingEnReizenVerschillen[JAAR])","v":{"v":26700,"d":"€ 26,700.00"}}]
[]
["Kostenverschillen worden automatisch berekend in de tabel TotaalVerschillen die in de cel rechts begint.","TOTALEN","Jan","Feb","Mrt","Apr","Mei","Jun","Jul","Aug","Sep","Okt","Nov","Dec","Jaar"]
[null,"Werkelijke kosten per maand",{"$f":"TrainingEnReizenVerschillen[[#Totals],[Jan]]+MarketingVerschillen[[#Totals],[Jan]]+KantoorVerschillen[[#Totals],[Jan]]+PersoneelVerschillen[[#Totals],[Jan]]","v":{"v":1738,"d":"€ 1,738.00"}},{"$f":"TrainingEnReizenVerschillen[[#Totals],[Feb]]+MarketingVerschillen[[#Totals],[Feb]]+KantoorVerschillen[[#Totals],[Feb]]+PersoneelVerschillen[[#Totals],[Feb]]","v":{"v":-984,"d":"€ -984.00"}},{"$f":"TrainingEnReizenVerschillen[[#Totals],[Mrt]]+MarketingVerschillen[[#Totals],[Mrt]]+KantoorVerschillen[[#Totals],[Mrt]]+PersoneelVerschillen[[#Totals],[Mrt]]","v":{"v":1255,"d":"€ 1,255.00"}},{"$f":"TrainingEnReizenVerschillen[[#Totals],[Apr]]+MarketingVerschillen[[#Totals],[Apr]]+KantoorVerschillen[[#Totals],[Apr]]+PersoneelVerschillen[[#Totals],[Apr]]","v":{"v":301,"d":"€ 301.00"}},{"$f":"TrainingEnReizenVerschillen[[#Totals],[Mei]]+MarketingVerschillen[[#Totals],[Mei]]+KantoorVerschillen[[#Totals],[Mei]]+PersoneelVerschillen[[#Totals],[Mei]]","v":{"v":1440,"d":"€ 1,440.00"}},{"$f":"TrainingEnReizenVerschillen[[#Totals],[Jun]]+MarketingVerschillen[[#Totals],[Jun]]+KantoorVerschillen[[#Totals],[Jun]]+PersoneelVerschillen[[#Totals],[Jun]]","v":{"v":-3744,"d":"€ -3,744.00"}},{"$f":"TrainingEnReizenVerschillen[[#Totals],[Jul]]+MarketingVerschillen[[#Totals],[Jul]]+KantoorVerschillen[[#Totals],[Jul]]+PersoneelVerschillen[[#Totals],[Jul]]","v":{"v":134695,"d":"€ 134,695.00"}},{"$f":"TrainingEnReizenVerschillen[[#Totals],[Aug]]+MarketingVerschillen[[#Totals],[Aug]]+KantoorVerschillen[[#Totals],[Aug]]+PersoneelVerschillen[[#Totals],[Aug]]","v":{"v":138918,"d":"€ 138,918.00"}},{"$f":"TrainingEnReizenVerschillen[[#Totals],[Sep]]+MarketingVerschillen[[#Totals],[Sep]]+KantoorVerschillen[[#Totals],[Sep]]+PersoneelVerschillen[[#Totals],[Sep]]","v":{"v":135918,"d":"€ 135,918.00"}},{"$f":"TrainingEnReizenVerschillen[[#Totals],[Okt]]+MarketingVerschillen[[#Totals],[Okt]]+KantoorVerschillen[[#Totals],[Okt]]+PersoneelVerschillen[[#Totals],[Okt]]","v":{"v":140918,"d":"€ 140,918.00"}},{"$f":"TrainingEnReizenVerschillen[[#Totals],[Nov]]+MarketingVerschillen[[#Totals],[Nov]]+KantoorVerschillen[[#Totals],[Nov]]+PersoneelVerschillen[[#Totals],[Nov]]","v":{"v":136218,"d":"€ 136,218.00"}},{"$f":"TrainingEnReizenVerschillen[[#Totals],[Dec]]+MarketingVerschillen[[#Totals],[Dec]]+KantoorVerschillen[[#Totals],[Dec]]+PersoneelVerschillen[[#Totals],[Dec]]","v":{"v":140018,"d":"€ 140,018.00"}},{"$f":"TrainingEnReizenVerschillen[[#Totals],[JAAR]]+MarketingVerschillen[[#Totals],[JAAR]]+KantoorVerschillen[[#Totals],[JAAR]]+PersoneelVerschillen[[#Totals],[JAAR]]","v":{"v":826691,"d":"€ 826,691.00"}}]
[null,"TOTALE werkelijke kosten",{"$f":"SUM($C$36:C36)","v":{"v":1738,"d":"€ 1,738.00"}},{"$f":"SUM($C$36:D36)","v":{"v":754,"d":"€ 754.00"}},{"$f":"SUM($C$36:E36)","v":{"v":2009,"d":"€ 2,009.00"}},{"$f":"SUM($C$36:F36)","v":{"v":2310,"d":"€ 2,310.00"}},{"$f":"SUM($C$36:G36)","v":{"v":3750,"d":"€ 3,750.00"}},{"$f":"SUM($C$36:H36)","v":{"v":6,"d":"€ 6.00"}},{"$f":"SUM($C$36:I36)","v":{"v":134701,"d":"€ 134,701.00"}},{"$f":"SUM($C$36:J36)","v":{"v":273619,"d":"€ 273,619.00"}},{"$f":"SUM($C$36:K36)","v":{"v":409537,"d":"€ 409,537.00"}},{"$f":"SUM($C$36:L36)","v":{"v":550455,"d":"€ 550,455.00"}},{"$f":"SUM($C$36:M36)","v":{"v":686673,"d":"€ 686,673.00"}},{"$f":"SUM($C$36:N36)","v":{"v":826691,"d":"€ 826,691.00"}}]

{"sheet":"KOSTENANALYSE","index":4,"n_rows":14,"n_cols":16,"rows_kept":14,"merged":[[1,1,2,3],[1,5,1,6],[2,4,2,6],[11,1,11,2],[11,3,11,5],[13,1,36,5]]}
["Jaarlijkse geplande en werkelijke kosten, kostenverschillen en verschilpercentage worden automatisch bijgewerkt voor elke kostencategorie in dit werkblad. Cellen in deze kolom bevatten handige instructies voor het gebruik van deze sjabloon. Druk op de pijl-omlaag-toets om aan de slag te gaan. ",{"$nulls":5}," ",{"$nulls":8}," "]
["Bedrijfsnaam wordt automatisch bijgewerkt in de cel rechts. Voer het logo in cel F2 in.",{"$f":"'GEPLANDE KOSTEN'!B2:D3","v":"Bedrijfsnaam"},{"$nulls":3},"Tijdelijke aanduiding voor logo bevindt zich in deze cel."]
["De titel van dit werkblad staat in cel E3. De volgende aanwijzing staat in cel A5.",{"$nulls":3},{"$f":"werkbladtitel","v":"Gedetailleerde kostenschattingen"}]
[]
["Geplande kosten, werkelijke kosten, kostenverschillen, en verschilpercentage worden automatisch berekend in de tabel Analyse die begint in de cel rechts. De volgende aanwijzing staat in cel A12.","Kostencategorie","Geplande kosten","Werkelijke kosten","Kostenverschillen","Verschilpercentage"]
[null,"Personeelskosten",{"$f":"PersoneelGepland[[#Totals],[JAAR]]","v":{"v":1355090,"d":"€ 1,355,090.00"}},{"$f":"PersoneelWerkelijk[[#Totals],[JAAR]]","v":{"v":659130,"d":"€ 659,130.00"}},{"$f":"C6-D6","v":{"v":695960,"d":"€ 695,960.00"}},{"$f":"E6/C6","v":{"v":0.5135895032802249,"d":"51%"}}]
[null,{"$f":"'GEPLANDE KOSTEN'!B10","v":"Kantoorkosten"},{"$f":"KantoorGepland[[#Totals],[JAAR]]","v":{"v":138740,"d":"€ 138,740.00"}},{"$f":"KantoorWerkelijk[[#Totals],[JAAR]]","v":{"v":69350,"d":"€ 69,350.00"}},{"$f":"C7-D7","v":{"v":69390,"d":"€ 69,390.00"}},{"$f":"E7/C7","v":{"v":0.5001441545336601,"d":"50%"}}]
[null,{"$f":"'GEPLANDE KOSTEN'!B21","v":"Marketingkosten"},{"$f":"MarketingGepland[[#Totals],[JAAR]]","v":{"v":67800,"d":"€ 67,800.00"}},{"$f":"MarketingWerkelijik[[#Totals],[JAAR]]","v":{"v":33159,"d":"€ 33,159.00"}},{"$f":"C8-D8","v":{"v":34641,"d":"€ 34,641.00"}},{"$f":"E8/C8","v":{"v":0.510929203539823,"d":"51%"}}]
[null,{"$f":"'GEPLANDE KOSTEN'!B30","v":"Training/Reizen"},{"$f":"TrainingEnReizenGepland[[#Totals],[JAAR]]","v":{"v":48000,"d":"€ 48,000.00"}},{"$f":"TrainingEnReizenWerkelijk[[#Totals],[JAAR]]","v":{"v":21300,"d":"€ 21,300.00"}},{"$f":"C9-D9","v":{"v":26700,"d":"€ 26,700.00"}},{"$f":"E9/C9","v":{"v":0.55625,"d":"56%"}}]
[null,{"$f":"'GEPLANDE KOSTEN'!B35","v":"TOTALEN"},{"$f":"'GEPLANDE KOSTEN'!O36","v":{"v":1609630,"d":"€ 1,609,630.00"}},{"$f":"'WERKELIJKE KOSTEN'!O36","v":{"v":782939,"d":"€ 782,939.00"}},{"$f":"C10-D10","v":{"v":826691,"d":"€ 826,691.00"}},{"$f":"E10/C10","v":{"v":0.5135907009685455,"d":"51%"}}]
[]
["Het cirkeldiagram Geplande kosten bevindt zich in de cel rechts, en het cirkeldiagram Werkelijke kosten in cel D12. De volgende aanwijzing staat in cel A14.","Deze cel bevat een cirkeldiagram met geplande kosten in verschillende categorieën.",null,"Deze cel bevat een cirkeldiagram met werkelijke kosten in verschillende categorieën."]
[]
["De grafiek met gepland en werkelijk kosten en verschil per maandelijkse kosten bevindt zich in de cel rechts."]